Vendor,Category,Amount Paid,Payment Date
10 S. Riverside Property Owner LLC,Rental Expense,810.75,1/3/2022
10 S. Riverside Property Owner LLC,Rental Expense,11199.25,1/3/2022
10 S. Riverside Property Owner LLC,Rental Expense,134,1/18/2022
10 S. Riverside Property Owner LLC,Rental Expense,11199.25,1/31/2022
10 S. Riverside Property Owner LLC,Rental Expense,810.75,1/31/2022
10 S. Riverside Property Owner LLC,Rental Expense,11199.25,3/1/2022
10 S. Riverside Property Owner LLC,Rental Expense,810.75,3/1/2022
10 S. Riverside Property Owner LLC,Rental Expense,810.75,3/22/2022
10 S. Riverside Property Owner LLC,Rental Expense,11199.25,3/23/2022
10 S. Riverside Property Owner LLC,Rental Expense,764.4,4/20/2022
10 S. Riverside Property Owner LLC,Rental Expense,11199.25,4/22/2022
10 S. Riverside Property Owner LLC,Rental Expense,810.75,4/22/2022
10 S. Riverside Property Owner LLC,Rental Expense,810.75,5/16/2022
10 S. Riverside Property Owner LLC,Rental Expense,11535.23,5/16/2022
10 S. Riverside Property Owner LLC,Rental Expense,958.15,7/5/2022
10 S. Riverside Property Owner LLC,Rental Expense,11535.23,7/5/2022
10 S. Riverside Property Owner LLC,Rental Expense,1621.5,9/21/2022
10 S. Riverside Property Owner LLC,Rental Expense,23070.46,9/21/2022
10 S. Riverside Property Owner LLC,Rental Expense,12345.98,10/21/2022
10 S. Riverside Property Owner LLC,Rental Expense,11535.23,11/28/2022
10 S. Riverside Property Owner LLC,Rental Expense,958.15,11/28/2022
10 S. Riverside Property Owner LLC,Rental Expense,810.75,12/8/2022
2022 Windy City Summit,Services,1270,2/16/2022
2423 Partners  LLC,Rental Expense,15796.56,1/18/2022
401 Properties Lp C/O: Eric Janssen  Receiver #133,Rental Expense,51453.58,1/3/2022
401 Properties Lp C/O: Eric Janssen  Receiver #133,Rental Expense,25241.79,1/31/2022
401 Properties Lp C/O: Eric Janssen  Receiver #133,Rental Expense,31801.44,3/1/2022
401 Properties Lp C/O: Eric Janssen  Receiver #133,Rental Expense,26036.1,3/30/2022
401 Properties Lp C/O: Eric Janssen  Receiver #133,Rental Expense,29186.1,4/22/2022
401 Properties Lp C/O: Eric Janssen  Receiver #133,Rental Expense,23276.87,5/26/2022
401 Properties Lp C/O: Eric Janssen  Receiver #133,Rental Expense,30324.02,7/7/2022
401 Properties Lp C/O: Eric Janssen  Receiver #133,Rental Expense,28899.02,7/25/2022
401 Properties Lp C/O: Eric Janssen  Receiver #133,Rental Expense,28874.02,8/25/2022
401 Properties Lp C/O: Eric Janssen  Receiver #133,Rental Expense,20208.75,9/28/2022
401 Properties Lp C/O: Eric Janssen  Receiver #133,Rental Expense,6955.27,9/28/2022
401 Properties Lp C/O: Eric Janssen  Receiver #133,Rental Expense,22424.02,10/24/2022
401 Properties Lp C/O: Eric Janssen  Receiver #133,Rental Expense,3870,10/24/2022
401 Properties Lp C/O: Eric Janssen  Receiver #133,Rental Expense,4215,11/29/2022
401 Properties Lp C/O: Eric Janssen  Receiver #133,Rental Expense,22424.02,11/29/2022
440 South Lasalle St.(Chicago)Owner Llc,Rental Expense,275602.04,3/17/2022
440 South Lasalle St.(Chicago)Owner Llc,Rental Expense,138468.85,5/26/2022
440 South Lasalle St.(Chicago)Owner Llc,Rental Expense,137207.77,6/9/2022
440 South Lasalle St.(Chicago)Owner Llc,Rental Expense,137207.77,6/10/2022
440 South Lasalle St.(Chicago)Owner Llc,Rental Expense,137175.6,6/16/2022
440 South Lasalle St.(Chicago)Owner Llc,Rental Expense,275488.17,8/22/2022
440 South Lasalle St.(Chicago)Owner Llc,Rental Expense,57684.36,10/19/2022
440 South Lasalle St.(Chicago)Owner Llc,Rental Expense,137175.6,11/9/2022
440 South Lasalle St.(Chicago)Owner Llc,Rental Expense,137949.91,12/14/2022
A & L Relay Services Llc,Services,13150,9/8/2022
A-1 Equipment Sales,Services,3124.36,4/6/2022
A-1 Equipment Sales,Services,3513.7,5/2/2022
A-1 Equipment Sales,Services,7699.74,11/29/2022
A-1 Equipment Sales,Services,3850.36,12/1/2022
A-Alert Exterminating Service,Services,45,1/3/2022
A-Alert Exterminating Service,Services,210,1/3/2022
A-Alert Exterminating Service,Services,115,1/3/2022
A-Alert Exterminating Service,Services,820,1/3/2022
A-Alert Exterminating Service,Services,255,1/3/2022
A-Alert Exterminating Service,Services,270,1/3/2022
A-Alert Exterminating Service,Services,210,1/25/2022
A-Alert Exterminating Service,Services,115,1/25/2022
A-Alert Exterminating Service,Services,240,1/26/2022
A-Alert Exterminating Service,Services,585,1/26/2022
A-Alert Exterminating Service,Services,395,1/27/2022
A-Alert Exterminating Service,Materials,75,2/1/2022
A-Alert Exterminating Service,Materials,75,2/1/2022
A-Alert Exterminating Service,Services,45,2/1/2022
A-Alert Exterminating Service,Services,270,2/1/2022
A-Alert Exterminating Service,Services,45,2/1/2022
A-Alert Exterminating Service,Services,75,2/1/2022
A-Alert Exterminating Service,Services,35,2/15/2022
A-Alert Exterminating Service,Services,75,3/7/2022
A-Alert Exterminating Service,Services,190,3/7/2022
A-Alert Exterminating Service,Services,75,3/7/2022
A-Alert Exterminating Service,Services,240,3/7/2022
A-Alert Exterminating Service,Services,430,3/8/2022
A-Alert Exterminating Service,Services,270,3/8/2022
A-Alert Exterminating Service,Services,75,3/8/2022
A-Alert Exterminating Service,Services,315,3/8/2022
A-Alert Exterminating Service,Materials,45,3/9/2022
A-Alert Exterminating Service,Services,45,3/9/2022
A-Alert Exterminating Service,Services,135,3/9/2022
A-Alert Exterminating Service,Services,45,3/9/2022
A-Alert Exterminating Service,Services,120,3/23/2022
A-Alert Exterminating Service,Services,180,3/23/2022
A-Alert Exterminating Service,Services,40,3/23/2022
A-Alert Exterminating Service,Services,75,3/28/2022
A-Alert Exterminating Service,Services,75,3/29/2022
A-Alert Exterminating Service,Services,655,3/29/2022
A-Alert Exterminating Service,Services,210,3/29/2022
A-Alert Exterminating Service,Services,45,3/29/2022
A-Alert Exterminating Service,Services,190,3/29/2022
A-Alert Exterminating Service,Services,195,3/30/2022
A-Alert Exterminating Service,Services,75,4/1/2022
A-Alert Exterminating Service,Services,75,4/1/2022
A-Alert Exterminating Service,Services,45,4/1/2022
A-Alert Exterminating Service,Services,75,4/6/2022
A-Alert Exterminating Service,Services,75,4/7/2022
A-Alert Exterminating Service,Services,45,4/7/2022
A-Alert Exterminating Service,Services,75,4/7/2022
A-Alert Exterminating Service,Services,360,4/7/2022
A-Alert Exterminating Service,Services,30,4/7/2022
A-Alert Exterminating Service,Services,75,4/19/2022
A-Alert Exterminating Service,Services,135,4/19/2022
A-Alert Exterminating Service,Services,75,4/27/2022
A-Alert Exterminating Service,Services,375,5/2/2022
A-Alert Exterminating Service,Services,45,5/2/2022
A-Alert Exterminating Service,Services,375,5/4/2022
A-Alert Exterminating Service,Services,45,5/4/2022
A-Alert Exterminating Service,Services,280,5/4/2022
A-Alert Exterminating Service,Services,75,5/10/2022
A-Alert Exterminating Service,Services,360,5/10/2022
A-Alert Exterminating Service,Services,75,5/10/2022
A-Alert Exterminating Service,Services,75,5/10/2022
A-Alert Exterminating Service,Services,75,5/10/2022
A-Alert Exterminating Service,Services,40,5/10/2022
A-Alert Exterminating Service,Services,285,6/22/2022
A-Alert Exterminating Service,Services,270,6/23/2022
A-Alert Exterminating Service,Services,350,7/1/2022
A-Alert Exterminating Service,Services,35,7/6/2022
A-Alert Exterminating Service,Services,40,7/11/2022
A-Alert Exterminating Service,Services,75,7/11/2022
A-Alert Exterminating Service,Services,30,7/11/2022
A-Alert Exterminating Service,Services,75,7/11/2022
A-Alert Exterminating Service,Services,75,7/21/2022
A-Alert Exterminating Service,Services,75,7/21/2022
A-Alert Exterminating Service,Services,270,7/21/2022
A-Alert Exterminating Service,Services,45,7/21/2022
A-Alert Exterminating Service,Services,75,7/22/2022
A-Alert Exterminating Service,Services,75,7/22/2022
A-Alert Exterminating Service,Services,210,7/22/2022
A-Alert Exterminating Service,Services,180,7/26/2022
A-Alert Exterminating Service,Services,180,7/26/2022
A-Alert Exterminating Service,Services,150,8/1/2022
A-Alert Exterminating Service,Services,75,8/1/2022
A-Alert Exterminating Service,Services,105,8/9/2022
A-Alert Exterminating Service,Services,385,8/9/2022
A-Alert Exterminating Service,Services,75,8/9/2022
A-Alert Exterminating Service,Services,45,8/9/2022
A-Alert Exterminating Service,Services,75,8/22/2022
A-Alert Exterminating Service,Services,315,8/22/2022
A-Alert Exterminating Service,Services,40,8/22/2022
A-Alert Exterminating Service,Services,285,8/22/2022
A-Alert Exterminating Service,Services,75,8/26/2022
A-Alert Exterminating Service,Services,270,9/7/2022
A-Alert Exterminating Service,Services,45,9/8/2022
A-Alert Exterminating Service,Services,30,9/14/2022
A-Alert Exterminating Service,Services,35,9/14/2022
A-Alert Exterminating Service,Services,125,9/14/2022
A-Alert Exterminating Service,Services,75,9/14/2022
A-Alert Exterminating Service,Services,425,9/14/2022
A-Alert Exterminating Service,Services,45,9/14/2022
A-Alert Exterminating Service,Services,75,9/14/2022
A-Alert Exterminating Service,Services,45,9/14/2022
A-Alert Exterminating Service,Services,115,9/19/2022
A-Alert Exterminating Service,Services,30,9/29/2022
A-Alert Exterminating Service,Services,195,10/1/2022
A-Alert Exterminating Service,Services,75,10/1/2022
A-Alert Exterminating Service,Services,45,10/1/2022
A-Alert Exterminating Service,Services,135,10/3/2022
A-Alert Exterminating Service,Services,270,10/3/2022
A-Alert Exterminating Service,Services,30,10/4/2022
A-Alert Exterminating Service,Services,45,10/4/2022
A-Alert Exterminating Service,Services,75,10/7/2022
A-Alert Exterminating Service,Services,75,10/19/2022
A-Alert Exterminating Service,Services,75,10/19/2022
A-Alert Exterminating Service,Services,115,10/19/2022
A-Alert Exterminating Service,Services,75,10/19/2022
A-Alert Exterminating Service,Services,75,10/19/2022
A-Alert Exterminating Service,Services,70,10/27/2022
A-Alert Exterminating Service,Services,135,10/28/2022
A-Alert Exterminating Service,Services,75,10/28/2022
A-Alert Exterminating Service,Services,75,10/28/2022
A-Alert Exterminating Service,Materials,35,11/1/2022
A-Alert Exterminating Service,Services,620,11/1/2022
A-Alert Exterminating Service,Services,120,11/1/2022
A-Alert Exterminating Service,Services,700,11/4/2022
A-Alert Exterminating Service,Services,345,11/10/2022
A-Alert Exterminating Service,Services,75,11/10/2022
A-Alert Exterminating Service,Services,45,11/10/2022
A-Alert Exterminating Service,Services,105,11/14/2022
A-Alert Exterminating Service,Services,360,11/14/2022
A-Alert Exterminating Service,Services,75,11/14/2022
A-Alert Exterminating Service,Services,75,11/14/2022
A-Alert Exterminating Service,Services,115,11/14/2022
A-Alert Exterminating Service,Services,30,11/30/2022
A-Alert Exterminating Service,Services,180,12/1/2022
A-Alert Exterminating Service,Services,90,12/1/2022
A-Alert Exterminating Service,Services,30,12/14/2022
A-Alert Exterminating Service,Services,140,12/14/2022
Aaron Gulbransen,Services,481.82,5/12/2022
Aaron Gulbransen,Services,185,5/12/2022
Aaron Gulbransen,Services,48.32,5/12/2022
Aaron Gulbransen,Services,60,5/12/2022
Aaron Gulbransen,Services,86.11,6/1/2022
Aaron Gulbransen,Services,45,9/1/2022
Aaron Gulbransen,Services,6,9/1/2022
Aaron Gulbransen,Services,43.75,9/1/2022
Aaron Gulbransen,Services,185,9/1/2022
Aaron Gulbransen,Services,434.43,9/1/2022
Aaron Gulbransen,Services,60,10/3/2022
Aaron Gulbransen,Services,41.34,10/3/2022
Aaron Gulbransen,Services,43.75,10/3/2022
Aaron Gulbransen,Services,241.5,10/3/2022
Aaron Gulbransen,Services,597.27,10/3/2022
Aaron Gulbransen,Services,153.88,11/15/2022
AARON KRUSE,Services,554.6,12/1/2022
AARON KRUSE,Services,112.82,12/1/2022
AARON KRUSE,Services,160,12/1/2022
Aaron Maertins,Services,24.19,9/1/2022
Aaron Maertins,Services,754.2,9/1/2022
Aaron Maertins,Services,224,9/1/2022
Aaron Maertins,Services,197.5,11/1/2022
Aaron Maertins,Services,23.75,11/1/2022
Aaron Maertins,Services,885,11/1/2022
Aaron Willie,Services,107.64,2/11/2022
Aaron Willie,Services,35.1,2/11/2022
Aaron Willie,Services,99.45,3/10/2022
Aaron Willie,Services,14.04,3/10/2022
Aaron Willie,Services,53.82,6/13/2022
Aaron Willie,Services,88.92,6/13/2022
Aaron Willie,Services,14.04,6/13/2022
Abel Lopez  Pantoja,Services,565,5/23/2022
Abel Lopez  Pantoja,Services,452,6/10/2022
Abel Lopez  Pantoja,Services,791,6/29/2022
Abel Lopez  Pantoja,Services,508.5,7/20/2022
"ABM Industry Groups, LLC",Services,9560.98,1/5/2022
"ABM Industry Groups, LLC",Services,4197.12,1/6/2022
"ABM Industry Groups, LLC",Services,158269.59,1/24/2022
"ABM Industry Groups, LLC",Services,58045.4,1/28/2022
"ABM Industry Groups, LLC",Services,65774.98,2/11/2022
"ABM Industry Groups, LLC",Services,2989.51,2/25/2022
"ABM Industry Groups, LLC",Services,105513.06,3/7/2022
"ABM Industry Groups, LLC",Services,48515.74,3/15/2022
"ABM Industry Groups, LLC",Services,31287.52,3/17/2022
"ABM Industry Groups, LLC",Services,48515.74,4/8/2022
"ABM Industry Groups, LLC",Materials,9181.92,4/19/2022
"ABM Industry Groups, LLC",Services,32421.04,4/19/2022
"ABM Industry Groups, LLC",Services,6307.52,5/2/2022
"ABM Industry Groups, LLC",Services,105513.06,5/12/2022
"ABM Industry Groups, LLC",Services,66436.86,6/3/2022
"ABM Industry Groups, LLC",Services,74842.54,8/1/2022
"ABM Industry Groups, LLC",Services,12242.74,8/5/2022
"ABM Industry Groups, LLC",Services,5759.04,8/16/2022
"ABM Industry Groups, LLC",Services,68979.35,8/16/2022
"ABM Industry Groups, LLC",Services,992.64,10/11/2022
"ABM Industry Groups, LLC",Services,130861.19,10/11/2022
"ABM Industry Groups, LLC",Services,6307.52,10/11/2022
"ABM Industry Groups, LLC",Services,6983.32,11/10/2022
"ABM Industry Groups, LLC",Services,98388.59,12/8/2022
Abraham R. Castellano,Services,51.52,1/10/2022
Abraham R. Castellano,Services,241.92,1/10/2022
Abraham R. Castellano,Services,105.3,3/10/2022
Abraham R. Castellano,Services,167.31,3/10/2022
Abraham R. Castellano,Services,70.2,6/16/2022
Abraham R. Castellano,Services,35.1,7/18/2022
Abraham R. Castellano,Services,53.82,7/18/2022
Abraham R. Castellano,Services,75,8/15/2022
Abraham R. Castellano,Services,440,8/15/2022
Abraham R. Castellano,Services,172.5,9/14/2022
Abraham R. Castellano,Services,37.5,9/14/2022
Abraham R. Castellano,Services,37.5,10/13/2022
Abraham R. Castellano,Services,230,11/17/2022
Abraham R. Castellano,Services,37.5,11/17/2022
Abraham R. Castellano,Services,210,12/9/2022
Abraham R. Castellano,Services,132.5,12/9/2022
"Absolent, Inc.",Capital Purchases,72850.4,5/25/2022
Abt,Materials,69.99,7/25/2022
Abt,Materials,1355,9/1/2022
Abt,Materials,923,9/1/2022
Abt,Materials,674,9/21/2022
Abt,Materials,719.9,9/21/2022
Abt,Materials,1349,9/21/2022
Abt,Materials,261,9/21/2022
Abt,Materials,614.94,10/24/2022
Abt,Capital Purchases,9494.85,11/4/2022
Abt,Materials,764,12/1/2022
Abt,Materials,1442,12/1/2022
Aca Compliance Services  Inc.,Services,12523,2/11/2022
Aci Worldwide Corp.,Services,35423.6,2/11/2022
Aci Worldwide Corp.,Services,59790,2/11/2022
Aci Worldwide Corp.,Services,29895,4/1/2022
Aci Worldwide Corp.,Services,29895,5/17/2022
Aci Worldwide Corp.,Services,29895,6/15/2022
Aci Worldwide Corp.,Services,29895,6/16/2022
Aci Worldwide Corp.,Services,29895,8/3/2022
Aci Worldwide Corp.,Services,29895,9/7/2022
Aci Worldwide Corp.,Services,59790,11/9/2022
Aci Worldwide Corp.,Services,29895,12/8/2022
Acme Tools,Materials,758,10/13/2022
Acme Tools,Services,15,10/13/2022
Adam Farence,Services,376.32,1/10/2022
Adam Farence,Services,172.58,2/28/2022
Adam Farence,Services,250.38,3/10/2022
Adam Farence,Services,147.5,5/12/2022
Adam Farence,Services,41.28,5/12/2022
Adam Farence,Services,790.64,5/12/2022
Adam Farence,Services,48.13,10/11/2022
Adam Farence,Services,56.65,10/11/2022
Adam Haywood,Services,53.82,5/2/2022
Adam Haywood,Services,22.23,6/16/2022
Adam Haywood,Services,107.64,6/21/2022
Adam Haywood,Services,57.5,8/16/2022
Adam Singer,Services,413,10/24/2022
Adam Singer,Services,120,10/24/2022
Adam Singer,Services,706.86,10/24/2022
Adams & Westlake  Ltd.,Materials,13482.32,1/3/2022
Adams & Westlake  Ltd.,Materials,1100,2/11/2022
Adams & Westlake  Ltd.,Materials,5347.65,3/7/2022
Adams & Westlake  Ltd.,Materials,1390.4,5/11/2022
Adams & Westlake  Ltd.,Materials,503.25,6/9/2022
Adams & Westlake  Ltd.,Materials,10453.4,6/9/2022
Adams & Westlake  Ltd.,Materials,5093.2,6/9/2022
Adams & Westlake  Ltd.,Materials,942,6/22/2022
Adams & Westlake  Ltd.,Materials,7469.7,7/25/2022
Adams & Westlake  Ltd.,Materials,4687.8,8/8/2022
Adams & Westlake  Ltd.,Materials,1478.73,9/1/2022
Adams & Westlake  Ltd.,Materials,1478.73,9/1/2022
Adams & Westlake  Ltd.,Materials,17826.2,9/22/2022
Adams & Westlake  Ltd.,Materials,5360.2,10/1/2022
Adams & Westlake  Ltd.,Materials,5814.15,10/11/2022
Adams & Westlake  Ltd.,Materials,942,11/9/2022
Adams & Westlake  Ltd.,Materials,3943.28,11/14/2022
Adams & Westlake  Ltd.,Materials,700,12/1/2022
Adams & Westlake  Ltd.,Materials,7639.8,12/1/2022
Adams & Westlake  Ltd.,Materials,17713.32,12/13/2022
Adams & Westlake  Ltd.,Materials,8262.5,12/19/2022
Adaptive Micro Systems Inc.,Capital Purchases,66600,3/7/2022
Adaptive Micro Systems Inc.,Capital Purchases,74370,12/1/2022
Adolfo Nieto Bustamante,Services,1243,10/5/2022
"ADR Systems Of America, LLC",Claims & Insurance,3925,1/21/2022
"ADR Systems Of America, LLC",Claims & Insurance,2158.5,1/26/2022
Adrian Andrade,Services,565,6/13/2022
Adrian Andrade,Services,678,6/30/2022
Adrian Andrade,Services,621.5,7/21/2022
Adrian Andrade,Services,621.5,8/3/2022
Adrian Andrade,Services,452,8/12/2022
Adrian Andrade,Services,565,8/30/2022
Adrian Andrade,Services,621.5,9/14/2022
Adrian Andrade,Services,621.5,10/6/2022
ADRIANA HERNANDEZ,Services,286.4,5/10/2022
ADRIANA HERNANDEZ,Services,135.14,5/12/2022
Advance Search Technical Staffing,Services,32613.25,2/14/2022
Advance Search Technical Staffing,Services,11688,3/14/2022
Advance Search Technical Staffing,Services,7840,3/14/2022
Advance Search Technical Staffing,Services,15321.25,4/6/2022
Advance Search Technical Staffing,Services,7840,5/1/2022
Advance Search Technical Staffing,Services,11760,5/2/2022
Advance Search Technical Staffing,Services,15152.5,5/4/2022
Advance Search Technical Staffing,Services,11564,5/26/2022
Advance Search Technical Staffing,Services,21758.5,6/10/2022
Advance Search Technical Staffing,Services,7600,6/22/2022
Advance Search Technical Staffing,Services,11400,6/22/2022
Advance Search Technical Staffing,Services,4312,8/17/2022
Advance Search Technical Staffing,Services,11424,9/7/2022
Advance Search Technical Staffing,Services,22032,9/7/2022
Advance Search Technical Staffing,Services,11424,10/19/2022
Advance Search Technical Staffing,Services,9224,11/18/2022
Advanced Resources  Llc,Services,807.62,3/24/2022
"Advent Systems, LLC dba Allied Universal Technology Services",Services,2681,9/8/2022
Aecom Technical Services  Inc.,Capital Purchases,51243.49,1/3/2022
Aecom Technical Services  Inc.,Capital Purchases,84723.26,1/3/2022
Aecom Technical Services  Inc.,Capital Purchases,59961.31,2/11/2022
Aecom Technical Services  Inc.,Capital Purchases,111056.57,2/15/2022
Aecom Technical Services  Inc.,Capital Purchases,59961.31,3/7/2022
Aecom Technical Services  Inc.,Capital Purchases,59961.31,3/17/2022
Aecom Technical Services  Inc.,Capital Purchases,59961.31,4/1/2022
Aecom Technical Services  Inc.,Capital Purchases,59961.31,4/20/2022
Aecom Technical Services  Inc.,Capital Purchases,61041.73,5/11/2022
Aecom Technical Services  Inc.,Capital Purchases,47222.02,5/11/2022
Aecom Technical Services  Inc.,Capital Purchases,81432.78,6/1/2022
Aecom Technical Services  Inc.,Capital Purchases,74951.64,6/6/2022
Aecom Technical Services  Inc.,Capital Purchases,65241.11,6/9/2022
Aecom Technical Services  Inc.,Capital Purchases,74951.64,6/16/2022
Aecom Technical Services  Inc.,Capital Purchases,118729.52,8/3/2022
Aecom Technical Services  Inc.,Capital Purchases,74951.64,8/19/2022
Aecom Technical Services  Inc.,Capital Purchases,51179.01,9/1/2022
Aecom Technical Services  Inc.,Capital Purchases,50654.92,9/14/2022
Aecom Technical Services  Inc.,Capital Purchases,43620.59,11/8/2022
Aecom Technical Services  Inc.,Capital Purchases,71323.28,12/6/2022
Aecom Technical Services  Inc.,Capital Purchases,39006.6,12/19/2022
Aed Superstore,Materials,1803.6,8/16/2022
Aed Superstore,Materials,421.2,8/16/2022
Aed Superstore,Services,10.95,8/16/2022
"Aerial Metrics, Inc.",Services,499,1/20/2022
Afc International  Inc.,Services,2380.55,2/14/2022
Afc International  Inc.,Services,5394.59,3/17/2022
Afc International  Inc.,Services,3700.6,5/24/2022
Afc International  Inc.,Services,183.35,6/9/2022
Afc International  Inc.,Services,207.74,7/13/2022
Afc International  Inc.,Services,2250,8/12/2022
Afc International  Inc.,Services,1045,9/15/2022
Afc International  Inc.,Materials,7093.4,10/1/2022
AFL Telecommunications LLC,Materials,1237.56,1/6/2022
AFL Telecommunications LLC,Materials,16510.5,7/6/2022
"Ahead of Our Time Publishing, Inc.",Services,500,1/21/2022
"Ahead of Our Time Publishing, Inc.",Services,500,12/22/2022
Ahmad Abusini,Services,3403.3,5/20/2022
Ahmad Abusini,Services,2941.66,8/16/2022
Ahmad Abusini,Services,1116.75,11/15/2022
Ahmad Abusini,Services,335.54,11/15/2022
Ahmad Abusini,Services,197.5,11/15/2022
Ahmad Abusini,Services,4604.5,12/23/2022
Aircraft & Commercial Enterprises Inc.,Capital Purchases,1558,1/3/2022
Aircraft & Commercial Enterprises Inc.,Materials,198,1/4/2022
Aircraft & Commercial Enterprises Inc.,Capital Purchases,3594,1/4/2022
Aircraft & Commercial Enterprises Inc.,Capital Purchases,2396,2/10/2022
Aircraft & Commercial Enterprises Inc.,Capital Purchases,3057,3/7/2022
Aircraft & Commercial Enterprises Inc.,Materials,891,3/7/2022
Aircraft & Commercial Enterprises Inc.,Capital Purchases,1797,4/6/2022
Aircraft & Commercial Enterprises Inc.,Capital Purchases,1378,4/6/2022
Aircraft & Commercial Enterprises Inc.,Capital Purchases,1797,4/22/2022
Aircraft & Commercial Enterprises Inc.,Capital Purchases,1797,4/22/2022
Aircraft & Commercial Enterprises Inc.,Capital Purchases,1797,5/17/2022
Aircraft & Commercial Enterprises Inc.,Capital Purchases,1198,8/22/2022
Aircraft & Commercial Enterprises Inc.,Capital Purchases,1797,8/25/2022
Aircraft & Commercial Enterprises Inc.,Capital Purchases,1797,8/25/2022
Aircraft & Commercial Enterprises Inc.,Materials,899,9/1/2022
Aircraft & Commercial Enterprises Inc.,Materials,2457,9/15/2022
Aircraft & Commercial Enterprises Inc.,Capital Purchases,2115,10/11/2022
Aircraft & Commercial Enterprises Inc.,Materials,1198,12/6/2022
Aircraft & Commercial Enterprises Inc.,Materials,778,12/6/2022
Airgas,Materials,5204.1,8/16/2022
Aka Comp Solutions  Inc.,Services,5506.6,4/1/2022
Aka Comp Solutions  Inc.,Services,51065,11/1/2022
Aka Comp Solutions  Inc.,Services,81145.32,11/8/2022
Aka Comp Solutions  Inc.,Services,126480,12/6/2022
"Al Warren Oil Co., Inc.",Materials,69615,10/20/2022
"Al Warren Oil Co., Inc.",Materials,64631.03,10/24/2022
"Al Warren Oil Co., Inc.",Materials,80937,12/1/2022
"Al Warren Oil Co., Inc.",Materials,81023.7,12/1/2022
"Al Warren Oil Co., Inc.",Materials,81829.5,12/1/2022
Alan B. Bakotic,Services,553,2/14/2022
Alan B. Bakotic,Services,106.82,2/24/2022
Alan B. Bakotic,Services,5.7,2/24/2022
Alan B. Bakotic,Services,518,2/24/2022
Alan B. Bakotic,Services,576,5/11/2022
Alan B. Bakotic,Services,576,6/14/2022
Alan B. Bakotic,Services,213.64,6/14/2022
Alan B. Bakotic,Services,37.6,6/14/2022
Alan B. Bakotic,Services,220.32,6/30/2022
Alan B. Bakotic,Services,1040.1,6/30/2022
Alan B. Bakotic,Services,140,6/30/2022
Alan B. Bakotic,Services,1098.6,6/30/2022
Alan B. Bakotic,Services,70.86,6/30/2022
Alan B. Bakotic,Services,448,6/30/2022
Alan B. Bakotic,Services,576,11/15/2022
Alan B. Bakotic,Services,21.38,11/22/2022
Alan B. Bakotic,Services,448,11/22/2022
Alan B. Bakotic,Services,520,11/22/2022
Alan B. Bakotic,Services,1637.56,11/22/2022
Alan Ratliff,Services,288.96,2/23/2022
Alan Ratliff,Services,177,2/23/2022
Alan Ratliff,Services,1151.76,3/22/2022
Alan Ratliff,Services,99.46,3/22/2022
Alan Ratliff,Services,413,3/22/2022
Alan Ratliff,Services,987.78,3/22/2022
Alan Ratliff,Services,432.3,3/22/2022
Alan Ratliff,Services,115.94,5/12/2022
Alan Ratliff,Services,413,5/12/2022
Alan Ratliff,Services,127.2,5/12/2022
Alan Ratliff,Services,1064.88,5/12/2022
Alan Ratliff,Services,1185.96,5/12/2022
Alan Ratliff,Services,102.02,6/13/2022
Alan Ratliff,Services,283.7,6/13/2022
Alan Ratliff,Services,529.6,6/13/2022
Alan Ratliff,Services,790.64,6/13/2022
Alan Ratliff,Services,295,6/13/2022
Alan Ratliff,Services,647.3,7/19/2022
Alan Ratliff,Services,413,7/19/2022
Alan Ratliff,Services,102.26,7/19/2022
Alan Ratliff,Services,418.5,7/19/2022
Alan Ratliff,Services,1185.96,7/19/2022
Alan Ratliff,Services,1562.5,11/9/2022
Alan Ratliff,Services,531,11/9/2022
Alan Ratliff,Services,124.26,11/9/2022
Alan Ratliff,Services,239.94,11/9/2022
Alan Ratliff,Services,1580.06,11/9/2022
ALBERTO LOPEZ,Services,7.31,6/27/2022
Albino Contreras,Services,12,2/28/2022
Alco Spring Industries  Inc.,Capital Purchases,5004,11/1/2022
Alcohol & Drug Testing Services Llc,Services,8714,5/5/2022
Alcohol & Drug Testing Services Llc,Services,14139,5/9/2022
Alcohol & Drug Testing Services Llc,Services,75117,5/9/2022
Alcohol & Drug Testing Services Llc,Services,21928,5/10/2022
Alcohol & Drug Testing Services Llc,Services,18545,7/8/2022
Alcohol & Drug Testing Services Llc,Services,22288,8/9/2022
Alcohol & Drug Testing Services Llc,Services,7491,9/13/2022
Alcohol & Drug Testing Services Llc,Services,10334,10/14/2022
Aldridge Electric  Inc.,Capital Purchases,897966.94,10/18/2022
Aldridge Electric  Inc.,Capital Purchases,352785.42,12/19/2022
Alejandro Reyes,Services,448,8/19/2022
Alejandro Reyes,Services,3991.8,8/19/2022
Alera Group,Services,18525.92,4/13/2022
Alera Group,Services,18654.22,4/22/2022
Alera Group,Services,17057.52,9/12/2022
Alera Group,Services,18582.39,9/22/2022
Alesia S. Smith,Services,374.16,1/6/2022
Alesia S. Smith,Services,329.74,2/11/2022
Alesia S. Smith,Services,244.59,3/7/2022
Alesia S. Smith,Services,600.78,4/14/2022
Alex Valenzuela,Services,402,1/6/2022
Alex Valenzuela,Services,24.64,1/12/2022
Alex Valenzuela,Services,215.04,1/12/2022
Alex Valenzuela,Services,37.44,2/11/2022
Alex Valenzuela,Services,74.88,2/11/2022
Alex Valenzuela,Services,46.8,4/8/2022
Alex Valenzuela,Services,12.87,5/9/2022
Alex Valenzuela,Services,37.44,5/9/2022
Alex Valenzuela,Services,37.44,5/9/2022
Alex Valenzuela,Services,37.44,6/6/2022
Alex Valenzuela,Services,37.44,6/6/2022
Alex Valenzuela,Services,50,8/18/2022
Alex Valenzuela,Services,82.5,10/13/2022
ALEXANDRA MARTINEZ,Claims & Insurance,20,8/1/2022
Alexis Dawson,Services,35.1,5/20/2022
Alexis Dawson,Services,70.2,5/20/2022
Alexis Rojas,Services,23.52,1/13/2022
Alexis Rojas,Services,352.8,1/13/2022
Alexis Rojas,Services,67.86,1/25/2022
Alexis Rojas,Services,129.87,2/11/2022
Alexis Rojas,Services,43.29,3/9/2022
Alexis Rojas,Services,73.71,3/17/2022
Alexis Rojas,Services,24.57,4/14/2022
Alexis Rojas,Services,19.19,4/14/2022
Alexis Rojas,Services,86.58,4/22/2022
Alexis Rojas,Services,12.4,5/10/2022
Alexis Rojas,Services,197.73,5/10/2022
Alexis Rojas,Services,111.15,6/6/2022
Alexis Rojas,Services,294.84,7/13/2022
Alexis Rojas,Services,24.57,7/13/2022
Alexis Rojas,Services,393.75,8/12/2022
Alexis Rojas,Services,46.25,9/13/2022
Alexis Rojas,Services,39.13,9/13/2022
Alexis Rojas,Services,185,10/12/2022
Alexis Rojas,Services,21.25,11/14/2022
Alexis Rojas,Services,109.25,11/14/2022
Alfonso Becerra,Services,67.2,1/12/2022
Alfonso Becerra,Services,112.5,8/16/2022
Alfonso Becerra,Services,37.5,11/15/2022
Alfred Benesch & Co.,Capital Purchases,224168.84,1/21/2022
Alfred Benesch & Co.,Capital Purchases,263302.97,4/6/2022
Alfred Benesch & Co.,Capital Purchases,121264.13,12/6/2022
Alfred E Fazio,Services,2100,9/12/2022
Alfred E Fazio,Services,887.53,9/21/2022
Alfred E Fazio,Services,3900,10/20/2022
Alfred E Fazio,Services,600,11/7/2022
"Alfredo Godinez, Jr.",Services,8,1/4/2022
"Alfredo Godinez, Jr.",Services,5.51,1/14/2022
All Covered It Services From Konica Minolta,Services,255,1/11/2022
All Covered It Services From Konica Minolta,Capital Purchases,2351.25,1/11/2022
All Covered It Services From Konica Minolta,Capital Purchases,1155,1/11/2022
All Covered It Services From Konica Minolta,Capital Purchases,9157.5,2/14/2022
All Covered It Services From Konica Minolta,Capital Purchases,3300,2/14/2022
All Covered It Services From Konica Minolta,Capital Purchases,1113.75,3/21/2022
All Covered It Services From Konica Minolta,Services,170,3/21/2022
All Covered It Services From Konica Minolta,Capital Purchases,247.5,3/21/2022
All Covered It Services From Konica Minolta,Capital Purchases,165,5/6/2022
All Covered It Services From Konica Minolta,Capital Purchases,82.5,6/8/2022
All Covered It Services From Konica Minolta,Services,425,6/8/2022
All Covered It Services From Konica Minolta,Capital Purchases,495,7/8/2022
All Covered It Services From Konica Minolta,Capital Purchases,2268.75,9/7/2022
Allied Electronics Inc.,Materials,495.6,6/15/2022
Aloha Print Group,Services,686.28,4/21/2022
Aloha Print Group,Services,715.75,9/1/2022
Aloha Print Group,Services,7572.49,9/1/2022
Aloha Print Group,Services,2715,12/13/2022
Aloha Print Group,Services,3690,12/19/2022
Alphonso Jackson,Services,24.21,2/25/2022
Alstom,Services,10173.91,7/1/2022
Alstom,Services,2505.13,7/1/2022
Alstom,Services,3272,8/22/2022
Alstom,Services,8180,10/19/2022
Alstom,Services,2728.04,11/1/2022
Alstom Signaling  Inc.,Services,308.8,1/5/2022
Alstom Signaling  Inc.,Services,1924.36,1/5/2022
Alstom Signaling  Inc.,Services,16434.24,1/19/2022
Alstom Signaling  Inc.,Services,344.58,1/27/2022
Alstom Signaling  Inc.,Services,1278.13,1/28/2022
Alstom Signaling  Inc.,Services,1418.21,3/11/2022
Alstom Signaling  Inc.,Services,2079.01,3/23/2022
Alstom Signaling  Inc.,Services,2706.13,5/9/2022
Alstom Signaling Operation  LLC,Materials,3863.33,1/5/2022
Alstom Signaling Operation  LLC,Materials,2322.87,1/5/2022
Alstom Signaling Operation  LLC,Materials,12101.24,2/14/2022
Alstom Signaling Operation  LLC,Materials,3522,2/14/2022
Alstom Signaling Operation  LLC,Materials,34119.7,2/14/2022
Alstom Signaling Operation  LLC,Materials,9916.23,3/11/2022
Alstom Signaling Operation  LLC,Services,1334,3/11/2022
Alstom Signaling Operation  LLC,Materials,6242.1,3/17/2022
Alstom Signaling Operation  LLC,Materials,15415.05,3/28/2022
Alstom Signaling Operation  LLC,Materials,41094.02,3/28/2022
Alstom Signaling Operation  LLC,Materials,51372.85,3/28/2022
Alstom Signaling Operation  LLC,Materials,22773,4/20/2022
Alstom Signaling Operation  LLC,Materials,17610,4/20/2022
Alstom Signaling Operation  LLC,Materials,35858,4/20/2022
Alstom Signaling Operation  LLC,Materials,7299.2,4/28/2022
Alstom Signaling Operation  LLC,Materials,694.26,5/12/2022
Alstom Signaling Operation  LLC,Materials,561.48,5/12/2022
Alstom Signaling Operation  LLC,Materials,2475.65,5/12/2022
Alstom Signaling Operation  LLC,Materials,11546.3,5/23/2022
Alstom Signaling Operation  LLC,Materials,1486.62,5/24/2022
Alstom Signaling Operation  LLC,Materials,6095.36,6/21/2022
Alstom Signaling Operation  LLC,Materials,2716.08,6/21/2022
Alstom Signaling Operation  LLC,Materials,1022.5,7/1/2022
Alstom Signaling Operation  LLC,Materials,628.47,7/5/2022
Alstom Signaling Operation  LLC,Materials,991.08,7/7/2022
Alstom Signaling Operation  LLC,Materials,991.08,7/12/2022
Alstom Signaling Operation  LLC,Services,357.88,8/1/2022
Alstom Signaling Operation  LLC,Materials,1324.98,8/2/2022
Alstom Signaling Operation  LLC,Services,1267.9,8/5/2022
Alstom Signaling Operation  LLC,Services,35210.77,8/5/2022
Alstom Signaling Operation  LLC,Services,1687.13,8/22/2022
Alstom Signaling Operation  LLC,Services,9969,8/30/2022
Alstom Signaling Operation  LLC,Services,1687,9/1/2022
Alstom Signaling Operation  LLC,Materials,10693.86,9/1/2022
Alstom Signaling Operation  LLC,Services,6134.64,9/1/2022
Alstom Signaling Operation  LLC,Materials,1486.62,9/2/2022
Alstom Signaling Operation  LLC,Materials,31285.31,9/6/2022
Alstom Signaling Operation  LLC,Materials,1497.24,9/13/2022
Alstom Signaling Operation  LLC,Materials,37491.09,9/22/2022
Alstom Signaling Operation  LLC,Materials,923,10/13/2022
Alstom Signaling Operation  LLC,Services,840,10/14/2022
Alstom Signaling Operation  LLC,Services,1131.3,10/14/2022
Alstom Signaling Operation  LLC,Services,4271.94,10/19/2022
Alstom Signaling Operation  LLC,Materials,500.85,10/24/2022
Alstom Signaling Operation  LLC,Materials,13141.52,11/7/2022
Alstom Signaling Operation  LLC,Materials,333.9,11/7/2022
Alstom Signaling Operation  LLC,Materials,3468.78,11/10/2022
Alstom Signaling Operation  LLC,Materials,7801.09,12/6/2022
Alstom Signaling Operation  LLC,Materials,8919.72,12/7/2022
Alstom Signaling Operation  LLC,Services,858.9,12/15/2022
Alstom Signaling Operation LLC,Capital Purchases,1872,1/5/2022
Alstom Signaling Operation LLC,Capital Purchases,5122.72,1/5/2022
Alstom Signaling Operation LLC,Capital Purchases,204.5,1/5/2022
Alstom Signaling Operation LLC,Capital Purchases,445.8,2/4/2022
Alstom Signaling Operation LLC,Capital Purchases,68078.04,2/14/2022
Alstom Signaling Operation LLC,Capital Purchases,4634,2/17/2022
Alstom Signaling Operation LLC,Capital Purchases,1588.8,3/3/2022
Alstom Signaling Operation LLC,Capital Purchases,7104.34,3/3/2022
Alstom Signaling Operation LLC,Capital Purchases,850.72,3/11/2022
Alstom Signaling Operation LLC,Capital Purchases,47000.08,3/28/2022
Alstom Signaling Operation LLC,Capital Purchases,36716.92,3/30/2022
Alstom Signaling Operation LLC,Capital Purchases,9819.1,3/30/2022
Alstom Signaling Operation LLC,Capital Purchases,1423.32,4/1/2022
Alstom Signaling Operation LLC,Capital Purchases,1423.32,4/1/2022
Alstom Signaling Operation LLC,Capital Purchases,1794.04,4/1/2022
Alstom Signaling Operation LLC,Capital Purchases,1136.36,4/6/2022
Alstom Signaling Operation LLC,Capital Purchases,384.46,4/12/2022
Alstom Signaling Operation LLC,Capital Purchases,576.69,4/12/2022
Alstom Signaling Operation LLC,Capital Purchases,2846.64,4/12/2022
Alstom Signaling Operation LLC,Capital Purchases,576.69,4/12/2022
Alstom Signaling Operation LLC,Capital Purchases,192.23,4/27/2022
Alstom Signaling Operation LLC,Capital Purchases,24569.48,4/28/2022
Alstom Signaling Operation LLC,Capital Purchases,2512.68,5/5/2022
Alstom Signaling Operation LLC,Capital Purchases,2138.04,5/12/2022
Alstom Signaling Operation LLC,Capital Purchases,136708.24,5/12/2022
Alstom Signaling Operation LLC,Materials,1546.08,5/23/2022
Alstom Signaling Operation LLC,Capital Purchases,3310,5/23/2022
Alstom Signaling Operation LLC,Capital Purchases,68546.35,6/1/2022
Alstom Signaling Operation LLC,Capital Purchases,1554.2,6/3/2022
Alstom Signaling Operation LLC,Capital Purchases,712.68,6/8/2022
Alstom Signaling Operation LLC,Capital Purchases,68354.12,6/15/2022
Alstom Signaling Operation LLC,Materials,128.84,6/15/2022
Alstom Signaling Operation LLC,Materials,128.84,6/16/2022
Alstom Signaling Operation LLC,Capital Purchases,850.72,6/21/2022
Alstom Signaling Operation LLC,Materials,257.68,6/30/2022
Alstom Signaling Operation LLC,Capital Purchases,2331.3,7/1/2022
Alstom Signaling Operation LLC,Capital Purchases,1554.2,7/5/2022
Alstom Signaling Operation LLC,Capital Purchases,5168.74,8/2/2022
Alstom Signaling Operation LLC,Capital Purchases,5168.74,8/2/2022
Alstom Signaling Operation LLC,Capital Purchases,11916,9/6/2022
Alstom Signaling Operation LLC,Capital Purchases,4766.4,9/6/2022
Alstom Signaling Operation LLC,Materials,3742.5,9/8/2022
Alstom Signaling Operation LLC,Capital Purchases,2780.4,9/22/2022
Alstom Signaling Operation LLC,Materials,7574.55,10/13/2022
Alstom Signaling Operation LLC,Capital Purchases,3045.2,10/13/2022
Alstom Signaling Operation LLC,Capital Purchases,10458.14,10/13/2022
Alstom Signaling Operation LLC,Materials,739.87,11/7/2022
Alstom Signaling Operation LLC,Capital Purchases,2912.8,12/6/2022
Alstom Signaling Operation LLC,Materials,4439.22,12/6/2022
Alstom Signaling Operation LLC,Capital Purchases,1701.44,12/6/2022
Alstom Signaling Operation LLC,Materials,2219.61,12/6/2022
Alstom Signaling Operation LLC,Capital Purchases,2648,12/13/2022
Alstom Transportation Inc.,Services,3550,1/5/2022
Alstom Transportation Inc.,Materials,93689.28,2/14/2022
Alstom Transportation Inc.,Capital Purchases,23478339,3/2/2022
Alstom Transportation Inc.,Materials,109304.16,3/11/2022
Alstom Transportation Inc.,Materials,175667.4,3/11/2022
Alstom Transportation Inc.,Capital Purchases,2982,3/11/2022
Alstom Transportation Inc.,Capital Purchases,390000,3/11/2022
Alstom Transportation Inc.,Materials,189723.2,3/21/2022
Alstom Transportation Inc.,Materials,189723.2,4/1/2022
Alstom Transportation Inc.,Capital Purchases,195000,4/1/2022
Alstom Transportation Inc.,Services,3550,4/6/2022
Alstom Transportation Inc.,Capital Purchases,2820846,4/28/2022
Alstom Transportation Inc.,Materials,292287.84,5/5/2022
Alstom Transportation Inc.,Materials,56916.96,6/3/2022
Alstom Transportation Inc.,Materials,220673.44,6/21/2022
Alstom Transportation Inc.,Capital Purchases,1988,7/1/2022
Alstom Transportation Inc.,Services,3550,7/5/2022
Alstom Transportation Inc.,Materials,254623.2,7/7/2022
Alstom Transportation Inc.,Materials,50924.64,7/7/2022
Alstom Transportation Inc.,Capital Purchases,195000,7/7/2022
Alstom Transportation Inc.,Services,3550,7/13/2022
Alstom Transportation Inc.,Services,3550,8/12/2022
Alstom Transportation Inc.,Services,3550,8/17/2022
Alstom Transportation Inc.,Materials,331010.16,9/1/2022
Alstom Transportation Inc.,Capital Purchases,23901466,9/1/2022
Alstom Transportation Inc.,Capital Purchases,390000,9/1/2022
Alstom Transportation Inc.,Materials,93361.84,10/13/2022
Alstom Transportation Inc.,Materials,2607.12,10/13/2022
Alstom Transportation Inc.,Materials,72143.24,10/13/2022
Alstom Transportation Inc.,Capital Purchases,994,10/14/2022
Alstom Transportation Inc.,Materials,166125.08,11/7/2022
Alstom Transportation Inc.,Capital Purchases,195000,12/1/2022
Alstom Transportation Inc.,Materials,189685.08,12/6/2022
Alstom Transportation Inc.,Capital Purchases,994,12/15/2022
Alta Equipment,Services,51137.42,6/22/2022
Alta Equipment,Materials,7995,11/4/2022
Alta Equipment,Materials,87.84,11/8/2022
Altec Industries  Inc.,Services,19832.69,4/14/2022
Alternate Power  Inc.,Services,2046.76,1/3/2022
Alternate Power  Inc.,Services,2334.57,2/1/2022
Alternate Power  Inc.,Services,2506.97,2/4/2022
Alternate Power  Inc.,Services,1891.33,2/10/2022
Alternate Power  Inc.,Services,99.53,2/15/2022
Alternate Power  Inc.,Services,2404.61,2/15/2022
Alternate Power  Inc.,Materials,1259.14,3/7/2022
Alternate Power  Inc.,Services,180,3/7/2022
Alternate Power  Inc.,Services,10734.99,3/7/2022
Alternate Power  Inc.,Materials,448.24,4/22/2022
Alternate Power  Inc.,Services,485.68,4/22/2022
Alternate Power  Inc.,Services,472,4/22/2022
Alternate Power  Inc.,Services,716.95,7/12/2022
Alternate Power  Inc.,Services,1637.78,9/9/2022
Alternate Power  Inc.,Services,1128.58,10/26/2022
Alternate Power  Inc.,Services,1079.98,11/7/2022
Alternate Power  Inc.,Services,11995.34,11/7/2022
Alternate Power  Inc.,Services,608.45,12/1/2022
Alternate Power  Inc.,Services,883.37,12/5/2022
Alternate Power  Inc.,Services,3203.42,12/6/2022
Alternate Power  Inc.,Services,553.03,12/6/2022
Alternate Power  Inc.,Services,4858.43,12/8/2022
Altorfer Caterpillar,Services,10210.15,5/2/2022
Altorfer Caterpillar,Services,4000,8/16/2022
Altorfer Industries Inc.,Materials,7317,1/4/2022
Altorfer Industries Inc.,Services,3768.44,1/4/2022
Altorfer Industries Inc.,Materials,153.13,3/1/2022
Altorfer Industries Inc.,Capital Purchases,17668.4,3/9/2022
Altorfer Industries Inc.,Materials,1826.88,3/15/2022
Altorfer Industries Inc.,Materials,173.06,3/22/2022
Altorfer Industries Inc.,Capital Purchases,25503.04,4/5/2022
Altorfer Industries Inc.,Capital Purchases,50833.46,4/7/2022
Altorfer Industries Inc.,Capital Purchases,51136.09,4/11/2022
Altorfer Industries Inc.,Materials,180.02,4/26/2022
Altorfer Industries Inc.,Materials,2238.89,5/2/2022
Altorfer Industries Inc.,Materials,173.91,6/8/2022
Altorfer Industries Inc.,Materials,1031.42,6/29/2022
Altorfer Industries Inc.,Materials,156.6,9/9/2022
Altorfer Industries Inc.,Materials,7119.48,9/22/2022
Altorfer Industries Inc.,Services,203,9/22/2022
Altorfer Industries Inc.,Materials,54.65,9/22/2022
Altorfer Industries Inc.,Materials,3177.7,11/15/2022
Altorfer Industries Inc.,Services,130.68,11/15/2022
Altorfer Industries Inc.,Materials,348,12/6/2022
Altorfer Industries Inc.,Materials,2624.22,12/6/2022
Alvarez  Inc.,Services,5156,1/19/2022
Alvarez  Inc.,Services,15986,1/25/2022
Alvarez  Inc.,Services,1538,1/25/2022
Alvarez  Inc.,Services,1020,1/25/2022
Alvarez  Inc.,Services,11904,1/25/2022
Alvarez  Inc.,Services,1971,5/6/2022
Alvarez  Inc.,Services,8185.5,5/6/2022
Alvarez  Inc.,Services,800,5/6/2022
Alvarez  Inc.,Services,3015,5/6/2022
Alvarez  Inc.,Services,800,6/9/2022
Alvarez  Inc.,Services,1915,6/9/2022
Alvarez  Inc.,Services,1971,6/9/2022
Alvarez  Inc.,Services,1100,6/9/2022
Alvarez  Inc.,Services,8185.5,7/8/2022
Alvarez  Inc.,Services,8185.5,8/2/2022
Alvarez  Inc.,Services,1971,8/3/2022
Alvarez  Inc.,Services,800,8/3/2022
Alvarez  Inc.,Services,1915,8/3/2022
Alvarez  Inc.,Services,1100,8/3/2022
Alvarez  Inc.,Services,1100,8/9/2022
Alvarez  Inc.,Services,800,8/9/2022
Alvarez  Inc.,Services,1915,8/9/2022
Alvarez  Inc.,Services,1971,8/9/2022
Alvarez  Inc.,Services,900,9/1/2022
Alvarez  Inc.,Services,260,9/1/2022
Alvarez  Inc.,Services,8185.5,9/12/2022
Alvarez  Inc.,Services,800,9/12/2022
Alvarez  Inc.,Services,1915,9/12/2022
Alvarez  Inc.,Services,1100,9/12/2022
Alvarez  Inc.,Services,3231,9/12/2022
Alvarez  Inc.,Services,630,9/13/2022
Alvarez  Inc.,Services,3550,9/20/2022
Alvarez  Inc.,Services,8185.5,9/27/2022
Alvarez  Inc.,Services,1125,10/13/2022
Alvarez  Inc.,Services,270,10/19/2022
Alvarez  Inc.,Services,1285,10/19/2022
Alvarez  Inc.,Services,650,11/1/2022
Alvarez  Inc.,Services,16371,11/10/2022
Alvarez  Inc.,Services,900,11/10/2022
Alvarez  Inc.,Services,1600,11/10/2022
Alvarez  Inc.,Services,5202,11/10/2022
Alvarez  Inc.,Services,3830,11/10/2022
Alvarez  Inc.,Services,2200,11/10/2022
Alvin Newman,Services,258.72,1/7/2022
Alvin Newman,Services,73.71,1/21/2022
Alvin Newman,Services,24.57,2/3/2022
Alvin Newman,Services,196.56,2/3/2022
Alvin Newman,Services,24.57,3/9/2022
Alvin Newman,Services,49.14,3/9/2022
Alvin Newman,Services,73.71,3/17/2022
Alvin Newman,Services,78.75,11/7/2022
Alvin Newman,Services,26.25,11/10/2022
Alvin T. Terry,Services,1246.42,5/24/2022
Alvin T. Terry,Services,1246.42,8/15/2022
Alvin T. Terry,Services,2560,11/2/2022
Alyssa M. Battaglia-Hofmann,Services,63.77,2/24/2022
Alyssa M. Battaglia-Hofmann,Services,9.7,2/24/2022
Alyssa M. Battaglia-Hofmann,Services,63.77,4/5/2022
Alyssa M. Battaglia-Hofmann,Services,9.7,4/5/2022
Alyssa M. Battaglia-Hofmann,Services,63.77,4/28/2022
Alyssa M. Battaglia-Hofmann,Services,9.7,4/28/2022
Amalgamated Bank Of Chicago,Services,12925.15,12/1/2022
Amazon.Com/Tool Crib,Materials,2537.34,1/6/2022
Amazon.Com/Tool Crib,Materials,627,2/11/2022
Amazon.Com/Tool Crib,Materials,185,2/11/2022
Amazon.Com/Tool Crib,Materials,1092.3,2/15/2022
Amazon.Com/Tool Crib,Materials,839.99,3/17/2022
Amazon.Com/Tool Crib,Materials,168.99,3/17/2022
Amazon.Com/Tool Crib,Materials,3593.92,3/17/2022
Amazon.Com/Tool Crib,Materials,939.99,3/17/2022
Amazon.Com/Tool Crib,Materials,342.42,3/23/2022
Amazon.Com/Tool Crib,Materials,1179.8,3/24/2022
Amazon.Com/Tool Crib,Materials,1099.23,3/24/2022
Amazon.Com/Tool Crib,Materials,2360.4,6/7/2022
Amazon.Com/Tool Crib,Materials,121.9,6/15/2022
Amazon.Com/Tool Crib,Materials,87.26,6/16/2022
Amazon.Com/Tool Crib,Materials,3574.46,6/16/2022
Amazon.Com/Tool Crib,Materials,278.99,6/16/2022
Amazon.Com/Tool Crib,Materials,3808.08,6/16/2022
Amazon.Com/Tool Crib,Materials,144.73,6/16/2022
Amazon.Com/Tool Crib,Materials,6776.43,6/16/2022
Amazon.Com/Tool Crib,Materials,1345,7/19/2022
Amazon.Com/Tool Crib,Materials,75.64,7/19/2022
Amazon.Com/Tool Crib,Materials,79.99,7/25/2022
Amazon.Com/Tool Crib,Materials,1963.46,8/16/2022
Amazon.Com/Tool Crib,Materials,91.28,8/16/2022
Amazon.Com/Tool Crib,Services,12800,8/16/2022
Amazon.Com/Tool Crib,Services,5042.19,8/16/2022
Amazon.Com/Tool Crib,Services,90,12/12/2022
Amazon.Com/Tool Crib,Materials,607.86,12/12/2022
"AMB ANESTESIOLOGISTS OF CHICAGO, LLC",Claims & Insurance,3230,3/22/2022
Amber Spencer,Services,27.2,5/25/2022
Amber Spencer,Services,941.64,5/25/2022
Amber Spencer,Services,238.81,5/25/2022
Amber Spencer,Services,241.5,5/25/2022
Amber Spencer,Services,927.66,11/2/2022
Amber Spencer,Services,205.88,11/2/2022
Amber Spencer,Services,276.5,11/2/2022
American Bar Assn.,Services,210,2/15/2022
American Calibration  Inc.,Services,66,1/3/2022
American Calibration  Inc.,Services,132,1/3/2022
American Calibration  Inc.,Services,396,1/3/2022
American Calibration  Inc.,Services,1782,1/5/2022
American Calibration  Inc.,Materials,396,2/1/2022
American Calibration  Inc.,Materials,330,2/15/2022
American Calibration  Inc.,Services,462,2/15/2022
American Calibration  Inc.,Services,132,2/15/2022
American Calibration  Inc.,Services,198,2/15/2022
American Calibration  Inc.,Services,1504.7,2/15/2022
American Calibration  Inc.,Services,462,2/22/2022
American Calibration  Inc.,Services,264,2/22/2022
American Calibration  Inc.,Services,330,2/22/2022
American Calibration  Inc.,Services,132,2/22/2022
American Calibration  Inc.,Services,132,2/22/2022
American Calibration  Inc.,Services,660,3/11/2022
American Calibration  Inc.,Services,132,3/11/2022
American Calibration  Inc.,Services,264,3/11/2022
American Calibration  Inc.,Services,396,3/11/2022
American Calibration  Inc.,Services,66,3/11/2022
American Calibration  Inc.,Services,132,3/14/2022
American Calibration  Inc.,Services,132,3/18/2022
American Calibration  Inc.,Services,99,3/23/2022
American Calibration  Inc.,Materials,66,4/28/2022
American Calibration  Inc.,Materials,66,4/28/2022
American Calibration  Inc.,Services,330,4/28/2022
American Calibration  Inc.,Services,66,4/28/2022
American Calibration  Inc.,Services,66,5/5/2022
American Calibration  Inc.,Services,109,5/13/2022
American Calibration  Inc.,Materials,264,5/13/2022
American Calibration  Inc.,Services,66,5/26/2022
American Calibration  Inc.,Services,1362,5/26/2022
American Calibration  Inc.,Materials,462,6/23/2022
American Calibration  Inc.,Services,66,6/24/2022
American Calibration  Inc.,Services,350,6/28/2022
American Calibration  Inc.,Services,700,6/30/2022
American Calibration  Inc.,Services,66,8/3/2022
American Calibration  Inc.,Services,132,8/3/2022
American Calibration  Inc.,Materials,330,9/1/2022
American Calibration  Inc.,Materials,660,9/1/2022
American Calibration  Inc.,Services,1650,9/9/2022
American Calibration  Inc.,Services,66,10/11/2022
American Calibration  Inc.,Materials,66,10/13/2022
American Calibration  Inc.,Services,158,11/1/2022
American Calibration  Inc.,Services,66,11/7/2022
American Calibration  Inc.,Services,1056,11/11/2022
American Calibration  Inc.,Services,330,12/6/2022
American Calibration  Inc.,Services,66,12/7/2022
American Calibration  Inc.,Services,132,12/9/2022
American Calibration  Inc.,Services,132,12/15/2022
"American Heritage Protective Services, Inc.",Services,34005,8/1/2022
"American Heritage Protective Services, Inc.",Services,1820,8/1/2022
"American Heritage Protective Services, Inc.",Services,37070,8/5/2022
"American Heritage Protective Services, Inc.",Services,980,8/5/2022
"American Heritage Protective Services, Inc.",Services,19955,9/1/2022
"American Heritage Protective Services, Inc.",Services,10430,9/1/2022
"American Heritage Protective Services, Inc.",Services,4915,12/2/2022
American Legal Publishing Corporation,Services,5000,7/8/2022
American Legal Publishing Corporation,Services,6840,9/12/2022
American Legal Publishing Corporation,Services,4665.5,10/26/2022
American Payroll Association,Services,275,3/30/2022
American Planning Assn.,Services,668,3/29/2022
American Planning Assn.,Services,525,12/12/2022
American Public Transit Assoc.,Services,5000,5/23/2022
American Public Transit Assoc.,Services,7500,11/2/2022
American Public Transit Assoc.,Services,500,12/28/2022
American Public Transportation Ass Meeting Department Apta,Services,500,2/15/2022
American Public Transportation Ass Meeting Department Apta,Services,500,2/15/2022
American Public Transportation Ass Meeting Department Apta,Services,500,2/15/2022
American Public Transportation Ass Meeting Department Apta,Services,125,2/22/2022
American Public Transportation Ass Meeting Department Apta,Services,295,3/9/2022
American Public Transportation Ass Meeting Department Apta,Services,295,3/9/2022
American Public Transportation Ass Meeting Department Apta,Services,295,3/9/2022
American Solutions For Business,Services,11935.01,1/20/2022
American Solutions For Business,Services,37237.2,1/26/2022
American Solutions For Business,Services,8877.2,4/8/2022
American Solutions For Business,Services,17754.4,4/26/2022
American Solutions For Business,Services,26631.6,7/25/2022
American Solutions For Business,Services,15710,9/12/2022
American Solutions For Business,Services,32300,9/14/2022
American Solutions For Business,Services,16989.7,9/22/2022
American Solutions For Business,Services,39760.1,11/22/2022
American Solutions For Business,Materials,6932.16,12/12/2022
American Welding Society,Services,740,6/20/2022
Amerigas,Materials,217.59,1/5/2022
Amerigas,Materials,158.89,2/17/2022
Amerigas,Materials,149.77,4/13/2022
Amerigas,Materials,616.99,4/13/2022
Amerigas,Materials,308.28,6/1/2022
Amerigas,Materials,1756.99,7/27/2022
Amerigas,Materials,5808.22,7/28/2022
Amerigas,Materials,205.5,8/1/2022
Amerigas,Materials,18480.83,8/1/2022
Amerigas,Materials,764.24,8/15/2022
Amerigas,Services,420.38,8/15/2022
Amerigas,Materials,353.68,8/15/2022
Amerigas,Materials,247.56,10/1/2022
Amerigas,Materials,391.98,10/1/2022
Amerigas,Materials,750.92,10/14/2022
Amerigas,Materials,709.62,10/25/2022
Amerigas,Materials,433.12,10/28/2022
"Amsted Rail Company, Inc.",Capital Purchases,99153,2/1/2022
"Amsted Rail Company, Inc.",Capital Purchases,43227.04,2/1/2022
"Amsted Rail Company, Inc.",Capital Purchases,23920,3/7/2022
"Amsted Rail Company, Inc.",Capital Purchases,15450,3/7/2022
"Amsted Rail Company, Inc.",Capital Purchases,44252.2,3/7/2022
"Amsted Rail Company, Inc.",Capital Purchases,49216.8,3/15/2022
"Amsted Rail Company, Inc.",Capital Purchases,24258.56,3/22/2022
"Amsted Rail Company, Inc.",Capital Purchases,14523,4/1/2022
"Amsted Rail Company, Inc.",Capital Purchases,20169,4/6/2022
"Amsted Rail Company, Inc.",Capital Purchases,26500,5/3/2022
"Amsted Rail Company, Inc.",Capital Purchases,83720,5/4/2022
"Amsted Rail Company, Inc.",Capital Purchases,26450.4,5/5/2022
"Amsted Rail Company, Inc.",Capital Purchases,59800,5/26/2022
"Amsted Rail Company, Inc.",Capital Purchases,59800,6/22/2022
"Amsted Rail Company, Inc.",Capital Purchases,11960,9/9/2022
"Amsted Rail Company, Inc.",Materials,6300,9/14/2022
"Amsted Rail Company, Inc.",Capital Purchases,71760,10/1/2022
"Amsted Rail Company, Inc.",Capital Purchases,23920,10/7/2022
Analytic Systems,Services,3472.5,2/3/2022
Analytic Systems,Capital Purchases,67770,2/10/2022
Analytic Systems,Materials,694.5,4/13/2022
Analytic Systems,Materials,4518,4/21/2022
Analytic Systems,Materials,4518,5/2/2022
Analytic Systems,Materials,4518,5/6/2022
Analytic Systems,Materials,694.5,5/24/2022
Analytic Systems,Materials,1389,5/24/2022
Analytic Systems,Materials,9036,9/13/2022
Analytic Systems,Materials,1909,12/6/2022
Anchor Brake Shoe Co.,Materials,66844.8,1/3/2022
Anchor Brake Shoe Co.,Materials,2088.9,1/4/2022
Anchor Brake Shoe Co.,Materials,20889,1/25/2022
Anchor Brake Shoe Co.,Materials,27155.7,2/1/2022
Anchor Brake Shoe Co.,Materials,4177.8,3/7/2022
Anchor Brake Shoe Co.,Materials,58191.3,3/7/2022
Anchor Brake Shoe Co.,Materials,8355.6,3/15/2022
Anchor Brake Shoe Co.,Materials,9720,3/17/2022
Anchor Brake Shoe Co.,Materials,14622.3,3/25/2022
Anchor Brake Shoe Co.,Materials,6266.7,3/28/2022
Anchor Brake Shoe Co.,Materials,19440,4/6/2022
Anchor Brake Shoe Co.,Materials,9720,4/6/2022
Anchor Brake Shoe Co.,Materials,12533.4,4/19/2022
Anchor Brake Shoe Co.,Materials,36833.4,5/2/2022
Anchor Brake Shoe Co.,Materials,12533.4,5/19/2022
Anchor Brake Shoe Co.,Materials,24300,5/24/2022
Anchor Brake Shoe Co.,Materials,10444.5,6/8/2022
Anchor Brake Shoe Co.,Materials,10444.5,7/20/2022
Anchor Brake Shoe Co.,Materials,10444.5,7/25/2022
Anchor Brake Shoe Co.,Materials,16711.2,8/31/2022
Anchor Brake Shoe Co.,Materials,10444.5,9/1/2022
Anchor Brake Shoe Co.,Materials,12533.4,9/13/2022
Anchor Brake Shoe Co.,Materials,20889,9/20/2022
Anchor Brake Shoe Co.,Materials,10444.5,11/11/2022
Anchor Brake Shoe Co.,Materials,10444.5,11/15/2022
Anchor Brake Shoe Co.,Materials,4177.8,12/6/2022
Anchor Brake Shoe Co.,Materials,12533.4,12/13/2022
Anderson Lock Co.,Materials,1288,4/29/2022
Andre Hunt,Services,185,5/12/2022
Andre Hunt,Services,45,5/12/2022
Andre Hunt,Services,398.12,5/12/2022
Andre Hunt,Services,62.5,5/12/2022
Andre Hunt,Services,597.27,10/3/2022
Andre Hunt,Services,30,10/3/2022
Andre Hunt,Services,60,10/3/2022
Andre Hunt,Services,241.5,10/3/2022
Andre R. Feliciano,Services,93.6,5/12/2022
Andre R. Feliciano,Services,37.44,6/6/2022
Andre R. Feliciano,Services,46.8,7/25/2022
Andre R. Feliciano,Services,50,12/16/2022
Andrea Clunie,Services,10,2/15/2022
Andres Hernandez Rodriguez,Services,678,6/16/2022
Andres Hernandez Rodriguez,Services,847.5,7/6/2022
Andres Hernandez Rodriguez,Services,734.5,7/20/2022
Andres Hernandez Rodriguez,Services,734.5,8/3/2022
Andres Hernandez Rodriguez,Services,678,8/16/2022
Andres Hernandez Rodriguez,Services,621.5,9/1/2022
Andres Hernandez Rodriguez,Services,678,9/19/2022
Andres Hernandez Rodriguez,Services,678,10/6/2022
Andrew Shay,Services,323.86,6/22/2022
Andrew Shay,Services,147.5,6/22/2022
Andy C. Flores,Services,621.5,5/23/2022
Andy C. Flores,Services,734.5,6/14/2022
Andy C. Flores,Services,791,6/30/2022
Andy C. Flores,Services,508.5,8/1/2022
Andy C. Flores,Services,565,8/15/2022
Andy C. Flores,Services,734.5,8/30/2022
Andy C. Flores,Services,621.5,9/14/2022
Andy C. Flores,Services,1582,10/6/2022
Angel Chavez,Services,678,5/12/2022
Angel Chavez,Services,734.5,5/24/2022
Angel Chavez,Services,678,6/13/2022
Angel Chavez,Services,678,6/27/2022
Angel Chavez,Services,791,7/21/2022
Angel Chavez,Services,678,8/1/2022
Angel Chavez,Services,678,8/15/2022
Angel Chavez,Services,621.5,8/30/2022
Angel Chavez,Services,621.5,9/14/2022
Angel Chavez,Services,791,10/6/2022
Angel Chavez,Services,678,10/19/2022
Angel Chavez,Services,847.5,11/1/2022
Angel Chavez,Services,621.5,11/16/2022
Angel Chavez,Services,904,11/28/2022
Angel Chavez,Services,678,12/6/2022
Angel Chavez,Services,678,12/23/2022
Anita Ayala-Ortega,Services,35.1,2/14/2022
Anita Ayala-Ortega,Services,53.82,4/13/2022
Anita Ayala-Ortega,Services,37.5,9/14/2022
Anita Ayala-Ortega,Services,190,10/3/2022
Anita Ayala-Ortega,Services,57.5,10/25/2022
Ann Cordes,Claims & Insurance,20,9/29/2022
Anthem Insurance Companies  Inc.,Services,23681.67,11/15/2022
Anthem Insurance Companies  Inc.,Services,94726.68,12/13/2022
Anthony B. Davis,Services,53.82,2/14/2022
Anthony B. Davis,Services,53.82,3/10/2022
Anthony B. Davis,Services,57.5,9/14/2022
Anthony B. Davis,Services,37.5,11/17/2022
Anthony Cintron,Services,210,10/19/2022
Anthony Cintron,Services,131.25,11/17/2022
Anthony Cintron,Services,26.25,11/17/2022
Anthony Dellorto,Services,61.94,7/25/2022
Anthony Dellorto,Services,126,7/25/2022
Anthony Dellorto,Services,197.5,7/25/2022
Anthony Dellorto,Services,760.04,7/25/2022
Anthony E. Jones,Services,25,2/9/2022
Anthony E. Jones,Services,92.5,8/10/2022
ANTHONY SIRIANO,Services,469.22,11/14/2022
ANTHONY SIRIANO,Services,200.43,11/14/2022
ANTHONY SIRIANO,Services,197.5,11/14/2022
Antoine Haynes,Services,26.25,11/15/2022
Antoine L. Lowery,Services,266.5,9/12/2022
ANTONIO LLOYD,Services,452,6/10/2022
ANTONIO LLOYD,Services,621.5,6/27/2022
ANTONIO LLOYD,Services,565,7/20/2022
ANTONIO LLOYD,Services,621.5,8/3/2022
ANTONIO LLOYD,Services,282.5,8/29/2022
ANTONIO MANZO,Services,225,9/20/2022
AP Electric & Generators LLC,Materials,9271.9,6/16/2022
Appalachian Timber Services LLC,Materials,18510,3/15/2022
Appalachian Timber Services LLC,Materials,37020,3/15/2022
Appalachian Timber Services LLC,Materials,18510,3/15/2022
Appalachian Timber Services LLC,Materials,37020,3/22/2022
Appalachian Timber Services LLC,Materials,74040,3/24/2022
Appalachian Timber Services LLC,Materials,18510,3/29/2022
Appalachian Timber Services LLC,Materials,92550,3/29/2022
Appalachian Timber Services LLC,Materials,37020,4/1/2022
Appalachian Timber Services LLC,Materials,55530,4/6/2022
Appalachian Timber Services LLC,Materials,36780,10/24/2022
Apperson  Inc,Materials,518,10/18/2022
Apperson  Inc,Services,62.74,10/18/2022
April Kilgore,Services,1604,1/12/2022
April Kilgore,Services,3207,7/15/2022
April Kilgore,Services,2043,12/23/2022
Aql Technologies  Inc.,Services,18480,2/15/2022
Aql Technologies  Inc.,Services,17600,2/18/2022
Aql Technologies  Inc.,Services,17600,4/1/2022
Aql Technologies  Inc.,Services,17600,4/8/2022
Aql Technologies  Inc.,Services,20240,5/6/2022
Aql Technologies  Inc.,Services,18480,5/24/2022
Aql Technologies  Inc.,Services,12320,6/16/2022
Aql Technologies  Inc.,Services,35915,9/1/2022
Aql Technologies  Inc.,Services,20240,9/20/2022
Aql Technologies  Inc.,Services,7040,10/18/2022
Aql Technologies  Inc.,Services,20160,12/6/2022
Aql Technologies  Inc.,Services,19200,12/13/2022
Aqua Chill of Chicago LLC,Rental Expense,1505,5/19/2022
Aqua Chill of Chicago LLC,Rental Expense,1505,5/24/2022
Aqua Chill of Chicago LLC,Rental Expense,1505,6/22/2022
Aqua Chill of Chicago LLC,Rental Expense,1505,7/25/2022
Aqua Chill of Chicago LLC,Rental Expense,1505,9/20/2022
Aqua Chill of Chicago LLC,Rental Expense,1505,10/14/2022
Aqua Chill of Chicago LLC,Rental Expense,1505,11/4/2022
Aqua Chill of Chicago LLC,Rental Expense,1505,12/6/2022
Aqua Illinois,Utilities,89.13,1/13/2022
Aqua Illinois,Utilities,101.16,2/3/2022
Aqua Illinois,Utilities,197.84,3/8/2022
Aqua Illinois,Utilities,85.9,5/2/2022
Aqua Illinois,Utilities,147.01,6/14/2022
Aqua Illinois,Utilities,316.46,7/19/2022
Aqua Illinois,Utilities,81.77,7/28/2022
Aqua Illinois,Utilities,86.48,9/7/2022
Aqua Illinois,Utilities,82.68,10/3/2022
Aqua Illinois,Utilities,137.38,11/2/2022
Aqua Illinois,Utilities,83.74,12/12/2022
Arc Document Solutions LLC,Services,4174.58,2/1/2022
Arcadis Us  Inc.,Capital Purchases,32223.85,1/13/2022
Arcadis Us  Inc.,Capital Purchases,26269.33,1/24/2022
Arcadis Us  Inc.,Capital Purchases,41266.52,2/1/2022
Arcadis Us  Inc.,Capital Purchases,24834.05,2/15/2022
Arcadis Us  Inc.,Capital Purchases,13653.82,2/23/2022
Arcadis Us  Inc.,Capital Purchases,20437.57,3/2/2022
Arcadis Us  Inc.,Services,9500,3/2/2022
Arcadis Us  Inc.,Capital Purchases,38541.81,3/2/2022
Arcadis Us  Inc.,Capital Purchases,30330.93,3/3/2022
Arcadis Us  Inc.,Capital Purchases,19207.05,3/17/2022
Arcadis Us  Inc.,Capital Purchases,784.08,3/29/2022
Arcadis Us  Inc.,Capital Purchases,35483.3,4/1/2022
Arcadis Us  Inc.,Services,35765.17,4/21/2022
Arcadis Us  Inc.,Services,9500,4/21/2022
Arcadis Us  Inc.,Capital Purchases,26362.09,5/2/2022
Arcadis Us  Inc.,Capital Purchases,35078.83,5/24/2022
Arcadis Us  Inc.,Capital Purchases,38864.82,6/1/2022
Arcadis Us  Inc.,Capital Purchases,124554.33,6/7/2022
Arcadis Us  Inc.,Capital Purchases,128573.67,6/22/2022
Arcadis Us  Inc.,Capital Purchases,6470.24,6/28/2022
Arcadis Us  Inc.,Services,17882.58,7/1/2022
Arcadis Us  Inc.,Capital Purchases,103348.39,7/6/2022
Arcadis Us  Inc.,Capital Purchases,6923.69,7/6/2022
Arcadis Us  Inc.,Capital Purchases,33115.66,7/7/2022
Arcadis Us  Inc.,Services,12449.01,7/20/2022
Arcadis Us  Inc.,Capital Purchases,142499.79,7/25/2022
Arcadis Us  Inc.,Capital Purchases,63111.96,7/25/2022
Arcadis Us  Inc.,Capital Purchases,20653.77,8/1/2022
Arcadis Us  Inc.,Capital Purchases,41161.66,9/1/2022
Arcadis Us  Inc.,Capital Purchases,48717.41,9/2/2022
Arcadis Us  Inc.,Capital Purchases,99466.91,9/2/2022
Arcadis Us  Inc.,Capital Purchases,51204.51,9/14/2022
Arcadis Us  Inc.,Services,10336.09,9/14/2022
Arcadis Us  Inc.,Capital Purchases,17529.23,9/21/2022
Arcadis Us  Inc.,Capital Purchases,83997.31,9/21/2022
Arcadis Us  Inc.,Capital Purchases,14325.64,9/22/2022
Arcadis Us  Inc.,Capital Purchases,84582.93,10/1/2022
Arcadis Us  Inc.,Capital Purchases,10647.69,10/1/2022
Arcadis Us  Inc.,Capital Purchases,63416.67,10/7/2022
Arcadis Us  Inc.,Capital Purchases,11058.36,10/24/2022
Arcadis Us  Inc.,Capital Purchases,30995.09,11/1/2022
Arcadis Us  Inc.,Capital Purchases,78732.34,11/4/2022
Arcadis Us  Inc.,Services,3933.01,11/4/2022
Arcadis Us  Inc.,Services,15000,11/4/2022
Arcadis Us  Inc.,Capital Purchases,46984.21,11/15/2022
Arcadis Us  Inc.,Capital Purchases,29968.79,12/1/2022
Arcadis Us  Inc.,Capital Purchases,41095.31,12/6/2022
Arcadis Us  Inc.,Capital Purchases,10293.17,12/6/2022
Arcadis Us  Inc.,Capital Purchases,32025.67,12/9/2022
Arcadis Us  Inc.,Capital Purchases,63081.19,12/12/2022
Arcadis Us  Inc.,Capital Purchases,104986.52,12/12/2022
Arcadis Us  Inc.,Capital Purchases,430555.48,12/21/2022
Arcus Corp. DBA Mart Tech Services,Services,310,10/1/2022
Arcus Corp. DBA Mart Tech Services,Materials,1143.12,10/1/2022
Arema,Services,5200,12/16/2022
Argo Inc.,Services,276450,2/1/2022
Ariadne Maps GmbH,Services,5000,2/17/2022
Ariadne Maps GmbH,Services,5000,11/1/2022
Arlington Park Racecourse Llc Churchill Downs Inc.,Rental Expense,20815.56,3/8/2022
Arlington Park Racecourse Llc Churchill Downs Inc.,Rental Expense,41631.12,3/11/2022
Arlington Park Racecourse Llc Churchill Downs Inc.,Rental Expense,41631.12,5/9/2022
Arlington Park Racecourse Llc Churchill Downs Inc.,Rental Expense,20815.56,6/7/2022
Arlington Park Racecourse Llc Churchill Downs Inc.,Rental Expense,20815.56,7/6/2022
Arlington Park Racecourse Llc Churchill Downs Inc.,Rental Expense,20815.56,8/5/2022
Arlington Park Racecourse Llc Churchill Downs Inc.,Rental Expense,20815.56,9/15/2022
Arlington Park Racecourse Llc Churchill Downs Inc.,Rental Expense,20815.56,10/5/2022
Arlington Park Racecourse Llc Churchill Downs Inc.,Rental Expense,20815.56,11/8/2022
Arlington Park Racecourse Llc Churchill Downs Inc.,Rental Expense,20815.56,12/6/2022
Armando Palacios,Services,565,5/23/2022
Armando Palacios,Services,678,6/10/2022
Armando Palacios,Services,791,6/29/2022
Armando Palacios,Services,791,7/20/2022
Armando Palacios,Services,791,8/3/2022
Armando Palacios,Services,565,8/11/2022
Armando Palacios,Services,734.5,8/29/2022
Armando Palacios,Services,678,9/15/2022
Armando Palacios,Services,847.5,10/4/2022
Arnold Holder,Services,337.43,1/18/2022
Arnold Holder,Services,363.89,2/7/2022
Arnold Holder,Services,219.52,3/7/2022
Arnold Holder,Services,432.87,4/11/2022
Arnold Holder,Services,462.65,5/10/2022
Arnold Holder,Services,349.12,6/6/2022
Arnold Holder,Services,313.14,7/11/2022
Arnold Holder,Services,484.1,8/16/2022
Arnold Holder,Services,690.54,9/7/2022
Arnold Holder,Services,661.94,10/11/2022
Arnold Holder,Services,540.11,11/10/2022
Arnold Holder,Services,453.21,12/6/2022
Arnold Maxey,Services,282.24,1/6/2022
Arnold Maxey,Services,312.74,2/1/2022
Arnold Maxey,Services,260.21,2/9/2022
Arnold Maxey,Services,332.98,2/25/2022
Arnold Maxey,Services,244.88,3/7/2022
Arnold Maxey,Services,365.51,3/21/2022
Arnold Maxey,Services,257.75,3/30/2022
Arnold Maxey,Services,242.78,4/22/2022
Arnold Maxey,Services,341.87,5/9/2022
Arnold Maxey,Services,401.43,5/18/2022
Arnold Maxey,Services,329.36,6/6/2022
Arnold Maxey,Services,304.43,6/27/2022
Arnold Maxey,Services,199.49,6/29/2022
Arnold Maxey,Services,307.88,7/21/2022
Arnold Maxey,Services,362.63,8/8/2022
Arnold Maxey,Services,296.75,8/17/2022
Arnold Maxey,Services,250.5,9/12/2022
Arnold Maxey,Services,351.5,9/28/2022
Arnold Maxey,Services,261.63,10/5/2022
Arnold Maxey,Services,388.63,10/17/2022
Arnold Maxey,Services,362.63,11/8/2022
Arnold Maxey,Services,382.63,11/21/2022
Arnold Maxey,Services,224.25,12/6/2022
Ars Corp.,Services,40281.36,1/6/2022
Ars Corp.,Services,1818.8,3/14/2022
Ars Corp.,Services,4451.2,7/5/2022
Ars Corp.,Services,10912.8,7/6/2022
Ars Corp.,Services,91537.7,7/6/2022
Ars Corp.,Services,12120.64,7/26/2022
Ars Corp.,Services,30728,7/26/2022
Ars Corp.,Services,10912.8,8/4/2022
Ars Corp.,Capital Purchases,5564,8/19/2022
Ars Corp.,Services,4451.2,9/1/2022
Ars Corp.,Services,17427.76,9/9/2022
Ars Corp.,Services,6120.4,9/9/2022
Ars Corp.,Services,8143.2,9/9/2022
Ars Corp.,Services,19791.4,9/22/2022
Ars Corp.,Services,37085.68,9/26/2022
Ars Corp.,Services,55060.36,9/26/2022
Ars Corp.,Services,3934.96,9/28/2022
Ars Corp.,Services,3637.6,10/12/2022
Ars Corp.,Services,4750.4,10/12/2022
Ars Corp.,Services,19322.96,11/11/2022
Ars Corp.,Services,3637.6,12/1/2022
Ars Corp.,Services,10571.6,12/1/2022
Ars Corp.,Services,10912.8,12/6/2022
Ars Corp.,Services,26276.8,12/15/2022
Arsenio Pomales,Services,101.32,3/9/2022
Arsenio Pomales,Services,47.5,3/25/2022
Arsenio Pomales,Services,54.76,5/9/2022
Arsenio Pomales,Services,86.46,7/7/2022
Arsenio Pomales,Services,92.2,8/1/2022
Arsenio Pomales,Services,73.75,9/6/2022
Arsenio Pomales,Services,107.5,9/21/2022
Arsenio Pomales,Services,30,10/18/2022
Arsenio Pomales,Services,97.5,11/16/2022
Artemio Santoyo,Services,395.5,5/24/2022
Artemio Santoyo,Services,734.5,6/13/2022
Artemio Santoyo,Services,621.5,8/16/2022
Artemio Santoyo,Services,734.5,9/1/2022
Artemio Santoyo,Services,734.5,9/14/2022
Artemio Santoyo,Services,734.5,10/10/2022
Arthur J Gallagher Risk Management Risk Management Services  Inc.,Claims & Insurance,72000,1/6/2022
Arthur J Gallagher Risk Management Risk Management Services  Inc.,Claims & Insurance,23227,1/10/2022
Arthur J Gallagher Risk Management Risk Management Services  Inc.,Claims & Insurance,65001,1/27/2022
Arthur J Gallagher Risk Management Risk Management Services  Inc.,Claims & Insurance,26412,3/16/2022
Arthur J Gallagher Risk Management Risk Management Services  Inc.,Claims & Insurance,33671,4/26/2022
Arthur J Gallagher Risk Management Risk Management Services  Inc.,Claims & Insurance,2671161,7/20/2022
Arthur J Gallagher Risk Management Risk Management Services  Inc.,Claims & Insurance,125267,7/20/2022
Arthur J Gallagher Risk Management Risk Management Services  Inc.,Claims & Insurance,527240,7/20/2022
Arthur J Gallagher Risk Management Risk Management Services  Inc.,Services,13875,8/16/2022
Arthur J Gallagher Risk Management Risk Management Services  Inc.,Claims & Insurance,4762535.52,8/16/2022
Arthur J Gallagher Risk Management Risk Management Services  Inc.,Claims & Insurance,464016,8/16/2022
Arthur J Gallagher Risk Management Risk Management Services  Inc.,Claims & Insurance,111861,8/16/2022
Arthur J Gallagher Risk Management Risk Management Services  Inc.,Services,17500,8/18/2022
Arthur J Gallagher Risk Management Risk Management Services  Inc.,Services,30525,8/25/2022
Arthur J Gallagher Risk Management Risk Management Services  Inc.,Claims & Insurance,98396,9/12/2022
Arthur J Gallagher Risk Management Risk Management Services  Inc.,Claims & Insurance,72000,11/11/2022
Arthur J Gallagher Risk Management Risk Management Services  Inc.,Services,15050,11/18/2022
Arthur J Gallagher Risk Management Risk Management Services  Inc.,Claims & Insurance,340,12/1/2022
Arthur J Gallagher Risk Management Risk Management Services  Inc.,Services,123091.6,12/14/2022
Arthur Louis Supply Company,Materials,5322.24,12/12/2022
Arturo J Mota,Services,114.84,2/9/2022
Arturo J Mota,Services,324.85,3/2/2022
Arturo J Mota,Services,236.4,4/4/2022
Arturo J Mota,Services,8.54,4/22/2022
Arturo J Mota,Services,1066.8,4/22/2022
Arturo J Mota,Services,120,4/22/2022
Arturo J Mota,Services,224,4/22/2022
Arturo J Mota,Services,331.99,5/4/2022
Arturo J Mota,Services,670.47,6/6/2022
Arturo J Mota,Services,565.87,7/12/2022
Arturo J Mota,Services,522.5,8/8/2022
Arturo J Mota,Services,339.38,9/7/2022
Arturo J Mota,Services,451.25,10/5/2022
Arturo J Mota,Services,281.88,11/9/2022
Arturo J Mota,Services,405.63,12/6/2022
Arturo J Mota,Services,228.75,12/23/2022
Aruj Chaudhry,Services,1588.68,3/29/2022
Aruj Chaudhry,Services,16.15,3/29/2022
Aruj Chaudhry,Services,297,3/29/2022
Aruj Chaudhry,Services,96.89,3/29/2022
Aruj Chaudhry,Services,56.33,5/2/2022
Aruj Chaudhry,Services,14.74,5/2/2022
Aruj Chaudhry,Services,355.5,5/2/2022
Aruj Chaudhry,Services,2281.35,5/2/2022
Aruj Chaudhry,Services,1501.87,6/21/2022
Aruj Chaudhry,Services,434.5,6/21/2022
Aruj Chaudhry,Services,184.4,6/30/2022
Aruj Chaudhry,Services,629,6/30/2022
Aruj Chaudhry,Services,70,6/30/2022
Aruj Chaudhry,Services,3208.88,6/30/2022
Asas/Tysol  Inc.,Materials,62370,1/4/2022
Asas/Tysol  Inc.,Materials,3555,8/2/2022
"Asplundh Tree Expert, LLC",Services,7200,1/3/2022
"Asplundh Tree Expert, LLC",Services,62308.49,9/2/2022
"Asplundh Tree Expert, LLC",Services,44648.19,9/2/2022
"Asplundh Tree Expert, LLC",Services,69641.7,9/2/2022
"Asplundh Tree Expert, LLC",Services,13182,12/5/2022
ASQ,Services,169,3/2/2022
ASQ,Services,1224,3/10/2022
Assn. Of American Railroads (AAR),Services,2003,2/1/2022
Assn. Of American Railroads (AAR),Services,2003,2/25/2022
Assn. Of American Railroads (AAR),Services,2003,3/28/2022
Assn. Of American Railroads (AAR),Services,75701,4/21/2022
Assn. Of American Railroads (AAR),Services,2003,4/28/2022
Assn. Of American Railroads (AAR),Services,2003,5/26/2022
Assn. Of American Railroads (AAR),Services,2003,7/25/2022
Assn. Of American Railroads (AAR),Services,2003,7/26/2022
Assn. Of American Railroads (AAR),Services,2003,8/25/2022
Assn. Of American Railroads (AAR),Services,2003,9/30/2022
Assn. Of American Railroads (AAR),Services,2003,11/2/2022
Assn. Of American Railroads (AAR),Services,2003,11/22/2022
Assn. Of American Railroads (AAR),Services,615,12/22/2022
Association for Financial Professionals,Services,495,2/8/2022
Association of Government Accountants,Services,137,3/29/2022
AT & T,Utilities,58.15,2/4/2022
AT & T,Utilities,1927.04,2/4/2022
AT & T,Utilities,40008.52,2/4/2022
AT & T,Utilities,6339.94,2/4/2022
AT & T,Utilities,6206.91,2/4/2022
AT & T,Utilities,859.53,2/4/2022
AT & T,Utilities,5261.75,2/4/2022
AT & T,Utilities,3902,2/4/2022
AT & T,Utilities,70257.28,2/4/2022
AT & T,Utilities,15594.9,2/4/2022
AT & T,Utilities,1927.04,2/4/2022
AT & T,Utilities,47355.78,2/4/2022
AT & T,Utilities,2282.81,2/4/2022
AT & T,Utilities,5227.54,2/4/2022
AT & T,Utilities,12062.9,2/4/2022
AT & T,Utilities,3900,2/4/2022
AT & T,Utilities,8804.51,2/4/2022
AT & T,Utilities,8805.98,2/4/2022
AT & T,Utilities,39853.37,2/4/2022
AT & T,Utilities,13255.92,2/4/2022
AT & T,Utilities,12915.12,2/4/2022
AT & T,Utilities,75045.23,2/4/2022
AT & T,Utilities,1221.4,2/8/2022
AT & T,Utilities,347.42,2/8/2022
AT & T,Utilities,941.43,2/8/2022
AT & T,Utilities,6883.35,2/8/2022
AT & T,Utilities,13322.36,2/8/2022
AT & T,Utilities,7630.69,2/8/2022
AT & T,Utilities,3294.14,2/8/2022
AT & T,Utilities,3294.14,2/8/2022
AT & T,Utilities,7630.69,2/8/2022
AT & T,Utilities,369260.48,2/8/2022
AT & T,Utilities,961.39,2/8/2022
AT & T,Utilities,4868.86,2/8/2022
AT & T,Utilities,4721.83,2/8/2022
AT & T,Utilities,344.02,2/8/2022
AT & T,Utilities,7.28,2/9/2022
AT & T,Utilities,17729.9,2/9/2022
AT & T,Utilities,6835.5,2/9/2022
AT & T,Utilities,47355.78,2/9/2022
AT & T,Utilities,13101,2/9/2022
AT & T,Utilities,2068.68,2/9/2022
AT & T,Utilities,859.94,2/9/2022
AT & T,Utilities,17685.7,2/9/2022
AT & T,Utilities,5261.75,2/9/2022
AT & T,Utilities,1256.05,2/9/2022
AT & T,Utilities,1256.05,2/9/2022
AT & T,Utilities,847,2/9/2022
AT & T,Utilities,12062.9,2/9/2022
AT & T,Utilities,367380.57,2/16/2022
AT & T,Utilities,1927.04,2/16/2022
AT & T,Utilities,56.39,2/16/2022
AT & T,Utilities,1058.08,2/16/2022
AT & T,Utilities,1256.05,2/28/2022
AT & T,Utilities,12915.12,2/28/2022
AT & T,Utilities,8782.25,2/28/2022
AT & T,Utilities,3255.35,2/28/2022
AT & T,Utilities,17685.7,2/28/2022
AT & T,Utilities,78892.43,2/28/2022
AT & T,Utilities,1210.35,2/28/2022
AT & T,Utilities,3294.14,2/28/2022
AT & T,Utilities,343.81,2/28/2022
AT & T,Utilities,5165.38,2/28/2022
AT & T,Utilities,39977.75,2/28/2022
AT & T,Utilities,321076.73,3/16/2022
AT & T,Utilities,6917.53,3/16/2022
AT & T,Utilities,1927.04,3/16/2022
AT & T,Utilities,13275.59,3/16/2022
AT & T,Utilities,2293.79,3/16/2022
AT & T,Utilities,7630.69,3/16/2022
AT & T,Utilities,3900,3/16/2022
AT & T,Utilities,17009.81,3/16/2022
AT & T,Utilities,15935.13,3/16/2022
AT & T,Utilities,56.39,3/16/2022
AT & T,Utilities,863.7,3/16/2022
AT & T,Utilities,5167.82,3/16/2022
AT & T,Utilities,10003.47,3/16/2022
AT & T,Utilities,41095.75,3/16/2022
AT & T,Utilities,1100.3,3/16/2022
AT & T,Utilities,4721.83,3/16/2022
AT & T,Utilities,6405.03,3/16/2022
AT & T,Utilities,12216.33,3/16/2022
AT & T,Utilities,47355.78,3/16/2022
AT & T,Utilities,2280.3,3/16/2022
AT & T,Utilities,5261.75,3/16/2022
AT & T,Utilities,12915.12,3/16/2022
AT & T,Utilities,82137.72,3/16/2022
AT & T,Utilities,1713.42,3/23/2022
AT & T,Utilities,3780,3/23/2022
AT & T,Utilities,3780,3/23/2022
AT & T,Utilities,5187.9,4/22/2022
AT & T,Utilities,5344.29,4/22/2022
AT & T,Utilities,17685.7,4/22/2022
AT & T,Utilities,12915.12,4/22/2022
AT & T,Utilities,344.46,4/22/2022
AT & T,Utilities,3900,4/22/2022
AT & T,Utilities,135968.05,4/22/2022
AT & T,Utilities,2277.58,4/22/2022
AT & T,Utilities,40618.27,4/22/2022
AT & T,Utilities,350.88,4/22/2022
AT & T,Utilities,6201.94,4/22/2022
AT & T,Utilities,48098.6,4/22/2022
AT & T,Utilities,1927.04,4/22/2022
AT & T,Utilities,847,4/22/2022
AT & T,Utilities,13410.59,4/22/2022
AT & T,Utilities,18068.12,4/22/2022
AT & T,Utilities,12062.9,4/22/2022
AT & T,Utilities,42210.35,4/22/2022
AT & T,Utilities,1141.38,4/25/2022
AT & T,Utilities,1210.35,4/25/2022
AT & T,Utilities,56.39,4/25/2022
AT & T,Utilities,3255.35,4/25/2022
AT & T,Utilities,1151.29,4/25/2022
AT & T,Utilities,4721.83,4/25/2022
AT & T,Utilities,6835.5,4/25/2022
AT & T,Utilities,1210.35,4/25/2022
AT & T,Utilities,3346.85,4/25/2022
AT & T,Utilities,17685.7,4/25/2022
AT & T,Utilities,1256.05,4/25/2022
AT & T,Utilities,13103.36,4/25/2022
AT & T,Utilities,3294.14,5/2/2022
AT & T,Utilities,13049.07,5/2/2022
AT & T,Utilities,6835.5,5/2/2022
AT & T,Utilities,3255.35,5/2/2022
AT & T,Utilities,4669.01,5/2/2022
AT & T,Utilities,847,5/5/2022
AT & T,Utilities,1221.4,5/5/2022
AT & T,Utilities,1210.35,5/5/2022
AT & T,Utilities,12082.1,5/5/2022
AT & T,Utilities,5159.29,5/16/2022
AT & T,Utilities,1927.04,5/16/2022
AT & T,Utilities,1224.77,5/16/2022
AT & T,Utilities,996803.14,5/17/2022
AT & T,Utilities,1228.18,5/17/2022
AT & T,Utilities,10325.78,5/17/2022
AT & T,Utilities,12915.12,5/17/2022
AT & T,Utilities,5336.79,5/17/2022
AT & T,Utilities,41678.02,5/17/2022
AT & T,Utilities,48031.07,5/17/2022
AT & T,Utilities,55.76,5/17/2022
AT & T,Utilities,10290.5,5/17/2022
AT & T,Utilities,7630.69,6/1/2022
AT & T,Utilities,72235.87,6/1/2022
AT & T,Utilities,3284.65,6/1/2022
AT & T,Utilities,6286.87,6/1/2022
AT & T,Utilities,1210.35,6/1/2022
AT & T,Utilities,7630.69,6/1/2022
AT & T,Utilities,7547.18,6/1/2022
AT & T,Utilities,3900,6/1/2022
AT & T,Utilities,2312,6/1/2022
AT & T,Utilities,3323.79,6/1/2022
AT & T,Utilities,17685.7,6/1/2022
AT & T,Utilities,19613.22,6/1/2022
AT & T,Utilities,342.98,6/1/2022
AT & T,Utilities,849.09,6/20/2022
AT & T,Utilities,12120.44,6/21/2022
AT & T,Utilities,1927.04,6/21/2022
AT & T,Utilities,1176.05,6/21/2022
AT & T,Utilities,5336.79,6/21/2022
AT & T,Utilities,75122.55,6/21/2022
AT & T,Utilities,13051.9,6/21/2022
AT & T,Utilities,6873.1,6/21/2022
AT & T,Utilities,12915.12,6/21/2022
AT & T,Utilities,47678.02,6/21/2022
AT & T,Utilities,34110.69,6/21/2022
AT & T,Utilities,478394.59,6/21/2022
AT & T,Utilities,48031.07,6/21/2022
AT & T,Utilities,55.76,6/21/2022
AT & T,Utilities,1208.01,6/21/2022
AT & T,Utilities,4669.01,6/21/2022
AT & T,Utilities,5136.29,6/23/2022
AT & T,Utilities,5354.52,6/23/2022
AT & T,Utilities,17685.7,6/23/2022
AT & T,Utilities,1210.35,6/23/2022
AT & T,Utilities,41678.02,6/23/2022
AT & T,Utilities,3255.35,6/28/2022
AT & T,Utilities,3294.14,6/28/2022
AT & T,Utilities,264.12,6/28/2022
AT & T,Utilities,1927.04,7/5/2022
AT & T,Utilities,12062.9,7/5/2022
AT & T,Utilities,3600,7/5/2022
AT & T,Utilities,6324.32,7/5/2022
AT & T,Utilities,6300.83,7/5/2022
AT & T,Utilities,3600,7/5/2022
AT & T,Utilities,4669.01,7/5/2022
AT & T,Utilities,7630.69,7/5/2022
AT & T,Utilities,2266.62,7/5/2022
AT & T,Utilities,19759.21,7/5/2022
AT & T,Utilities,848.25,7/8/2022
AT & T,Utilities,6835.5,7/8/2022
AT & T,Utilities,13049.99,7/8/2022
AT & T,Utilities,444020.35,7/14/2022
AT & T,Utilities,5336.79,7/14/2022
AT & T,Utilities,48031.07,7/14/2022
AT & T,Utilities,1332.28,7/19/2022
AT & T,Utilities,1927.04,7/19/2022
AT & T,Utilities,1176.05,7/19/2022
AT & T,Utilities,5128.32,7/19/2022
AT & T,Utilities,5424.96,7/19/2022
AT & T,Utilities,67338.16,7/19/2022
AT & T,Utilities,74428.42,7/19/2022
AT & T,Utilities,55.76,7/19/2022
AT & T,Utilities,9587.43,7/19/2022
AT & T,Utilities,12915.12,7/19/2022
AT & T,Utilities,1210.35,7/26/2022
AT & T,Utilities,3255.35,7/26/2022
AT & T,Utilities,17685.7,7/26/2022
AT & T,Utilities,3294.14,7/26/2022
AT & T,Utilities,264.12,7/26/2022
AT & T,Utilities,10.77,7/26/2022
AT & T,Utilities,5015.99,8/1/2022
AT & T,Utilities,13403.89,8/1/2022
AT & T,Utilities,7630.69,8/1/2022
AT & T,Utilities,6835.5,8/1/2022
AT & T,Utilities,14570.87,8/15/2022
AT & T,Utilities,1221.11,8/15/2022
AT & T,Utilities,5131.3,8/15/2022
AT & T,Utilities,1927.04,8/15/2022
AT & T,Utilities,5669.35,8/15/2022
AT & T,Utilities,3722,8/15/2022
AT & T,Utilities,19759.87,8/15/2022
AT & T,Utilities,2278.65,8/15/2022
AT & T,Utilities,847,8/16/2022
AT & T,Utilities,49042.83,8/16/2022
AT & T,Utilities,5449.2,8/16/2022
AT & T,Utilities,1176.05,8/16/2022
AT & T,Utilities,12088.49,8/16/2022
AT & T,Utilities,59.9,8/23/2022
AT & T,Utilities,77236.47,8/23/2022
AT & T,Utilities,6815.27,8/23/2022
AT & T,Utilities,9885.85,8/23/2022
AT & T,Utilities,1581.31,8/23/2022
AT & T,Utilities,12915.12,8/23/2022
AT & T,Utilities,44380.05,8/23/2022
AT & T,Utilities,7630.69,8/29/2022
AT & T,Utilities,1210.35,8/29/2022
AT & T,Utilities,3255.35,8/29/2022
AT & T,Utilities,17685.7,8/29/2022
AT & T,Utilities,3294.14,8/29/2022
AT & T,Utilities,20122.6,9/1/2022
AT & T,Utilities,122.26,9/1/2022
AT & T,Utilities,4004,9/1/2022
AT & T,Utilities,5015.99,9/1/2022
AT & T,Utilities,2240.6,9/1/2022
AT & T,Utilities,12062.9,9/1/2022
AT & T,Utilities,5801.86,9/1/2022
AT & T,Utilities,6835.5,9/6/2022
AT & T,Utilities,13478.08,9/6/2022
AT & T,Utilities,847,9/14/2022
AT & T,Utilities,6070.78,9/14/2022
AT & T,Utilities,54637.02,9/14/2022
AT & T,Utilities,543912.17,9/14/2022
AT & T,Utilities,1927.04,9/20/2022
AT & T,Utilities,1176.05,9/20/2022
AT & T,Utilities,1286.16,9/20/2022
AT & T,Utilities,45876.87,9/21/2022
AT & T,Utilities,12915.12,9/21/2022
AT & T,Utilities,19662.86,9/21/2022
AT & T,Utilities,80298.09,9/21/2022
AT & T,Utilities,59.9,9/21/2022
AT & T,Utilities,10432.77,9/21/2022
AT & T,Utilities,17685.7,9/27/2022
AT & T,Utilities,1210.35,9/27/2022
AT & T,Utilities,171.37,9/27/2022
AT & T,Utilities,5154.44,9/27/2022
AT & T,Utilities,4846.75,9/27/2022
AT & T,Utilities,7630.69,10/4/2022
AT & T,Utilities,3255.35,10/4/2022
AT & T,Utilities,3294.14,10/4/2022
AT & T,Utilities,5015.99,10/4/2022
AT & T,Utilities,17729.9,10/5/2022
AT & T,Utilities,13404.39,10/17/2022
AT & T,Utilities,6835.5,10/17/2022
AT & T,Utilities,12062.9,10/17/2022
AT & T,Utilities,51817.83,10/17/2022
AT & T,Utilities,299981.44,10/17/2022
AT & T,Utilities,847,10/17/2022
AT & T,Utilities,5757.54,10/17/2022
AT & T,Utilities,9585.13,10/20/2022
AT & T,Utilities,82781.87,10/20/2022
AT & T,Utilities,1230.63,10/20/2022
AT & T,Utilities,31654.36,10/20/2022
AT & T,Utilities,1176.05,10/20/2022
AT & T,Utilities,59.9,10/20/2022
AT & T,Utilities,5152.11,10/20/2022
AT & T,Utilities,1927.04,10/20/2022
AT & T,Utilities,12915.12,10/20/2022
AT & T,Utilities,44585.29,10/20/2022
AT & T,Utilities,264.13,10/24/2022
AT & T,Utilities,9990.4,10/24/2022
AT & T,Utilities,6409.82,10/24/2022
AT & T,Utilities,3720,10/28/2022
AT & T,Utilities,3720,10/28/2022
AT & T,Utilities,20280.48,10/28/2022
AT & T,Utilities,5923.91,10/28/2022
AT & T,Utilities,5599.23,10/28/2022
AT & T,Utilities,20861.46,10/28/2022
AT & T,Utilities,1210.35,10/31/2022
AT & T,Utilities,3255.35,10/31/2022
AT & T,Utilities,2224.6,10/31/2022
AT & T,Utilities,7653.74,10/31/2022
AT & T,Utilities,17685.7,10/31/2022
AT & T,Utilities,4861.32,10/31/2022
AT & T,Utilities,2258.58,10/31/2022
AT & T,Utilities,3294.14,11/1/2022
AT & T,Utilities,6835.5,11/28/2022
AT & T,Utilities,56142.43,11/28/2022
AT & T,Utilities,12915.12,11/28/2022
AT & T,Utilities,76066.55,11/28/2022
AT & T,Utilities,25710.45,11/28/2022
AT & T,Utilities,243795.62,11/28/2022
AT & T,Utilities,5158.93,11/28/2022
AT & T,Utilities,6238.05,11/28/2022
AT & T,Utilities,1927.04,11/28/2022
AT & T,Utilities,264.13,11/28/2022
AT & T,Utilities,9553.99,11/28/2022
AT & T,Utilities,847,11/28/2022
AT & T,Utilities,1262.04,11/28/2022
AT & T,Utilities,58.06,11/28/2022
AT & T,Utilities,12062.9,11/28/2022
AT & T,Utilities,13241.72,11/28/2022
AT & T,Utilities,7653.74,11/28/2022
AT & T,Utilities,45273.87,11/28/2022
AT & T,Utilities,3255.35,12/1/2022
AT & T,Utilities,17685.7,12/1/2022
AT & T,Utilities,1210.35,12/1/2022
AT & T,Utilities,7157.81,12/1/2022
AT & T,Utilities,5012.14,12/1/2022
AT & T,Utilities,1176.05,12/1/2022
AT & T,Utilities,12088.48,12/7/2022
AT & T,Utilities,3294.14,12/7/2022
AT & T,Utilities,4861.32,12/7/2022
AT & T,Utilities,6835.5,12/12/2022
AT & T,Utilities,13244.37,12/12/2022
AT & T,Utilities,2130.31,12/12/2022
AT & T,Utilities,5997.88,12/12/2022
AT & T,Utilities,847,12/12/2022
AT & T,Utilities,3720,12/12/2022
AT & T,Utilities,23498.15,12/12/2022
A-Tire County Service  Inc.,Services,3382,1/3/2022
A-Tire County Service  Inc.,Materials,7605.38,1/3/2022
A-Tire County Service  Inc.,Materials,6768.38,1/4/2022
A-Tire County Service  Inc.,Services,1503,1/4/2022
A-Tire County Service  Inc.,Materials,1553,1/25/2022
A-Tire County Service  Inc.,Services,3354.66,1/25/2022
A-Tire County Service  Inc.,Services,30,3/2/2022
A-Tire County Service  Inc.,Materials,300,3/2/2022
A-Tire County Service  Inc.,Services,1517.44,3/2/2022
A-Tire County Service  Inc.,Materials,2188.04,3/2/2022
A-Tire County Service  Inc.,Services,120,3/2/2022
A-Tire County Service  Inc.,Materials,357.06,3/15/2022
A-Tire County Service  Inc.,Services,2501,3/15/2022
A-Tire County Service  Inc.,Materials,5993.27,3/15/2022
A-Tire County Service  Inc.,Services,150,3/15/2022
A-Tire County Service  Inc.,Services,826,4/28/2022
A-Tire County Service  Inc.,Materials,1230.69,4/28/2022
A-Tire County Service  Inc.,Services,30,4/28/2022
A-Tire County Service  Inc.,Services,70,6/2/2022
A-Tire County Service  Inc.,Services,3543,6/2/2022
A-Tire County Service  Inc.,Materials,6274.65,6/2/2022
A-Tire County Service  Inc.,Services,3614.92,7/22/2022
A-Tire County Service  Inc.,Materials,4489.67,7/22/2022
A-Tire County Service  Inc.,Materials,5661.72,8/25/2022
A-Tire County Service  Inc.,Materials,679,8/25/2022
A-Tire County Service  Inc.,Services,132,8/25/2022
A-Tire County Service  Inc.,Services,3239.8,8/25/2022
A-Tire County Service  Inc.,Materials,2019.98,9/20/2022
A-Tire County Service  Inc.,Services,1106,9/20/2022
A-Tire County Service  Inc.,Materials,2711.97,9/21/2022
A-Tire County Service  Inc.,Materials,347.32,9/21/2022
A-Tire County Service  Inc.,Services,893,9/21/2022
A-Tire County Service  Inc.,Services,360.5,9/21/2022
A-Tire County Service  Inc.,Services,2752.5,10/27/2022
A-Tire County Service  Inc.,Materials,12214.75,10/27/2022
A-Tire County Service  Inc.,Services,60,10/27/2022
A-Tire County Service  Inc.,Materials,2055.91,12/2/2022
A-Tire County Service  Inc.,Services,1838,12/2/2022
Atlantic Track & Turnout Co.,Materials,4139.18,3/2/2022
Atlantic Track & Turnout Co.,Materials,2413.6,3/23/2022
Atlantic Track & Turnout Co.,Materials,24598.08,4/1/2022
Atlantic Track & Turnout Co.,Materials,8736.8,4/6/2022
Atlantic Track & Turnout Co.,Materials,24598.08,4/8/2022
Atlantic Track & Turnout Co.,Materials,24598.08,4/8/2022
Atlantic Track & Turnout Co.,Materials,49196.16,4/13/2022
Atlantic Track & Turnout Co.,Materials,25192.76,4/13/2022
Atlantic Track & Turnout Co.,Materials,29581.94,6/14/2022
Atlantic Track & Turnout Co.,Materials,72517.95,7/11/2022
Atlantic Track & Turnout Co.,Materials,153750,12/1/2022
Atlas & Associates  Inc.,Capital Purchases,124000,3/2/2022
Atlas & Associates  Inc.,Capital Purchases,90700,11/15/2022
Atlas Copco Compressors LLC,Materials,1005,1/28/2022
Atlas Copco Compressors LLC,Services,802.5,3/28/2022
Atlas Copco Compressors LLC,Materials,9889.35,6/3/2022
Atlas Copco Compressors LLC,Services,215,7/25/2022
Atlas Copco Compressors LLC,Materials,472.5,7/25/2022
Atlas Copco Compressors LLC,Materials,4997.64,8/1/2022
Atlas Copco Compressors LLC,Materials,2293,8/19/2022
Atlas Copco Compressors LLC,Materials,3126.61,11/1/2022
Atlas First Access,Materials,190,1/3/2022
Atlas First Access,Services,120.82,1/3/2022
Atlas First Access,Services,3282,1/3/2022
Atlas First Access,Materials,6932.02,1/25/2022
Atlas First Access,Services,484.07,1/25/2022
Atlas First Access,Services,4762.15,1/25/2022
Atlas First Access,Materials,2643,3/2/2022
Atlas First Access,Materials,51.57,3/2/2022
Atlas First Access,Services,755.18,3/2/2022
Atlas First Access,Services,237.5,3/2/2022
Atlas First Access,Services,332.5,3/9/2022
Atlas First Access,Materials,486.92,3/9/2022
Atlas First Access,Materials,864.37,3/23/2022
Atlas First Access,Services,725.25,3/23/2022
Atlas First Access,Services,974.7,3/23/2022
Atlas First Access,Services,18.75,4/6/2022
Atlas First Access,Services,427.5,4/29/2022
Atlas First Access,Services,488.25,5/3/2022
Atlas First Access,Services,95,5/4/2022
Atlas First Access,Materials,5.62,5/4/2022
Atlas First Access,Materials,127.45,5/16/2022
Atlas First Access,Services,332.5,5/16/2022
Atlas First Access,Services,1710,6/3/2022
Atlas First Access,Materials,775.6,6/3/2022
Atlas First Access,Capital Purchases,464306,6/14/2022
Atlas First Access,Materials,380.12,6/24/2022
Atlas First Access,Services,52,6/24/2022
Atlas First Access,Services,2195,6/24/2022
Atlas First Access,Services,831.25,7/1/2022
Atlas First Access,Materials,699.29,7/1/2022
Atlas First Access,Services,145,7/8/2022
Atlas First Access,Services,332.5,7/11/2022
Atlas First Access,Materials,3246.82,8/9/2022
Atlas First Access,Services,3586.25,8/9/2022
Atlas First Access,Materials,483.28,8/10/2022
Atlas First Access,Services,451.25,8/10/2022
Atlas First Access,Materials,10875,9/13/2022
Atlas First Access,Services,570,9/21/2022
Atlas First Access,Materials,1840.53,9/21/2022
Atlas First Access,Materials,1413.32,9/21/2022
Atlas First Access,Services,760,9/21/2022
Atlas First Access,Services,2280,10/1/2022
Atlas First Access,Materials,4176.57,10/1/2022
Atlas First Access,Materials,112.95,10/7/2022
Atlas First Access,Capital Purchases,9950,10/7/2022
Atlas First Access,Services,997.5,10/7/2022
Atlas First Access,Services,1237.5,10/19/2022
Atlas First Access,Materials,298.94,10/19/2022
Atlas First Access,Capital Purchases,21364,10/24/2022
Atlas First Access,Services,95,11/1/2022
Atlas First Access,Materials,1210.48,11/4/2022
Atlas First Access,Services,902.5,11/4/2022
Atlas First Access,Materials,1165.44,11/15/2022
Atlas First Access,Services,1472.5,11/15/2022
Atlas First Access,Materials,4234.95,12/2/2022
Atlas First Access,Services,6313.95,12/2/2022
Atlas Toyota Material Handling  LLC,Claims & Insurance,19947,4/1/2022
Atlas Toyota Material Handling  LLC,Capital Purchases,8900,6/1/2022
Atlas Toyota Material Handling  LLC,Capital Purchases,32735,6/14/2022
Atlas Toyota Material Handling  LLC,Capital Purchases,229746,6/24/2022
Atlas Toyota Material Handling  LLC,Capital Purchases,63170,6/24/2022
Atlas Toyota Material Handling  LLC,Capital Purchases,168220,8/9/2022
Atlas Toyota Material Handling  LLC,Capital Purchases,502680,10/7/2022
Aurelio E. Rocha,Services,57.56,6/21/2022
AUSTIN SANAVONGXAY,Services,508.5,6/13/2022
AUSTIN SANAVONGXAY,Services,339,6/27/2022
AUSTIN SANAVONGXAY,Services,621.5,7/20/2022
AUSTIN SANAVONGXAY,Services,169.5,8/3/2022
AUSTIN SANAVONGXAY,Services,508.5,8/16/2022
AUSTIN SANAVONGXAY,Services,621.5,9/1/2022
AUSTIN SANAVONGXAY,Services,621.5,9/14/2022
Auto Glass Plus Inc,Services,1134,6/23/2022
Auto Glass Plus Inc,Services,1134,7/25/2022
Auto Glass Plus Inc,Services,420,8/25/2022
Auto Glass Plus Inc,Services,864,9/2/2022
Auto Glass Plus Inc,Services,1044,11/15/2022
Auto Glass Plus Inc,Materials,432,12/13/2022
Auto Truck Group  Llc,Services,769.92,2/1/2022
Automated Railroad Mntce. Systems  Inc. (Arms  Inc.),Capital Purchases,1897.76,1/4/2022
Automated Railroad Mntce. Systems  Inc. (Arms  Inc.),Capital Purchases,689.2,1/28/2022
Automated Railroad Mntce. Systems  Inc. (Arms  Inc.),Materials,3446,1/28/2022
Automated Railroad Mntce. Systems  Inc. (Arms  Inc.),Capital Purchases,1378.4,2/10/2022
Automated Railroad Mntce. Systems  Inc. (Arms  Inc.),Capital Purchases,12129.78,9/20/2022
AVI Systems Inc.,Capital Purchases,64615.75,1/3/2022
AVI Systems Inc.,Capital Purchases,24042.7,12/2/2022
"Axon Enterprise, Inc",Services,399,3/9/2022
Azura Investigations Llc,Services,1665,2/1/2022
Azura Investigations Llc,Services,4044,2/17/2022
Azura Investigations Llc,Services,1710,3/23/2022
Azura Investigations Llc,Services,1675,4/13/2022
Azura Investigations Llc,Services,1680,4/13/2022
Azura Investigations Llc,Services,4046,6/6/2022
Azura Investigations Llc,Services,4942,6/9/2022
Azura Investigations Llc,Services,3501,7/11/2022
Azura Investigations Llc,Services,6224,8/9/2022
Azura Investigations Llc,Services,3347,9/2/2022
Azura Investigations Llc,Services,4232,10/7/2022
Azura Investigations Llc,Services,3314,10/12/2022
B & H Photo Video Corp.,Services,19.73,9/1/2022
B & H Photo Video Corp.,Services,4707.36,9/1/2022
Bach-Simpson Div. Of Wabtec Canada  Inc.,Materials,425,1/10/2022
Bach-Simpson Div. Of Wabtec Canada  Inc.,Materials,425,2/1/2022
Bach-Simpson Div. Of Wabtec Canada  Inc.,Materials,850,3/2/2022
Bach-Simpson Div. Of Wabtec Canada  Inc.,Materials,6700,3/25/2022
Bach-Simpson Div. Of Wabtec Canada  Inc.,Materials,425,4/20/2022
Bach-Simpson Div. Of Wabtec Canada  Inc.,Materials,860,5/5/2022
Bach-Simpson Div. Of Wabtec Canada  Inc.,Services,3125,5/5/2022
Bach-Simpson Div. Of Wabtec Canada  Inc.,Materials,3000,5/25/2022
Bach-Simpson Div. Of Wabtec Canada  Inc.,Materials,15795,5/25/2022
Bach-Simpson Div. Of Wabtec Canada  Inc.,Materials,315,5/25/2022
Bach-Simpson Div. Of Wabtec Canada  Inc.,Services,3125,5/25/2022
Bach-Simpson Div. Of Wabtec Canada  Inc.,Materials,5360,6/7/2022
Bach-Simpson Div. Of Wabtec Canada  Inc.,Services,3125,6/7/2022
Bach-Simpson Div. Of Wabtec Canada  Inc.,Materials,495,6/22/2022
Bach-Simpson Div. Of Wabtec Canada  Inc.,Materials,8200,7/1/2022
Bach-Simpson Div. Of Wabtec Canada  Inc.,Services,3125,8/1/2022
Bach-Simpson Div. Of Wabtec Canada  Inc.,Services,4845,9/7/2022
Bach-Simpson Div. Of Wabtec Canada  Inc.,Materials,1875,9/7/2022
Bach-Simpson Div. Of Wabtec Canada  Inc.,Services,5475,9/8/2022
Bach-Simpson Div. Of Wabtec Canada  Inc.,Services,11675,9/26/2022
Bach-Simpson Div. Of Wabtec Canada  Inc.,Materials,7510,9/29/2022
Bach-Simpson Div. Of Wabtec Canada  Inc.,Materials,315,10/1/2022
Bach-Simpson Div. Of Wabtec Canada  Inc.,Materials,1935,10/1/2022
Bach-Simpson Div. Of Wabtec Canada  Inc.,Materials,3430,10/6/2022
Bach-Simpson Div. Of Wabtec Canada  Inc.,Materials,32040,11/2/2022
Bach-Simpson Div. Of Wabtec Canada  Inc.,Materials,54,11/2/2022
Bach-Simpson Div. Of Wabtec Canada  Inc.,Materials,2725,11/14/2022
Bach-Simpson Div. Of Wabtec Canada  Inc.,Materials,5840,11/29/2022
Bach-Simpson Div. Of Wabtec Canada  Inc.,Materials,1095,12/7/2022
Bake For Me,Services,350.1,1/10/2022
Bake For Me,Services,240.9,2/9/2022
Bake For Me,Services,311.05,2/25/2022
Bake For Me,Services,156.95,3/3/2022
Bake For Me,Services,91.65,4/12/2022
Bake For Me,Services,135.55,4/20/2022
Bake For Me,Services,135.55,6/7/2022
Bake For Me,Services,135.55,6/29/2022
Bake For Me,Services,397.85,7/11/2022
Bake For Me,Services,117.95,7/25/2022
Bake For Me,Services,105.35,7/27/2022
Bake For Me,Services,91.65,8/23/2022
Bake For Me,Services,485.65,8/26/2022
Bake For Me,Services,149.25,9/1/2022
Bake For Me,Services,105.35,9/30/2022
Bake For Me,Services,54.44,10/7/2022
Bake For Me,Services,258.45,10/25/2022
Ballast Tools  Inc.,Materials,2130,1/10/2022
Ballast Tools  Inc.,Materials,8416,3/2/2022
Ballast Tools  Inc.,Materials,8416,4/1/2022
Ballast Tools  Inc.,Materials,4656,8/2/2022
Ballast Tools  Inc.,Materials,1840,9/29/2022
Ballast Tools  Inc.,Materials,7512,11/2/2022
Bank Of America,Services,14898.11,2/2/2022
Bank Of America,Services,7110.58,3/7/2022
Bank Of America,Services,6859.81,3/7/2022
Bank Of America,Services,7060.14,5/5/2022
Barbara A. Herodes,Services,58.98,12/21/2022
Barbara A. Herodes,Services,36.13,12/21/2022
Barbara A. Herodes,Services,9,12/21/2022
Barbara A. Herodes,Services,712,12/21/2022
Barbara A. Herodes,Services,211.5,12/21/2022
Barber Spring Co.,Materials,3775.24,1/10/2022
Barber Spring Co.,Materials,1778.95,1/20/2022
Barber Spring Co.,Materials,4026,4/12/2022
Barber Spring Co.,Materials,2625.9,5/5/2022
Barber Spring Co.,Materials,674.42,6/29/2022
Bartlett & West  Inc.,Capital Purchases,75,3/1/2022
Baultar Concept  Inc.,Materials,14700,8/2/2022
Baultar Concept  Inc.,Services,600,8/2/2022
BBA Project  Inc.,Materials,3170.35,1/10/2022
BBA Project  Inc.,Materials,1196,1/25/2022
BBA Project  Inc.,Materials,802.25,3/3/2022
BBA Project  Inc.,Materials,10420,3/17/2022
BBA Project  Inc.,Materials,3690,4/1/2022
BBA Project  Inc.,Materials,10764,4/1/2022
BBA Project  Inc.,Materials,4100,4/12/2022
BBA Project  Inc.,Materials,10420,4/12/2022
BBA Project  Inc.,Materials,2460,4/12/2022
BBA Project  Inc.,Materials,9430,4/20/2022
BBA Project  Inc.,Materials,410,5/5/2022
BBA Project  Inc.,Materials,1230,5/11/2022
BBA Project  Inc.,Materials,6722.5,9/29/2022
BBA Project  Inc.,Materials,2870,12/7/2022
BBA Project  Inc.,Materials,4033.5,12/13/2022
BCBS Of Illinois,Services,923598.59,1/12/2022
BCBS Of Illinois,Services,36147.86,1/12/2022
BCBS Of Illinois,Services,924956.06,2/9/2022
BCBS Of Illinois,Services,36147.86,2/9/2022
BCBS Of Illinois,Services,912536.35,3/7/2022
BCBS Of Illinois,Services,32425.6,3/9/2022
BCBS Of Illinois,Services,32541.39,4/5/2022
BCBS Of Illinois,Services,931795.45,4/5/2022
BCBS Of Illinois,Services,920599.15,4/28/2022
BCBS Of Illinois,Services,39260.59,5/23/2022
BCBS Of Illinois,Services,39336.17,6/1/2022
BCBS Of Illinois,Services,900069.55,6/1/2022
BCBS Of Illinois,Services,920115.36,7/11/2022
BCBS Of Illinois,Services,37128.98,7/13/2022
BCBS Of Illinois,Services,36231.81,8/9/2022
BCBS Of Illinois,Services,937240.72,8/9/2022
BCBS Of Illinois,Services,961531.06,9/6/2022
BCBS Of Illinois,Services,36126.3,9/6/2022
BCBS Of Illinois,Services,35939.76,10/5/2022
BCBS Of Illinois,Services,919966.65,10/5/2022
BCBS Of Illinois,Services,948319.28,10/25/2022
BCBS Of Illinois,Services,35965.18,10/25/2022
BCBS Of Illinois,Services,35926.8,12/9/2022
BCBS Of Illinois,Services,942076.21,12/9/2022
Bebon Office Machines Co.  Inc.,Capital Purchases,900,3/3/2022
Bebon Office Machines Co.  Inc.,Capital Purchases,250,9/30/2022
Bebon Office Machines Co.  Inc.,,445,9/30/2022
"Beck Tech, Inc a Barbeck Company",Capital Purchases,52200,2/10/2022
"Beck Tech, Inc a Barbeck Company",Claims & Insurance,4089.92,2/25/2022
Becker Professional Development Corp.,Services,279.3,3/1/2022
Becker Professional Development Corp.,Services,449,10/13/2022
Becker Professional Development Corp.,Services,449,12/12/2022
Beligh Sraieb,Services,48.96,3/18/2022
Beligh Sraieb,Services,50,8/18/2022
Beligh Sraieb,Services,100,9/1/2022
Beligh Sraieb,Services,50,9/13/2022
Beligh Sraieb,Services,50,12/6/2022
Bellwood Electric Motors Inc.,Materials,11100,1/10/2022
Bellwood Electric Motors Inc.,Materials,16400,2/11/2022
Bellwood Electric Motors Inc.,Materials,8200,3/2/2022
Bellwood Electric Motors Inc.,Materials,8200,3/17/2022
Bellwood Electric Motors Inc.,Services,19900,3/25/2022
Bellwood Electric Motors Inc.,Materials,4900,4/1/2022
Bellwood Electric Motors Inc.,Materials,3200,4/12/2022
Bellwood Electric Motors Inc.,Materials,8200,4/20/2022
Bellwood Electric Motors Inc.,Materials,2470,5/5/2022
Bellwood Electric Motors Inc.,Materials,1080,5/5/2022
Bellwood Electric Motors Inc.,Services,19900,5/25/2022
Bellwood Electric Motors Inc.,Services,19900,6/1/2022
Bellwood Electric Motors Inc.,Materials,8200,6/7/2022
Bellwood Electric Motors Inc.,Materials,4900,6/7/2022
Bellwood Electric Motors Inc.,Materials,9800,6/7/2022
Bellwood Electric Motors Inc.,Services,7500,6/13/2022
Bellwood Electric Motors Inc.,Materials,1200,8/1/2022
Bellwood Electric Motors Inc.,Materials,8200,8/2/2022
Bellwood Electric Motors Inc.,Services,19900,8/23/2022
Bellwood Electric Motors Inc.,Materials,8100,8/26/2022
Bellwood Electric Motors Inc.,Services,19900,10/5/2022
Bellwood Electric Motors Inc.,Materials,19900,10/5/2022
Bellwood Electric Motors Inc.,Materials,19900,11/2/2022
Bellwood Electric Motors Inc.,Services,2090,11/2/2022
Bellwood Electric Motors Inc.,Materials,3600,11/14/2022
Bellwood Electric Motors Inc.,Materials,13100,11/14/2022
Bellwood Electric Motors Inc.,Materials,5000,11/28/2022
Bellwood Electric Motors Inc.,Materials,5100,12/7/2022
Bellwood Electric Motors Inc.,Materials,5200,12/9/2022
Benefit Resource Inc.,Services,234101.69,1/12/2022
Benefit Resource Inc.,Services,9372.9,1/12/2022
Benefit Resource Inc.,Services,12968.5,1/27/2022
Benefit Resource Inc.,Services,4677.2,4/5/2022
Benefit Resource Inc.,Services,228519.93,4/5/2022
Benefit Resource Inc.,Services,19408.05,4/5/2022
Benefit Resource Inc.,Services,5298.95,4/19/2022
Benefit Resource Inc.,Services,111512.39,4/19/2022
Benefit Resource Inc.,Services,114935.86,4/28/2022
Benefit Resource Inc.,Services,9961.23,4/28/2022
Benefit Resource Inc.,Services,115128.34,5/23/2022
Benefit Resource Inc.,Services,6558.08,5/23/2022
Benefit Resource Inc.,Services,4668,5/23/2022
Benefit Resource Inc.,Services,4669.65,6/1/2022
Benefit Resource Inc.,Services,26897.27,8/9/2022
Benefit Resource Inc.,Services,351964.7,8/9/2022
Benefit Resource Inc.,Services,9805.53,8/9/2022
Benefit Resource Inc.,Services,9222.15,10/5/2022
Benefit Resource Inc.,Services,4338,10/25/2022
Benefit Resource Inc.,Services,8813.5,12/19/2022
Benefit Resource Inc.,Services,326909.59,12/19/2022
Benefit Resource Inc.,Services,26460.91,12/19/2022
Bentech  Inc.,Materials,1900,11/2/2022
Bentech  Inc.,Services,100,11/2/2022
Bentech  Inc.,Services,21.54,12/19/2022
Bentech  Inc.,Materials,3308.4,12/19/2022
Bentley Systems  Inc.,Services,253196,8/26/2022
Berg Engineering & Sales,Services,160,12/12/2022
Berg Engineering & Sales,Materials,2364,12/12/2022
Berglund Construction Co.,Services,67450.73,7/1/2022
Berglund Construction Co.,Services,71021.3,8/2/2022
Berglund Construction Co.,Services,62165.05,8/2/2022
Berglund Construction Co.,Services,80494.74,11/1/2022
Berglund Construction Co.,Services,148510.49,12/1/2022
Berglund Construction Co.,Services,71526.22,12/1/2022
Berglund Construction Co.,Services,61657.18,12/13/2022
Bernard Powell,Services,734.5,5/9/2022
Bernard Powell,Services,395.5,5/23/2022
Bernard Powell,Services,508.5,6/10/2022
Bernard Powell,Services,791,6/29/2022
Bernard Powell,Services,734.5,8/1/2022
Bernard Powell,Services,508.5,8/15/2022
Bernard Powell,Services,508.5,8/30/2022
Bernard Powell,Services,621.5,9/13/2022
Bernard Powell,Services,621.5,10/5/2022
Bernard Powell,Services,565,10/5/2022
Berts Car Wash  Inc.,Services,2160,1/25/2022
Berts Car Wash  Inc.,Services,1052,3/3/2022
Berts Car Wash  Inc.,Services,981,3/17/2022
Berts Car Wash  Inc.,Services,754,4/12/2022
Berts Car Wash  Inc.,Services,656,6/1/2022
Berts Car Wash  Inc.,Services,879,6/8/2022
Berts Car Wash  Inc.,Services,1768.5,7/14/2022
Berts Car Wash  Inc.,Services,296.25,8/23/2022
Berts Car Wash  Inc.,Services,1120,8/23/2022
Berts Car Wash  Inc.,Services,2002.5,9/29/2022
Berts Car Wash  Inc.,Services,2033.75,11/2/2022
Berts Car Wash  Inc.,Services,1432.25,11/16/2022
Berts Car Wash  Inc.,Services,2119.25,12/19/2022
Best Defense Concepts,Materials,13140,3/7/2022
Billy Chaney,Services,129.87,3/14/2022
Billy Chaney,Services,67.86,3/29/2022
Billy Chaney,Services,129.87,4/11/2022
Billy Chaney,Services,154.44,4/25/2022
Billy Chaney,Services,85.41,5/12/2022
Billy Chaney,Services,33.93,5/12/2022
Billy Chaney,Services,259.74,5/12/2022
Billy Chaney,Services,43.29,5/20/2022
Billy Chaney,Services,67.86,6/13/2022
Billy Chaney,Services,67.86,6/23/2022
Billy Chaney,Services,98.28,7/13/2022
Billy Chaney,Services,49.14,7/13/2022
Billy Chaney,Services,72.5,8/15/2022
Billy Chaney,Services,36.25,8/15/2022
Billy Chaney,Services,332.5,8/15/2022
Billy Chaney,Services,92.5,9/1/2022
Billy Chaney,Services,145,9/20/2022
Billy Chaney,Services,92.5,9/20/2022
Billy Chaney,Services,36.25,10/3/2022
Billy Chaney,Services,82.5,10/3/2022
Billy Chaney,Services,46.25,10/26/2022
Billy Chaney,Services,138.75,12/6/2022
Billy Chaney,Services,46.25,12/6/2022
Black Dog Petroleum LLC,Materials,10307.5,1/10/2022
Black Dog Petroleum LLC,Materials,9074.4,2/11/2022
Black Dog Petroleum LLC,Materials,3184,2/11/2022
Black Dog Petroleum LLC,Materials,4776,3/3/2022
Black Dog Petroleum LLC,Materials,4776,3/3/2022
Black Dog Petroleum LLC,Materials,1592,4/12/2022
Black Dog Petroleum LLC,Materials,1910.4,5/10/2022
Black Dog Petroleum LLC,Materials,2388,5/25/2022
Black Dog Petroleum LLC,Materials,3343.2,6/29/2022
Black Dog Petroleum LLC,Materials,2228.8,8/2/2022
Black Dog Petroleum LLC,Materials,8756,8/23/2022
Black Dog Petroleum LLC,Materials,3184,10/24/2022
Black Industrial & Safety Supply Inc.,Capital Purchases,17218.2,4/20/2022
Black Industrial & Safety Supply Inc.,Materials,3502,9/28/2022
Black Industrial & Safety Supply Inc.,Materials,7187,9/29/2022
Black Industrial & Safety Supply Inc.,Materials,808,10/1/2022
Black Industrial & Safety Supply Inc.,Materials,332,11/2/2022
"Blanchard Training and Development, Inc. dba The Ken Blanchard Companies",Services,47052.3,11/28/2022
"Blanchard Training and Development, Inc. dba The Ken Blanchard Companies",Services,47052.3,12/1/2022
Blinderman Construction Co.  Inc.,Capital Purchases,4270.66,1/3/2022
Blue Print Shoppe  Inc.,Capital Purchases,199.26,1/10/2022
Blue Print Shoppe  Inc.,Capital Purchases,2648.75,4/1/2022
Blue Print Shoppe  Inc.,Capital Purchases,403,6/29/2022
Blue Print Shoppe  Inc.,Capital Purchases,802,12/7/2022
Blue Print Shoppe  Inc.,Capital Purchases,534,12/7/2022
Bnsf Railway Co.,Capital Purchases,11632.47,1/5/2022
Bnsf Railway Co.,Capital Purchases,10095.44,1/5/2022
Bnsf Railway Co.,Services,3174835,1/6/2022
Bnsf Railway Co.,Services,4022.93,1/14/2022
Bnsf Railway Co.,Services,4022.93,1/18/2022
Bnsf Railway Co.,Services,1363259.63,1/20/2022
Bnsf Railway Co.,Capital Purchases,8842.87,1/21/2022
Bnsf Railway Co.,Capital Purchases,192.92,1/21/2022
Bnsf Railway Co.,Capital Purchases,277477.25,2/1/2022
Bnsf Railway Co.,Capital Purchases,696066.86,2/1/2022
Bnsf Railway Co.,Services,3379481,2/9/2022
Bnsf Railway Co.,Services,4022.93,2/16/2022
Bnsf Railway Co.,Services,882104.53,2/18/2022
Bnsf Railway Co.,Capital Purchases,96456.8,3/1/2022
Bnsf Railway Co.,Capital Purchases,147216.09,3/1/2022
Bnsf Railway Co.,Capital Purchases,36532.73,3/1/2022
Bnsf Railway Co.,Capital Purchases,47885.07,3/1/2022
Bnsf Railway Co.,Capital Purchases,147428.27,3/1/2022
Bnsf Railway Co.,Capital Purchases,7502.66,3/1/2022
Bnsf Railway Co.,Capital Purchases,28116.24,3/1/2022
Bnsf Railway Co.,Capital Purchases,407210.14,3/2/2022
Bnsf Railway Co.,Capital Purchases,21268.93,3/2/2022
Bnsf Railway Co.,Capital Purchases,9215.35,3/3/2022
Bnsf Railway Co.,Capital Purchases,101862.03,3/3/2022
Bnsf Railway Co.,Capital Purchases,308556,3/9/2022
Bnsf Railway Co.,Services,4022.93,3/9/2022
Bnsf Railway Co.,Capital Purchases,156996.98,3/9/2022
Bnsf Railway Co.,Capital Purchases,34846.41,3/18/2022
Bnsf Railway Co.,Services,1147557.11,3/18/2022
Bnsf Railway Co.,Capital Purchases,21111.57,3/24/2022
Bnsf Railway Co.,Services,7272529,3/25/2022
Bnsf Railway Co.,Services,4022.93,3/28/2022
Bnsf Railway Co.,Capital Purchases,10464.42,4/5/2022
Bnsf Railway Co.,Services,4022.93,4/6/2022
Bnsf Railway Co.,Capital Purchases,10099.07,4/12/2022
Bnsf Railway Co.,Services,1691864.9,4/18/2022
Bnsf Railway Co.,Capital Purchases,6522.74,5/2/2022
Bnsf Railway Co.,Capital Purchases,145235.54,5/2/2022
Bnsf Railway Co.,Capital Purchases,120823.31,5/2/2022
Bnsf Railway Co.,Capital Purchases,53495.27,5/2/2022
Bnsf Railway Co.,Capital Purchases,222819.14,5/2/2022
Bnsf Railway Co.,Services,3289269,5/10/2022
Bnsf Railway Co.,Services,4022.93,5/10/2022
Bnsf Railway Co.,Capital Purchases,12350.05,5/16/2022
Bnsf Railway Co.,Services,1740310.74,5/19/2022
Bnsf Railway Co.,Capital Purchases,43924.49,5/23/2022
Bnsf Railway Co.,Capital Purchases,18947.84,5/24/2022
Bnsf Railway Co.,Services,3122156,5/25/2022
Bnsf Railway Co.,Services,4022.93,6/8/2022
Bnsf Railway Co.,Services,1805642.42,6/20/2022
Bnsf Railway Co.,Services,3042676,6/24/2022
Bnsf Railway Co.,Capital Purchases,160576.18,7/1/2022
Bnsf Railway Co.,Capital Purchases,5879.47,7/1/2022
Bnsf Railway Co.,Services,4022.93,7/12/2022
Bnsf Railway Co.,Capital Purchases,34559.85,7/13/2022
Bnsf Railway Co.,Capital Purchases,5112.76,7/13/2022
Bnsf Railway Co.,Capital Purchases,438786.62,7/13/2022
Bnsf Railway Co.,Capital Purchases,204373.03,7/13/2022
Bnsf Railway Co.,Capital Purchases,39039.3,7/18/2022
Bnsf Railway Co.,Services,4873639,7/29/2022
Bnsf Railway Co.,Services,4150.82,8/16/2022
Bnsf Railway Co.,Capital Purchases,1891.46,8/18/2022
Bnsf Railway Co.,Capital Purchases,241708.69,8/18/2022
Bnsf Railway Co.,Services,4969525,8/30/2022
Bnsf Railway Co.,Capital Purchases,16120.9,9/16/2022
Bnsf Railway Co.,Capital Purchases,19180.44,9/21/2022
Bnsf Railway Co.,Capital Purchases,5420.65,9/21/2022
Bnsf Railway Co.,Capital Purchases,194882.51,9/21/2022
Bnsf Railway Co.,Services,5137287,9/26/2022
Bnsf Railway Co.,Capital Purchases,28551.33,10/1/2022
Bnsf Railway Co.,Services,4150.82,10/13/2022
Bnsf Railway Co.,Capital Purchases,20132.68,10/17/2022
Bnsf Railway Co.,Services,4758576,10/24/2022
Bnsf Railway Co.,Capital Purchases,4000.71,11/1/2022
Bnsf Railway Co.,Capital Purchases,96646.01,11/1/2022
Bnsf Railway Co.,Capital Purchases,1892.6,11/1/2022
Bnsf Railway Co.,Services,4150.82,11/1/2022
Bnsf Railway Co.,Capital Purchases,530612.06,11/1/2022
Bnsf Railway Co.,Capital Purchases,1383.1,11/1/2022
Bnsf Railway Co.,Capital Purchases,126872.68,11/1/2022
Bnsf Railway Co.,Capital Purchases,7982.38,11/3/2022
Bnsf Railway Co.,Capital Purchases,644.61,11/7/2022
Bnsf Railway Co.,Capital Purchases,20852.73,11/7/2022
Bnsf Railway Co.,Capital Purchases,192.92,11/8/2022
Bnsf Railway Co.,Capital Purchases,11845.42,11/8/2022
Bnsf Railway Co.,Capital Purchases,90709.72,11/9/2022
Bnsf Railway Co.,Capital Purchases,772.32,11/14/2022
Bnsf Railway Co.,Capital Purchases,30405.66,11/15/2022
Bnsf Railway Co.,Services,4845022,11/18/2022
Bnsf Railway Co.,Capital Purchases,178160.35,11/22/2022
Bnsf Railway Co.,Capital Purchases,73892.47,11/22/2022
Bnsf Railway Co.,Capital Purchases,32837.62,11/22/2022
Bnsf Railway Co.,Capital Purchases,175882.47,12/1/2022
Bnsf Railway Co.,Capital Purchases,8681.89,12/1/2022
Bnsf Railway Co.,Capital Purchases,5981.25,12/1/2022
Bnsf Railway Co.,Capital Purchases,34.73,12/6/2022
Bnsf Railway Co.,Services,4150.82,12/8/2022
Bnsf Railway Co.,Capital Purchases,85.03,12/9/2022
Bnsf Railway Co.,Services,5287956,12/15/2022
Bnsf Railway Co.,Capital Purchases,120552.92,12/15/2022
Bnsf Railway Co.,Capital Purchases,12445,12/21/2022
Bnsf Railway Co.,Services,4150.82,12/22/2022
Bobby Brown,Services,43.29,3/14/2022
Bobby Brown,Services,68.33,4/11/2022
Bobby Brown,Services,67.86,4/11/2022
Bobby Brown,Services,71.37,5/5/2022
Bobby Brown,Services,222.3,5/5/2022
Bobby Brown,Services,303.03,6/6/2022
Bobby Brown,Services,10.53,6/6/2022
Bobby Brown,Services,47.97,7/11/2022
Bobby Brown,Services,7.02,7/11/2022
Bobby Brown,Services,165,8/16/2022
Bobby Brown,Services,37.5,8/16/2022
Bobby Brown,Services,46.25,10/6/2022
Boma/Chicago,Services,2539.14,1/24/2022
Bonfire Interactive,Services,70000,11/4/2022
Borislav Apostolov,Services,49.14,2/7/2022
Bounce Houses R Us LLC,Services,2211.72,7/19/2022
Bounce Houses R Us LLC,Services,2211.72,9/14/2022
Bounce Houses R Us LLC,Services,872.8,10/6/2022
Bounce Houses R Us LLC,Services,1297.8,10/13/2022
Brabazon Pumpe Co.  Ltd.,Materials,2373.12,1/10/2022
Brabazon Pumpe Co.  Ltd.,Materials,1386.48,5/5/2022
Brabazon Pumpe Co.  Ltd.,Materials,1315.52,7/12/2022
Brad Methling,Services,60.48,1/14/2022
Brad Methling,Services,71.68,1/14/2022
Brad Methling,Services,12.32,1/14/2022
Brad Methling,Services,526.5,3/30/2022
Brad Methling,Services,12.87,4/6/2022
Brad Methling,Services,37.44,4/6/2022
Brad Methling,Services,37.44,5/9/2022
Brad Methling,Services,37.44,6/16/2022
Brad Methling,Services,58.5,7/25/2022
Brad Methling,Services,202.65,9/20/2022
Brad Methling,Services,192.5,10/17/2022
Brad Methling,Services,50,11/16/2022
Bradken-Atchison/St. Joseph  Inc.,Capital Purchases,26818,3/3/2022
Bradken-Atchison/St. Joseph  Inc.,Capital Purchases,40377.14,5/2/2022
Bradken-Atchison/St. Joseph  Inc.,Capital Purchases,21219,10/1/2022
Bradken-Atchison/St. Joseph  Inc.,Capital Purchases,13565,10/6/2022
"Bradley E. Prendergast, Esq.",Claims & Insurance,125000,3/10/2022
BRADY MASON,Services,15,8/9/2022
Brasco International  Inc.,Capital Purchases,245175,2/1/2022
Brenda McCollum,Services,182.25,9/12/2022
Brendan A. Stejskal,Services,257.04,1/6/2022
Brendan A. Stejskal,Services,314.73,1/25/2022
Brendan A. Stejskal,Services,216.45,2/3/2022
Brendan A. Stejskal,Services,311.81,2/23/2022
Brendan A. Stejskal,Services,268.52,3/1/2022
Brendan A. Stejskal,Services,311.81,3/18/2022
Brendan A. Stejskal,Services,293.09,4/8/2022
Brendan A. Stejskal,Services,293.09,4/22/2022
Brendan A. Stejskal,Services,303.03,5/4/2022
Brendan A. Stejskal,Services,326.43,5/19/2022
Brendan A. Stejskal,Services,228.15,6/6/2022
Brendan A. Stejskal,Services,339.3,6/20/2022
Brendan A. Stejskal,Services,355.1,7/8/2022
Brendan A. Stejskal,Services,191.25,7/13/2022
Brendan A. Stejskal,Services,286.88,8/3/2022
Brendan A. Stejskal,Services,283.75,8/17/2022
Brendan A. Stejskal,Services,263.75,9/9/2022
Brendan A. Stejskal,Services,237.5,9/13/2022
Brendan A. Stejskal,Services,402.51,10/12/2022
Brendan A. Stejskal,Services,286.88,11/14/2022
Brendan A. Stejskal,Services,283.75,11/18/2022
Brendan A. Stejskal,Services,220.63,12/15/2022
Brendan M. Ohara,Services,174.1,3/23/2022
Brendon Cotton,Services,60.84,2/7/2022
Brendon Cotton,Services,216.45,2/7/2022
Bresshenda Crudup,Services,147.88,12/16/2022
Bria Scarlett,Services,160.29,2/11/2022
Bria Scarlett,Services,24.57,6/6/2022
Bria Scarlett,Services,49.14,6/6/2022
BRIAN HARDY,Services,150,8/18/2022
BRIAN HARDY,Services,57.5,8/18/2022
BRIAN HARDY,Services,57.5,9/1/2022
BRIAN HARDY,Services,118.75,9/1/2022
BRIAN HARDY,Services,75,9/1/2022
BRIAN HARDY,Services,37.5,9/7/2022
BRIAN HARDY,Services,37.5,9/15/2022
BRIAN HARDY,Services,47.5,9/15/2022
BRIAN HARDY,Services,37.5,9/20/2022
BRIAN HARDY,Services,23.75,10/3/2022
BRIAN HARDY,Services,23.75,10/11/2022
BRIAN HARDY,Services,37.5,10/13/2022
BRIAN HARDY,Services,37.5,10/13/2022
BRIAN HARDY,Services,75,10/18/2022
BRIAN HARDY,Services,37.5,11/15/2022
BRIAN HARDY,Services,37.5,11/17/2022
"BRIAN MCCARTHY C/O PETER HIGGINS, ESQ.",Claims & Insurance,20,9/7/2022
Brian R Benes,Services,206.5,7/21/2022
Brian R Benes,Services,10,7/21/2022
Brian R Benes,Services,46.8,7/21/2022
Brian R Benes,Services,325.44,7/21/2022
Brian R Borden,Services,13.3,2/14/2022
Brian Richards,Services,105.3,2/11/2022
Brian Richards,Services,161.46,2/11/2022
Brian Richards,Services,134.55,3/9/2022
Brian Richards,Services,35.1,4/4/2022
Brian Richards,Services,35.1,6/16/2022
Brian Richards,Services,196.56,6/16/2022
Brian Richards,Services,39.78,7/14/2022
Brian Richards,Services,37.5,8/16/2022
Brian Richards,Services,305,8/16/2022
Brian Richards,Services,57.5,9/7/2022
Brian S Wimmer,Services,323.86,6/21/2022
Brian S Wimmer,Services,147.5,6/21/2022
Brian Simmons,Services,21.88,10/24/2022
Brian Simmons,Services,1369.44,10/24/2022
Brian Simmons,Services,244.5,10/24/2022
Brian Simmons,Services,91.3,10/24/2022
Brittany Bogan,Services,5250,4/11/2022
Broadway Electric  Inc.,Capital Purchases,290862.18,2/4/2022
Broadway Electric  Inc.,Capital Purchases,286216.45,3/3/2022
Broadway Electric  Inc.,Capital Purchases,275534.64,3/3/2022
Broadway Electric  Inc.,Capital Purchases,337500.36,7/1/2022
"Bullseye Engagement, LLC",Services,28800,2/1/2022
Burns & Mcdonnell Engineering Co.,Capital Purchases,132577.01,1/10/2022
Burns & Mcdonnell Engineering Co.,Capital Purchases,152052.1,1/25/2022
Burns & Mcdonnell Engineering Co.,Capital Purchases,97509.4,3/14/2022
Burns & Mcdonnell Engineering Co.,Capital Purchases,13213.2,8/2/2022
Burns & Mcdonnell Engineering Co.,Capital Purchases,756.65,11/2/2022
Burris Equipment Co.,Rental Expense,1814.4,1/10/2022
Burris Equipment Co.,Rental Expense,1814.4,3/17/2022
Business Management Daily/Leap 2022,Services,949,2/17/2022
Cadient LLC,Services,2872,1/12/2022
Cadient LLC,Services,6472,2/24/2022
Cadient LLC,Services,2872,3/10/2022
Cadient LLC,Services,2872,4/5/2022
Cadient LLC,Services,2872,5/11/2022
Cadient LLC,Services,2872,6/15/2022
Cadient LLC,Services,2872,7/6/2022
Cadient LLC,Services,2872,8/2/2022
Cadient LLC,Services,2872,9/7/2022
Cadient LLC,Services,750,10/1/2022
Cadient LLC,Services,9262,11/8/2022
Calumet Harbor Lumber & Supplyco.,Materials,146809,1/10/2022
Calumet Harbor Lumber & Supplyco.,Materials,14221,2/3/2022
Calumet Harbor Lumber & Supplyco.,Materials,2847.3,2/7/2022
Calumet Harbor Lumber & Supplyco.,Materials,1912.5,2/9/2022
Calumet Harbor Lumber & Supplyco.,Materials,7160,2/10/2022
Calumet Harbor Lumber & Supplyco.,Materials,21452.84,3/2/2022
Calumet Harbor Lumber & Supplyco.,Materials,6001.25,3/21/2022
Calumet Harbor Lumber & Supplyco.,Materials,6182.4,4/21/2022
Calumet Harbor Lumber & Supplyco.,Materials,309.12,4/27/2022
Calumet Harbor Lumber & Supplyco.,Materials,128.52,5/16/2022
Calumet Harbor Lumber & Supplyco.,Materials,191.1,7/5/2022
Calumet Harbor Lumber & Supplyco.,Materials,1146.6,7/8/2022
Calumet Harbor Lumber & Supplyco.,Materials,57467.52,8/1/2022
Calumet Harbor Lumber & Supplyco.,Materials,385.98,8/22/2022
Calumet Harbor Lumber & Supplyco.,Materials,36992,11/1/2022
Calumet Harbor Lumber & Supplyco.,Materials,14622.72,11/29/2022
Calumet Lift Truck Service Co. Inc.,Rental Expense,625,1/12/2022
Calumet Lift Truck Service Co. Inc.,Rental Expense,850,3/3/2022
Calumet Lift Truck Service Co. Inc.,Services,425,4/21/2022
Calumet Lift Truck Service Co. Inc.,Services,850,6/10/2022
Calumet Lift Truck Service Co. Inc.,Services,425,8/17/2022
Canadian National Railroad,Services,357.44,1/11/2022
Canadian National Railroad,Services,61212.64,2/8/2022
Canadian National Railroad,Services,49663.08,2/15/2022
Canadian National Railroad,Services,152367.29,2/15/2022
Canadian National Railroad,Services,2323.16,2/15/2022
Canadian National Railroad,Capital Purchases,81937.5,2/24/2022
Canadian National Railroad,Services,152367.29,2/25/2022
Canadian National Railroad,Services,2342.64,2/28/2022
Canadian National Railroad,Services,228550.94,3/3/2022
Canadian National Railroad,Services,152367.29,3/7/2022
Canadian National Railroad,Services,228550.94,3/7/2022
Canadian National Railroad,Services,228550.94,3/28/2022
Canadian National Railroad,Services,121526.2,3/29/2022
Canadian National Railroad,Services,430.38,4/12/2022
Canadian National Railroad,Services,5178.1,4/25/2022
Canadian National Railroad,Services,152367.29,4/27/2022
Canadian National Railroad,Services,228550.94,4/27/2022
Canadian National Railroad,Services,65139.93,5/2/2022
Canadian National Railroad,Services,228550.94,5/10/2022
Canadian National Railroad,Services,152367.29,6/7/2022
Canadian National Railroad,Services,228550.94,6/7/2022
Canadian National Railroad,Services,152367.29,6/9/2022
Canadian National Railroad,Services,591.72,6/10/2022
Canadian National Railroad,Services,591.72,6/27/2022
Canadian National Railroad,Services,103992.56,7/1/2022
Canadian National Railroad,Services,228550.94,7/7/2022
Canadian National Railroad,Services,152367.29,7/7/2022
Canadian National Railroad,Services,316.05,7/7/2022
Canadian National Railroad,Services,30010.54,8/1/2022
Canadian National Railroad,Services,152367.29,8/5/2022
Canadian National Railroad,Services,228550.94,8/5/2022
Canadian National Railroad,Services,152367.29,9/6/2022
Canadian National Railroad,Services,228550.94,9/7/2022
Canadian National Railroad,Capital Purchases,133312.12,10/1/2022
Canadian National Railroad,Capital Purchases,253738.68,10/3/2022
Canadian National Railroad,Services,152367.29,10/13/2022
Canadian National Railroad,Services,298383.15,10/13/2022
Canadian National Railroad,Capital Purchases,362040.2,10/24/2022
Canadian National Railroad,Services,463.31,10/26/2022
Canadian National Railroad,Services,70134.53,10/28/2022
Canadian National Railroad,Services,228550.94,11/2/2022
Canadian National Railroad,Services,152367.29,11/4/2022
Canadian National Railroad,Services,70660.26,11/7/2022
Canadian National Railroad,Services,4211.16,11/18/2022
Canadian National Railroad,Services,1794.03,12/1/2022
Canadian National Railroad,Services,228550.94,12/2/2022
Canadian National Railroad,Services,152367.29,12/15/2022
Canadian National Railroad,Services,7427.12,12/15/2022
Canadian National Railroad,Services,5466.51,12/19/2022
Canadian Pacific Railway Co.,Services,100569.69,1/21/2022
Canadian Pacific Railway Co.,Services,489651.11,6/13/2022
Canadian Pacific Railway Co.,Services,102525.31,6/20/2022
Canadian Pacific Railway Co.,Services,84735.01,6/24/2022
Canadian Pacific Railway Co.,Services,97508.31,7/27/2022
Canadian Pacific Railway Co.,Services,76676.42,7/29/2022
Canadian Pacific Railway Co.,Services,174037.86,8/1/2022
Canadian Pacific Railway Co.,Services,229659.12,8/18/2022
Canadian Pacific Railway Co.,Services,77457.68,9/21/2022
Canadian Pacific Railway Co.,Services,77145.18,11/7/2022
Canadian Pacific Railway Co.,Services,77926.44,11/16/2022
Canteen Refreshment Services,Materials,306.69,3/1/2022
Canteen Refreshment Services,Materials,445,3/8/2022
Canteen Refreshment Services,Materials,241.57,3/25/2022
Canteen Refreshment Services,Materials,362.1,5/13/2022
Canteen Refreshment Services,Materials,426,6/23/2022
Canteen Refreshment Services,Materials,47.52,7/19/2022
Canteen Refreshment Services,Materials,79.95,7/20/2022
Canteen Refreshment Services,Materials,174,8/29/2022
Canteen Refreshment Services,Materials,644.97,9/12/2022
Canteen Refreshment Services,Materials,928.55,11/30/2022
Carahsoft Technology Corp,Services,31125.13,1/12/2022
Cardinal Color Group,Services,1395,10/6/2022
Cardinal Color Group,Services,41475.11,10/20/2022
Cardinal Colorprint,Services,32140.1,6/8/2022
Cardinal Colorprint,Services,21799.99,7/13/2022
Carlos A. Del Toro,Services,226.28,1/26/2022
Carlos A. Del Toro,Services,281.15,3/1/2022
Carlos A. Del Toro,Services,203.58,3/10/2022
Carlos A. Del Toro,Services,259.27,3/21/2022
Carlos A. Del Toro,Services,227.57,4/11/2022
Carlos A. Del Toro,Services,242.42,4/25/2022
Carlos A. Del Toro,Services,252.25,5/12/2022
Carlos A. Del Toro,Services,189.07,5/20/2022
Carlos A. Del Toro,Services,262.67,6/6/2022
Carlos A. Del Toro,Services,194.57,6/21/2022
Carlos A. Del Toro,Services,208.14,7/8/2022
Carlos A. Del Toro,Services,277.63,7/25/2022
Carlos A. Del Toro,Services,253.88,8/15/2022
Carlos A. Del Toro,Services,250.25,8/25/2022
Carlos A. Del Toro,Services,244.13,9/6/2022
Carlos A. Del Toro,Services,214.88,9/30/2022
Carlos A. Del Toro,Services,219.88,10/11/2022
Carlos A. Del Toro,Services,246.63,10/26/2022
Carlos A. Del Toro,Services,167.5,11/17/2022
Carlos A. Del Toro,Services,422.25,11/21/2022
Carlos A. Del Toro,Services,460.13,12/6/2022
Carlos A. Del Toro,Services,271.5,12/22/2022
Carlos Herrera,Claims & Insurance,600,1/6/2022
Carlos Ross,Services,18.72,5/25/2022
Carly Doncourt,Services,98.75,10/13/2022
Carly Doncourt,Services,92.5,11/17/2022
Carmichael Leasing Co.  Inc.,Materials,1268.15,1/5/2022
Carmichael Leasing Co.  Inc.,Services,160.5,1/5/2022
Carmichael Leasing Co.  Inc.,Materials,9280.72,1/19/2022
Carmichael Leasing Co.  Inc.,Services,8265.75,1/19/2022
Carmichael Leasing Co.  Inc.,Materials,1986.46,1/26/2022
Carmichael Leasing Co.  Inc.,Materials,339.9,1/26/2022
Carmichael Leasing Co.  Inc.,Services,1774.06,1/26/2022
Carmichael Leasing Co.  Inc.,Services,1979.5,1/26/2022
Carmichael Leasing Co.  Inc.,Services,321,2/3/2022
Carmichael Leasing Co.  Inc.,Materials,25.26,2/3/2022
Carmichael Leasing Co.  Inc.,Services,3887.1,3/4/2022
Carmichael Leasing Co.  Inc.,Services,9635.4,3/4/2022
Carmichael Leasing Co.  Inc.,Materials,6305.99,3/4/2022
Carmichael Leasing Co.  Inc.,Materials,370.08,3/14/2022
Carmichael Leasing Co.  Inc.,Services,807.85,3/14/2022
Carmichael Leasing Co.  Inc.,Services,566.64,3/22/2022
Carmichael Leasing Co.  Inc.,Services,361.98,3/22/2022
Carmichael Leasing Co.  Inc.,Services,325.92,3/23/2022
Carmichael Leasing Co.  Inc.,Materials,1536.58,3/24/2022
Carmichael Leasing Co.  Inc.,Services,989.75,3/24/2022
Carmichael Leasing Co.  Inc.,Services,327.18,3/24/2022
Carmichael Leasing Co.  Inc.,Services,11393.28,3/29/2022
Carmichael Leasing Co.  Inc.,Materials,14260.94,3/29/2022
Carmichael Leasing Co.  Inc.,Materials,721.58,4/11/2022
Carmichael Leasing Co.  Inc.,Services,1230.5,4/11/2022
Carmichael Leasing Co.  Inc.,Materials,1246.94,4/28/2022
Carmichael Leasing Co.  Inc.,Services,2070.45,4/28/2022
Carmichael Leasing Co.  Inc.,Materials,86.02,4/29/2022
Carmichael Leasing Co.  Inc.,Services,551.05,4/29/2022
Carmichael Leasing Co.  Inc.,Services,3664.75,5/11/2022
Carmichael Leasing Co.  Inc.,Materials,3064.9,5/11/2022
Carmichael Leasing Co.  Inc.,Services,54.22,6/2/2022
Carmichael Leasing Co.  Inc.,Services,2719.94,6/6/2022
Carmichael Leasing Co.  Inc.,Materials,3130.53,6/6/2022
Carmichael Leasing Co.  Inc.,Materials,1221.25,6/7/2022
Carmichael Leasing Co.  Inc.,Materials,160.5,6/7/2022
Carmichael Leasing Co.  Inc.,Services,909.5,6/7/2022
Carmichael Leasing Co.  Inc.,Services,5134.6,6/8/2022
Carmichael Leasing Co.  Inc.,Materials,843.99,6/8/2022
Carmichael Leasing Co.  Inc.,Services,1230.5,6/23/2022
Carmichael Leasing Co.  Inc.,Materials,979.51,6/23/2022
Carmichael Leasing Co.  Inc.,Materials,1111.63,6/24/2022
Carmichael Leasing Co.  Inc.,Services,2744.55,6/24/2022
Carmichael Leasing Co.  Inc.,Services,2719.94,6/29/2022
Carmichael Leasing Co.  Inc.,Materials,2710.53,6/29/2022
Carmichael Leasing Co.  Inc.,Services,1444.5,7/6/2022
Carmichael Leasing Co.  Inc.,Materials,1920.19,7/6/2022
Carmichael Leasing Co.  Inc.,Services,1257.25,7/14/2022
Carmichael Leasing Co.  Inc.,Materials,983.43,7/14/2022
Carmichael Leasing Co.  Inc.,Materials,362.8,8/1/2022
Carmichael Leasing Co.  Inc.,Services,963,8/1/2022
Carmichael Leasing Co.  Inc.,Services,4994.4,8/18/2022
Carmichael Leasing Co.  Inc.,Materials,3338.02,8/18/2022
Carmichael Leasing Co.  Inc.,Materials,1740.49,8/29/2022
Carmichael Leasing Co.  Inc.,Services,1380.64,8/29/2022
Carmichael Leasing Co.  Inc.,Materials,2261.84,9/27/2022
Carmichael Leasing Co.  Inc.,Services,2300.5,9/27/2022
Carmichael Leasing Co.  Inc.,Services,599.2,10/5/2022
Carmichael Leasing Co.  Inc.,Materials,115.87,10/5/2022
Carmichael Leasing Co.  Inc.,Services,2675,10/21/2022
Carmichael Leasing Co.  Inc.,Materials,1258.42,10/21/2022
Carnow  Conibear & Assoc.  Ltd.,Services,20235,1/12/2022
Carnow  Conibear & Assoc.  Ltd.,Services,6860,3/8/2022
Carnow  Conibear & Assoc.  Ltd.,Services,5600,3/25/2022
Carnow  Conibear & Assoc.  Ltd.,Services,980,4/21/2022
Carnow  Conibear & Assoc.  Ltd.,Materials,35010,6/15/2022
Carnow  Conibear & Assoc.  Ltd.,Services,4324,6/15/2022
Carnow  Conibear & Assoc.  Ltd.,Services,2310,6/15/2022
Carol Fletcher,Services,75.24,11/28/2022
Carol Fletcher,Services,6.63,11/28/2022
Carol Fletcher,Services,712,11/28/2022
Carol Fletcher,Services,175.5,11/28/2022
Carolina Alcalde,Services,30,3/10/2022
Casimir Sieronski,Services,1340.4,1/26/2022
Cavalry Fire Protection Svc. LLC,Services,1024.2,1/19/2022
Cavalry Fire Protection Svc. LLC,Services,469.3,1/19/2022
Cavalry Fire Protection Svc. LLC,Services,2740,1/19/2022
Cavalry Fire Protection Svc. LLC,Materials,1920,2/3/2022
Cavalry Fire Protection Svc. LLC,Materials,1972.1,2/7/2022
Cavalry Fire Protection Svc. LLC,Materials,739.3,2/10/2022
Cavalry Fire Protection Svc. LLC,Services,1001,2/15/2022
Cavalry Fire Protection Svc. LLC,Services,478.9,2/15/2022
Cavalry Fire Protection Svc. LLC,Services,596.7,2/15/2022
Cavalry Fire Protection Svc. LLC,Services,744.2,3/8/2022
Cavalry Fire Protection Svc. LLC,Services,731.4,3/8/2022
Cavalry Fire Protection Svc. LLC,Services,1551.3,3/11/2022
Cavalry Fire Protection Svc. LLC,Materials,761,3/22/2022
Cavalry Fire Protection Svc. LLC,Services,2904.6,3/22/2022
Cavalry Fire Protection Svc. LLC,Services,814.8,3/24/2022
Cavalry Fire Protection Svc. LLC,Services,554.5,3/29/2022
Cavalry Fire Protection Svc. LLC,Materials,4776.9,4/14/2022
Cavalry Fire Protection Svc. LLC,Services,1796.1,4/21/2022
Cavalry Fire Protection Svc. LLC,Materials,581.6,4/21/2022
Cavalry Fire Protection Svc. LLC,Services,609.2,4/21/2022
Cavalry Fire Protection Svc. LLC,Services,105,4/21/2022
Cavalry Fire Protection Svc. LLC,Services,3047.7,4/21/2022
Cavalry Fire Protection Svc. LLC,Services,618.1,4/27/2022
Cavalry Fire Protection Svc. LLC,Services,1667,5/10/2022
Cavalry Fire Protection Svc. LLC,Services,4782.4,5/10/2022
Cavalry Fire Protection Svc. LLC,Services,201.9,5/11/2022
Cavalry Fire Protection Svc. LLC,Services,424.4,5/11/2022
Cavalry Fire Protection Svc. LLC,Services,397.4,5/11/2022
Cavalry Fire Protection Svc. LLC,Services,816.9,6/2/2022
Cavalry Fire Protection Svc. LLC,Services,1211.2,6/15/2022
Cavalry Fire Protection Svc. LLC,Services,1116,6/15/2022
Cavalry Fire Protection Svc. LLC,Services,1364.7,6/23/2022
Cavalry Fire Protection Svc. LLC,Materials,862,7/1/2022
Cavalry Fire Protection Svc. LLC,Services,489.9,7/18/2022
Cavalry Fire Protection Svc. LLC,Services,547.1,7/18/2022
Cavalry Fire Protection Svc. LLC,Services,435.2,7/27/2022
Cavalry Fire Protection Svc. LLC,Services,150,7/27/2022
Cavalry Fire Protection Svc. LLC,Materials,1355.1,8/29/2022
Cavalry Fire Protection Svc. LLC,Services,128,8/29/2022
Cavalry Fire Protection Svc. LLC,Services,392.5,8/29/2022
Cavalry Fire Protection Svc. LLC,Services,662.8,8/29/2022
Cavalry Fire Protection Svc. LLC,Services,759.2,9/12/2022
Cavalry Fire Protection Svc. LLC,Services,661.5,9/12/2022
Cavalry Fire Protection Svc. LLC,Services,649.6,10/6/2022
Cavalry Fire Protection Svc. LLC,Services,363.7,10/19/2022
Cavalry Fire Protection Svc. LLC,Services,754.2,10/19/2022
Cavalry Fire Protection Svc. LLC,Services,240.3,10/19/2022
Cavalry Fire Protection Svc. LLC,Materials,315.8,10/28/2022
Cavalry Fire Protection Svc. LLC,Materials,4152,10/31/2022
Cavalry Fire Protection Svc. LLC,Materials,300,11/7/2022
Cavalry Fire Protection Svc. LLC,Materials,1868.2,11/7/2022
Cavalry Fire Protection Svc. LLC,Materials,1149.4,11/8/2022
Cavalry Fire Protection Svc. LLC,Services,886.4,11/22/2022
Cavalry Fire Protection Svc. LLC,Services,954.1,11/22/2022
Cavalry Fire Protection Svc. LLC,Materials,272.6,11/22/2022
Cavalry Fire Protection Svc. LLC,Services,230.8,11/22/2022
Cavalry Fire Protection Svc. LLC,Services,320,11/22/2022
Cavalry Fire Protection Svc. LLC,Materials,2124.9,12/6/2022
CDECI,Services,13168,1/3/2022
CDECI,Materials,1375.12,1/3/2022
CDECI,Services,32672,1/19/2022
CDECI,Materials,8151.48,1/19/2022
CDECI,Services,15840,3/1/2022
CDECI,Materials,490.36,3/1/2022
CDECI,Materials,168.49,3/3/2022
CDECI,Services,13960,3/3/2022
CDECI,Materials,176.08,3/4/2022
CDECI,Services,9704,3/4/2022
CDECI,Materials,8874.49,3/8/2022
CDECI,Services,16665,3/14/2022
CDECI,Services,19803,4/21/2022
CDECI,Materials,2330.29,4/21/2022
CDECI,Materials,1210.36,5/11/2022
CDECI,Services,12117,5/11/2022
CDECI,Services,20835,6/1/2022
CDECI,Materials,1121.08,6/1/2022
CDECI,Services,20281.11,7/1/2022
CDECI,Materials,509.61,7/1/2022
CDECI,Materials,459.15,7/18/2022
CDECI,Services,10482,7/18/2022
CDECI,Services,9966,8/5/2022
CDECI,Materials,295.63,8/5/2022
CDECI,Materials,98.27,8/9/2022
CDECI,Services,8505,8/9/2022
CDECI,Materials,1015.03,8/16/2022
CDECI,Services,10998,9/1/2022
CDECI,Materials,839.32,9/1/2022
CDECI,Materials,7733.7,10/5/2022
CDECI,Services,17097,10/5/2022
CDECI,Services,8892,11/1/2022
CDECI,Materials,375.3,11/1/2022
CDECI,Materials,24.35,11/1/2022
CDECI,Services,9450,11/1/2022
CDECI,Services,20448,12/8/2022
CDECI,Materials,1883.53,12/8/2022
Cdm Smith  Inc.,Capital Purchases,391361.96,1/3/2022
Cdm Smith  Inc.,Capital Purchases,187053.78,3/3/2022
Cdm Smith  Inc.,Capital Purchases,82523.39,7/1/2022
Cdm Smith  Inc.,Capital Purchases,157031.95,8/1/2022
Cdm Smith  Inc.,Capital Purchases,11222.13,11/22/2022
CDW Government  LLC,Capital Purchases,46550,1/20/2022
CDW Government  LLC,Capital Purchases,19734,2/16/2022
CDW Government  LLC,Materials,2425,3/23/2022
CDW Government  LLC,Capital Purchases,485,3/25/2022
CDW Government  LLC,Services,24080.36,4/6/2022
CDW Government  LLC,Services,5467.5,5/12/2022
CDW Government  LLC,Capital Purchases,970,6/28/2022
CDW Government  LLC,Capital Purchases,485,7/7/2022
CDW Government  LLC,Capital Purchases,3395,7/8/2022
CDW Government  LLC,Capital Purchases,485,7/8/2022
CDW Government  LLC,Capital Purchases,970,7/8/2022
CDW Government  LLC,Capital Purchases,4575,7/19/2022
CDW Government  LLC,Materials,1940,7/19/2022
CDW Government  LLC,Claims & Insurance,4671.21,9/6/2022
CDW Government  LLC,Capital Purchases,485,12/14/2022
CDW Government  LLC,Capital Purchases,485,12/16/2022
"CDW Logistics, Inc.",Materials,132,6/14/2022
CE Power Engineered Services LLC,Capital Purchases,27444,3/24/2022
CE Power Engineered Services LLC,Capital Purchases,129840,4/27/2022
CE Power Engineered Services LLC,Services,27444,9/27/2022
CE Power Engineered Services LLC,Capital Purchases,37476,9/27/2022
Cedric Hayes,Services,179.2,1/7/2022
Cedric Hayes,Services,126.36,2/23/2022
Cedric L Smith,Services,217.94,1/25/2022
Celeste Industries Corp.,Materials,380,3/23/2022
Celeste Industries Corp.,Materials,1140,7/6/2022
Celeste Industries Corp.,Materials,3000,11/15/2022
Central Sales & Service Inc.,Materials,248,1/3/2022
Central Sales & Service Inc.,Materials,1364,1/12/2022
Central Sales & Service Inc.,Capital Purchases,52174.2,2/9/2022
Central Sales & Service Inc.,Capital Purchases,6305.94,6/6/2022
Central Sales & Service Inc.,Capital Purchases,12298.62,6/8/2022
Central Sales & Service Inc.,Capital Purchases,2711.1,7/6/2022
Central Sales & Service Inc.,Materials,367.8,7/8/2022
Central Sales & Service Inc.,Materials,1241.52,7/28/2022
Central Sales & Service Inc.,Capital Purchases,24812.04,8/3/2022
Central Sales & Service Inc.,Materials,1905.84,9/28/2022
Central Sales & Service Inc.,Capital Purchases,24794.16,10/10/2022
Central Sales & Service Inc.,Materials,1803.16,10/12/2022
Central Sales & Service Inc.,Capital Purchases,42203.44,11/16/2022
CenTrio Energy Chicago LLC,Utilities,18731.16,2/10/2022
CenTrio Energy Chicago LLC,Utilities,21543.92,2/15/2022
CenTrio Energy Chicago LLC,Utilities,11453.46,3/23/2022
CenTrio Energy Chicago LLC,Utilities,14803.36,4/11/2022
CenTrio Energy Chicago LLC,Utilities,27191.62,5/11/2022
CenTrio Energy Chicago LLC,Utilities,74444.43,7/7/2022
CenTrio Energy Chicago LLC,Utilities,39751.55,8/5/2022
CenTrio Energy Chicago LLC,Utilities,42516.49,9/8/2022
CenTrio Energy Chicago LLC,Utilities,32424.05,10/13/2022
CenTrio Energy Chicago LLC,Utilities,14890.49,11/15/2022
CenTrio Energy Chicago LLC,Utilities,18989.81,12/16/2022
Certified Fleet Services  Inc.,Services,6458,3/2/2022
Certified Fleet Services  Inc.,Services,128.43,3/2/2022
Certified Fleet Services  Inc.,Services,475,3/2/2022
Certified Fleet Services  Inc.,Materials,29028.34,3/2/2022
Certified Languages International,Services,1386.73,4/11/2022
Certified Languages International,Services,52.2,4/18/2022
Certified Languages International,Services,102.9,5/4/2022
Certified Languages International,Services,79.2,6/22/2022
Certified Languages International,Services,71.1,7/11/2022
Certified Languages International,Services,1516.06,7/15/2022
Certified Languages International,Services,85.5,9/6/2022
Certified Languages International,Services,108.9,10/10/2022
Certified Languages International,Services,65.7,10/26/2022
Certified Languages International,Services,1403.91,12/23/2022
Charles A. Wilson,Services,104.16,1/10/2022
Charles A. Wilson,Services,178.08,1/10/2022
Charles A. Wilson,Services,137.76,1/12/2022
Charles A. Wilson,Services,73.92,1/12/2022
Charles A. Wilson,Services,74.88,2/11/2022
Charles A. Wilson,Services,12.87,3/9/2022
Charles A. Wilson,Services,37.44,7/25/2022
Charles A. Wilson,Services,55,9/9/2022
Charles A. Wilson,Services,13.75,11/14/2022
Charles A. Wilson,Services,40,12/1/2022
Charles F. Kalb  Jr.,Services,3565.5,7/5/2022
CHARLES T. BERRY,Services,13.02,9/7/2022
CHARLES T. BERRY,Services,540.32,9/7/2022
CHARLES T. BERRY,Services,674.52,9/7/2022
CHARLES T. BERRY,Services,288,9/7/2022
CHARMALEE ORSENO,Services,1075.68,6/30/2022
Chas A Arce,Services,93.6,4/11/2022
Chas A Arce,Services,46.8,4/28/2022
Chas A Arce,Services,40,8/12/2022
Chas A Arce,Services,50,9/1/2022
Chas A Arce,Services,40,12/19/2022
CHC WELLBEING INC,Services,9980,12/21/2022
"Checkfluid, Inc",Materials,900,1/26/2022
"Checkfluid, Inc",Materials,43.7,1/26/2022
"Checkfluid, Inc",Materials,750,4/21/2022
"Checkfluid, Inc",Materials,41.5,4/21/2022
"Checkfluid, Inc",Materials,1200,4/22/2022
"Checkfluid, Inc",Materials,26.93,4/22/2022
"Checkfluid, Inc",Materials,56.31,6/9/2022
"Checkfluid, Inc",Materials,1200,6/9/2022
"Checkfluid, Inc",Materials,1200,9/7/2022
"Checkfluid, Inc",Materials,72.16,9/7/2022
Chem & Consult  Inc.,Materials,4289.46,3/4/2022
Chem & Consult  Inc.,Materials,3251.64,5/16/2022
Chem & Consult  Inc.,Materials,3707.88,7/5/2022
Chem & Consult  Inc.,Materials,4634.85,9/27/2022
Chem & Consult  Inc.,Materials,8342.73,12/15/2022
Chi Lam Darren Tam,Services,47.38,11/2/2022
Chicago Bar Assn.,Services,380,5/11/2022
Chicago Car Seal Co.,Materials,320,1/25/2022
Chicago Car Seal Co.,Materials,567.6,9/12/2022
CHICAGO COMPENSATION ASSOCIATION,Services,75,5/26/2022
Chicago Jack Service  Inc.,Capital Purchases,16555.95,4/21/2022
Chicago Locksmith Service  Inc.,Materials,48,10/17/2022
Chicago Locksmith Service  Inc.,Services,290,10/17/2022
Chicago Locksmith Service  Inc.,Materials,11217.55,10/18/2022
Chicago Locksmith Service  Inc.,Services,8330,10/18/2022
Chicago Metal Maintenance  Inc.,Services,615,1/13/2022
Chicago Metal Maintenance  Inc.,Services,615,2/3/2022
Chicago Metal Maintenance  Inc.,Services,615,3/3/2022
Chicago Metal Maintenance  Inc.,Services,615,3/31/2022
Chicago Metal Maintenance  Inc.,Services,615,5/11/2022
Chicago Metal Maintenance  Inc.,Services,615,6/6/2022
Chicago Metal Maintenance  Inc.,Services,615,7/5/2022
Chicago Metal Maintenance  Inc.,Services,615,8/5/2022
Chicago Metal Maintenance  Inc.,Services,615,9/1/2022
Chicago Metal Maintenance  Inc.,Services,615,10/13/2022
Chicago Metal Maintenance  Inc.,Services,615,10/31/2022
Chicago Railroad Supply Inc.,Capital Purchases,46144,2/3/2022
Chicago Railroad Supply Inc.,Capital Purchases,207648,2/10/2022
Chicago Railroad Supply Inc.,Capital Purchases,80116,2/14/2022
Chicago Railroad Supply Inc.,Capital Purchases,35244,3/8/2022
Chicago Railroad Supply Inc.,Services,890.34,4/27/2022
Chicago Railroad Supply Inc.,Services,80.94,5/20/2022
Chicago Railroad Supply Inc.,Materials,2584,6/15/2022
Chicago Railroad Supply Inc.,Capital Purchases,61140.8,7/5/2022
Chicago Railroad Supply Inc.,Capital Purchases,97825.28,7/6/2022
Chicago Railroad Supply Inc.,Capital Purchases,165213.72,7/11/2022
Chicago Railroad Supply Inc.,Capital Purchases,12228,7/14/2022
Chicago Railroad Supply Inc.,Services,1942.56,9/27/2022
Chicago Railroad Supply Inc.,Capital Purchases,5686.9,10/21/2022
Chicago Railroad Supply Inc.,Services,23217,11/4/2022
Chicago Railroad Supply Inc.,Capital Purchases,60466.16,11/30/2022
Chicago Spence Tool & Rubber Co.,Materials,568.2,1/3/2022
Chicago Tire Inc.,Services,7989,1/13/2022
Chicago Tire Inc.,Services,90,5/11/2022
Chicago Tire Inc.,Services,25,5/16/2022
Chicago Tire Inc.,Services,90,5/16/2022
Chicago Tire Inc.,Services,90,5/16/2022
Chicago Tire Inc.,Services,24,5/16/2022
Chicago Tire Inc.,Services,25,5/17/2022
Chicago Tire Inc.,Services,316.09,6/7/2022
Chicago Tire Inc.,Services,1817.6,7/13/2022
Chicago Tire Inc.,Services,90,7/14/2022
Chicago Tire Inc.,Services,303.4,7/28/2022
Chicago Tire Inc.,Services,3780,8/16/2022
Chicago Tire Inc.,Services,90,8/17/2022
Chicago Tire Inc.,Services,1782,8/18/2022
Chicago Tire Inc.,Materials,1251.9,8/18/2022
Chicago Tire Inc.,Services,240.97,10/13/2022
Chicago Tire Inc.,Services,258.64,10/21/2022
Chicago Tire Inc.,Services,4309.69,10/21/2022
Chicago Tire Inc.,Services,2235.15,11/4/2022
Chicago Tire Inc.,Services,90,12/1/2022
Chicago Tire Inc.,Services,180,12/1/2022
Chicago Tire Inc.,Services,578.48,12/2/2022
Chicago Tire Inc.,Services,162.72,12/8/2022
Chicago Tire Inc.,Services,669.88,12/15/2022
Chicago Tire Inc.,Services,12479,12/16/2022
Chicago Title Insurance,Claims & Insurance,48000,1/28/2022
Chicago Transit Authority,Services,8134.5,1/14/2022
Chicago Transit Authority,Services,10846,2/16/2022
Chicago Transit Authority,Services,9911,3/18/2022
Chicago Transit Authority,Services,10285,4/19/2022
Chicago Transit Authority,Services,10098,5/12/2022
Chicago Transit Authority,Services,10051.25,6/14/2022
Chicago Transit Authority,Services,8937.75,7/20/2022
Chicago Transit Authority,Services,10506,8/15/2022
Chicago Transit Authority,Services,12928.5,9/13/2022
Chicago Transit Authority,Services,13311,10/14/2022
Chicago Transit Authority,Services,14968.5,11/15/2022
Chicago Transit Authority,Services,14535,12/14/2022
Chicago United Industries  Ltd.,Materials,4718,1/12/2022
Chicago United Industries  Ltd.,Materials,744,1/12/2022
Chicago United Industries  Ltd.,Materials,402,1/19/2022
Chicago United Industries  Ltd.,Materials,277,1/19/2022
Chicago United Industries  Ltd.,Materials,1005,2/10/2022
Chicago United Industries  Ltd.,Materials,819,2/14/2022
Chicago United Industries  Ltd.,Materials,1615,3/11/2022
Chicago United Industries  Ltd.,Materials,888,3/11/2022
Chicago United Industries  Ltd.,Materials,576,3/15/2022
Chicago United Industries  Ltd.,Materials,748,3/15/2022
Chicago United Industries  Ltd.,Materials,2640.6,4/21/2022
Chicago United Industries  Ltd.,Materials,281,4/21/2022
Chicago United Industries  Ltd.,Materials,544,5/11/2022
Chicago United Industries  Ltd.,Materials,3666,5/16/2022
Chicago United Industries  Ltd.,Materials,1439,6/1/2022
Chicago United Industries  Ltd.,Materials,3288,6/6/2022
Chicago United Industries  Ltd.,Materials,2034,7/6/2022
Chicago United Industries  Ltd.,Materials,569.99,7/15/2022
Chicago United Industries  Ltd.,Materials,964,8/3/2022
Chicagoland Paving Contractors Inc.,Capital Purchases,44947.47,7/1/2022
Chicagoland Truck Parts LLC,Materials,388.02,1/3/2022
Chicagoland Truck Parts LLC,Materials,3171.41,1/5/2022
Chicagoland Truck Parts LLC,Materials,3071.85,1/5/2022
Chicagoland Truck Parts LLC,Materials,67.99,1/5/2022
Chicagoland Truck Parts LLC,Materials,647.33,1/19/2022
Chicagoland Truck Parts LLC,Materials,4143.35,1/24/2022
Chicagoland Truck Parts LLC,Materials,864.94,1/24/2022
Chicagoland Truck Parts LLC,Materials,762.17,1/26/2022
Chicagoland Truck Parts LLC,Materials,496.35,2/14/2022
Chicagoland Truck Parts LLC,Materials,966.73,2/15/2022
Chicagoland Truck Parts LLC,Materials,1776.47,2/24/2022
Chicagoland Truck Parts LLC,Materials,399.67,3/2/2022
Chicagoland Truck Parts LLC,Materials,296.1,3/4/2022
Chicagoland Truck Parts LLC,Materials,860.57,3/8/2022
Chicagoland Truck Parts LLC,Materials,990.57,3/10/2022
Chicagoland Truck Parts LLC,Materials,6140.18,3/24/2022
Chicagoland Truck Parts LLC,Materials,1461.19,3/25/2022
Chicagoland Truck Parts LLC,Materials,1678.51,3/25/2022
Chicagoland Truck Parts LLC,Materials,148.05,3/30/2022
Chicagoland Truck Parts LLC,Materials,146.48,4/4/2022
Chicagoland Truck Parts LLC,Materials,114.98,4/6/2022
Chicagoland Truck Parts LLC,Materials,3615.13,4/6/2022
Chicagoland Truck Parts LLC,Materials,477,4/12/2022
Chicagoland Truck Parts LLC,Materials,2249.62,4/12/2022
Chicagoland Truck Parts LLC,Materials,839.79,4/18/2022
Chicagoland Truck Parts LLC,Materials,2191.2,4/18/2022
Chicagoland Truck Parts LLC,Materials,1802.16,4/22/2022
Chicagoland Truck Parts LLC,Materials,4348.75,4/22/2022
Chicagoland Truck Parts LLC,Materials,68.04,5/17/2022
Chicagoland Truck Parts LLC,Materials,120.96,5/24/2022
Chicagoland Truck Parts LLC,Materials,7895.95,5/24/2022
Chicagoland Truck Parts LLC,Materials,2377.27,6/7/2022
Chicagoland Truck Parts LLC,Materials,84.98,6/8/2022
Chicagoland Truck Parts LLC,Materials,413.91,6/15/2022
Chicagoland Truck Parts LLC,Materials,5777.2,6/16/2022
Chicagoland Truck Parts LLC,Materials,5147.92,7/1/2022
Chicagoland Truck Parts LLC,Materials,56.39,7/11/2022
Chicagoland Truck Parts LLC,Materials,1593.68,7/11/2022
Chicagoland Truck Parts LLC,Materials,237.28,7/13/2022
Chicagoland Truck Parts LLC,Materials,1608.46,7/19/2022
Chicagoland Truck Parts LLC,Materials,957.71,7/28/2022
Chicagoland Truck Parts LLC,Materials,3194.91,8/1/2022
Chicagoland Truck Parts LLC,Materials,511.4,8/9/2022
Chicagoland Truck Parts LLC,Materials,3190.84,8/9/2022
Chicagoland Truck Parts LLC,Materials,148.05,8/22/2022
Chicagoland Truck Parts LLC,Materials,949.11,9/6/2022
Chicagoland Truck Parts LLC,Materials,149.39,9/6/2022
Chicagoland Truck Parts LLC,Materials,170.47,9/12/2022
Chicagoland Truck Parts LLC,Materials,419.9,9/13/2022
Chicagoland Truck Parts LLC,Materials,926.37,9/20/2022
Chicagoland Truck Parts LLC,Materials,74.03,9/20/2022
Chicagoland Truck Parts LLC,Materials,471.87,9/27/2022
Chicagoland Truck Parts LLC,Materials,34.02,10/21/2022
Chicagoland Truck Parts LLC,Materials,1034.71,10/31/2022
Chicagoland Truck Parts LLC,Materials,419.9,11/15/2022
Chicagoland Truck Parts LLC,Materials,580.61,11/16/2022
Chicagoland Truck Parts LLC,Materials,138.47,11/22/2022
Chicagoland Truck Parts LLC,Materials,204.75,11/23/2022
Chicagoland Truck Parts LLC,Materials,1619.01,12/1/2022
Christian Maxwell Ramos,Services,31.99,8/1/2022
Christian Maxwell Ramos,Services,206.5,8/1/2022
Christian Maxwell Ramos,Services,816.96,8/1/2022
Christian Maxwell Ramos,Services,593.19,11/2/2022
Christian Maxwell Ramos,Services,35,11/2/2022
Christian Maxwell Ramos,Services,241.5,11/2/2022
Christian Maxwell Ramos,Services,122.89,11/2/2022
Christopher A Prutsman,Services,43.29,5/5/2022
Christopher A Prutsman,Services,46.25,8/22/2022
Christopher Blanford,Services,42,5/11/2022
Christopher Copeland,Services,16.91,9/13/2022
Christopher P. Dorsey,Services,271.04,1/18/2022
Christopher P. Dorsey,Services,335.21,1/26/2022
Christopher P. Dorsey,Services,304.79,2/3/2022
Christopher P. Dorsey,Services,329.36,2/23/2022
Christopher P. Dorsey,Services,304.79,3/2/2022
Christopher P. Dorsey,Services,356.85,3/17/2022
Christopher P. Dorsey,Services,353.93,4/11/2022
Christopher P. Dorsey,Services,327.02,4/25/2022
Christopher P. Dorsey,Services,388.44,5/17/2022
Christopher P. Dorsey,Services,135.72,5/20/2022
Christopher P. Dorsey,Services,222.3,5/24/2022
Christopher P. Dorsey,Services,290.16,6/23/2022
Christopher P. Dorsey,Services,533.25,7/13/2022
Christopher P. Dorsey,Services,148.13,8/8/2022
Christopher P. Dorsey,Services,159.02,8/25/2022
Christopher P. Dorsey,Services,378.13,8/25/2022
Christopher P. Dorsey,Services,355,9/7/2022
Christopher P. Dorsey,Services,391.88,9/20/2022
Christopher P. Dorsey,Services,217.5,10/11/2022
Christopher P. Dorsey,Services,191.25,10/19/2022
Christopher P. Dorsey,Services,171.25,11/14/2022
Christopher P. Dorsey,Services,220.63,11/21/2022
Christopher P. Dorsey,Services,240.63,12/16/2022
Christopher P. Dorsey,Services,260.63,12/22/2022
Christopher S Jackson,Services,245.1,11/21/2022
Christopher S Jackson,Services,842.38,11/21/2022
Christopher S Jackson,Services,197.5,11/21/2022
Christy Webber & Co.,Services,3791,1/12/2022
Christy Webber & Co.,Services,5987,1/12/2022
Christy Webber & Co.,Materials,440,3/11/2022
Christy Webber & Co.,Services,5987,5/9/2022
Christy Webber & Co.,Services,3791,5/9/2022
Chrome Crankshaft Company LLC,Services,11200,12/1/2022
Church & Fisher LLC,Claims & Insurance,147579.07,1/27/2022
Citibank N.A.,,145000,2/10/2022
Citibank N.A.,,445356.08,3/15/2022
Citibank N.A.,,100654,3/30/2022
Citibank N.A.,,235567.11,4/18/2022
Citibank N.A.,,118478.08,4/25/2022
Citibank N.A.,,485122.37,4/28/2022
Citibank N.A.,Claims & Insurance,145944.14,5/2/2022
Citibank N.A.,,852188.74,5/12/2022
Citibank N.A.,,373788.35,5/20/2022
Citibank N.A.,,160019.19,6/7/2022
Citibank N.A.,,3722638.88,6/9/2022
Citibank N.A.,,75948.2,6/16/2022
Citibank N.A.,,328323,6/20/2022
Citibank N.A.,,98455.78,6/22/2022
Citibank N.A.,,441511.02,6/29/2022
Citibank N.A.,,76496.29,7/14/2022
Citibank N.A.,,362104.04,7/18/2022
Citibank N.A.,,72558.64,7/19/2022
Citibank N.A.,,41310.96,7/21/2022
Citibank N.A.,,1500000,7/26/2022
Citibank N.A.,,96388.46,7/27/2022
Citibank N.A.,,62218.5,8/2/2022
Citibank N.A.,,1200000,8/3/2022
Citibank N.A.,,76088.45,8/4/2022
Citibank N.A.,,143767.18,8/11/2022
Citibank N.A.,,12500000,8/18/2022
Citibank N.A.,,385913.6,8/25/2022
Citibank N.A.,,2750000,9/1/2022
Citibank N.A.,,93952.77,9/7/2022
Citibank N.A.,,42642.64,9/13/2022
Citibank N.A.,,116521.5,9/14/2022
Citibank N.A.,,1470591.88,9/16/2022
Citibank N.A.,,384753.88,10/19/2022
Citibank N.A.,,69384.53,10/21/2022
Citibank N.A.,Claims & Insurance,57499.96,11/1/2022
Citibank N.A.,,72154,11/8/2022
Citibank N.A.,,2500000,12/1/2022
Citibank N.A.,,675000,12/7/2022
Citibank N.A.,,315000,12/13/2022
Citibank N.A.,,75000,12/19/2022
Citibank N.A.,,96319.04,12/21/2022
Citibank N.A.,,120000,12/28/2022
City Of Blue Island,Utilities,106.95,1/10/2022
City Of Blue Island,Utilities,111.19,1/10/2022
City Of Blue Island,Utilities,473.88,1/10/2022
City Of Blue Island,Utilities,125.49,1/10/2022
City Of Blue Island,Utilities,16.73,1/10/2022
City Of Blue Island,Utilities,18.85,1/10/2022
City Of Blue Island,Utilities,23.3,2/18/2022
City Of Blue Island,Utilities,174.74,2/18/2022
City Of Blue Island,Utilities,174.74,2/18/2022
City Of Blue Island,Utilities,174.74,2/18/2022
City Of Blue Island,Utilities,659.84,2/18/2022
City Of Blue Island,Utilities,23.3,2/18/2022
City Of Blue Island,Utilities,158.85,3/10/2022
City Of Blue Island,Utilities,158.85,3/14/2022
City Of Blue Island,Utilities,142.96,3/14/2022
City Of Blue Island,Utilities,19.06,3/14/2022
City Of Blue Island,Utilities,539.86,3/14/2022
City Of Blue Island,Utilities,19.06,3/14/2022
City Of Blue Island,Utilities,275.34,4/11/2022
City Of Blue Island,Utilities,164.14,4/11/2022
City Of Blue Island,Utilities,599.85,4/12/2022
City Of Blue Island,Utilities,158.85,4/12/2022
City Of Blue Island,Utilities,44.38,4/12/2022
City Of Blue Island,Utilities,21.18,5/10/2022
City Of Blue Island,Utilities,158.85,5/11/2022
City Of Blue Island,Utilities,599.85,5/11/2022
City Of Blue Island,Utilities,21.18,5/11/2022
City Of Blue Island,Utilities,158.85,5/11/2022
City Of Blue Island,Utilities,21.18,5/11/2022
City Of Blue Island,Utilities,158.85,5/12/2022
City Of Blue Island,Utilities,599.85,6/15/2022
City Of Blue Island,Utilities,158.85,6/15/2022
City Of Blue Island,Utilities,21.18,6/15/2022
City Of Blue Island,Utilities,21.18,6/15/2022
City Of Blue Island,Utilities,158.85,6/15/2022
City Of Blue Island,Utilities,21.18,6/15/2022
City Of Blue Island,Utilities,158.85,6/15/2022
City Of Blue Island,Utilities,187.45,7/12/2022
City Of Blue Island,Utilities,24.99,7/12/2022
City Of Blue Island,Utilities,24.99,7/12/2022
City Of Blue Island,Utilities,650.29,7/12/2022
City Of Blue Island,Utilities,187.45,7/12/2022
City Of Blue Island,Utilities,24.99,7/12/2022
City Of Blue Island,Utilities,187.45,7/12/2022
City Of Blue Island,Utilities,187.45,8/10/2022
City Of Blue Island,Utilities,650.29,8/10/2022
City Of Blue Island,Utilities,187.45,8/10/2022
City Of Blue Island,Utilities,24.99,8/10/2022
City Of Blue Island,Utilities,37.49,8/10/2022
City Of Blue Island,Utilities,187.45,8/10/2022
City Of Blue Island,Utilities,24.99,8/10/2022
City Of Blue Island,Utilities,27.11,9/8/2022
City Of Blue Island,Utilities,722.88,9/8/2022
City Of Blue Island,Utilities,27.11,9/8/2022
City Of Blue Island,Utilities,187.45,9/8/2022
City Of Blue Island,Utilities,27.11,9/8/2022
City Of Blue Island,Utilities,206.68,9/8/2022
City Of Blue Island,Utilities,199.95,10/10/2022
City Of Blue Island,Utilities,24.99,10/10/2022
City Of Blue Island,Utilities,187.45,10/10/2022
City Of Blue Island,Utilities,187.45,10/10/2022
City Of Blue Island,Utilities,650.29,10/10/2022
City Of Blue Island,Utilities,24.99,10/11/2022
City Of Blue Island,Utilities,52.48,11/8/2022
City Of Blue Island,Utilities,24.99,11/8/2022
City Of Blue Island,Utilities,187.45,11/8/2022
City Of Blue Island,Utilities,650.29,11/8/2022
City Of Blue Island,Utilities,187.45,11/8/2022
City Of Blue Island,Utilities,62.49,11/8/2022
City Of Blue Island,Utilities,187.45,11/8/2022
City Of Blue Island,Utilities,650.29,12/15/2022
City Of Blue Island,Utilities,24.99,12/15/2022
City Of Blue Island,Utilities,187.45,12/15/2022
City Of Blue Island,Utilities,187.45,12/15/2022
City Of Blue Island,Utilities,24.99,12/15/2022
City Of Blue Island,Utilities,187.45,12/15/2022
City Of Blue Island,Utilities,24.99,12/15/2022
City of Chicago,Capital Purchases,16525.25,6/17/2022
City of Chicago,Capital Purchases,33950.5,8/15/2022
City of Chicago,Capital Purchases,16525.25,8/17/2022
City of Chicago,Capital Purchases,330.01,11/1/2022
City Of Chicago  Dept. Of Revenue,Capital Purchases,300,10/18/2022
City Of Chicago  Dept. Of Revenue,Capital Purchases,300,10/18/2022
City Of Chicago  Dept. Of Revenue,Capital Purchases,16525.25,10/18/2022
City Of Chicago  Dept. Of Revenue,Capital Purchases,16525.25,10/18/2022
City Of Chicago  Dept. Of Revenue,Capital Purchases,300,10/18/2022
City Of Chicago  Dept. Of Revenue,Capital Purchases,16525.25,10/18/2022
City Of Elgin,Utilities,214.58,1/13/2022
City Of Elgin,Utilities,244.18,1/14/2022
City Of Elgin,Utilities,39.07,1/19/2022
City Of Elgin,Utilities,897.44,1/19/2022
City Of Elgin,Utilities,224.82,2/3/2022
City Of Elgin,Utilities,29.97,2/10/2022
City Of Elgin,Utilities,1026.26,2/17/2022
City Of Elgin,Utilities,253.12,3/8/2022
City Of Elgin,Utilities,39.76,3/14/2022
City Of Elgin,Utilities,803.7,3/14/2022
City Of Elgin,Utilities,313.42,3/30/2022
City Of Elgin,Utilities,48.4,4/19/2022
City Of Elgin,Utilities,812.94,4/19/2022
City Of Elgin,Utilities,236.26,5/2/2022
City Of Elgin,Utilities,40.52,5/19/2022
City Of Elgin,Utilities,1012.26,5/19/2022
City Of Elgin,Utilities,336.28,6/8/2022
City Of Elgin,Utilities,681.3,6/14/2022
City Of Elgin,Utilities,48.78,6/15/2022
City Of Elgin,Utilities,205.78,6/29/2022
City Of Elgin,Utilities,248.74,7/12/2022
City Of Elgin,Utilities,958.46,7/19/2022
City Of Elgin,Utilities,39.38,7/19/2022
City Of Elgin,Utilities,243.88,7/28/2022
City Of Elgin,Utilities,1016.18,8/16/2022
City Of Elgin,Utilities,40.9,8/16/2022
City Of Elgin,Utilities,1255.46,9/7/2022
City Of Elgin,Utilities,39.38,9/7/2022
City Of Elgin,Utilities,228.64,10/3/2022
City Of Elgin,Utilities,39.38,10/13/2022
City Of Elgin,Utilities,976.24,10/13/2022
City Of Elgin,Utilities,230.26,11/2/2022
City Of Elgin,Utilities,40.52,11/14/2022
City Of Elgin,Utilities,1043.9,11/14/2022
City Of Elgin,Utilities,121.32,12/12/2022
City Of Elgin,Utilities,1254.55,12/12/2022
City Of Harvey Water Department,Utilities,124.56,2/1/2022
City Of Harvey Water Department,Utilities,29.86,2/17/2022
City Of Harvey Water Department,Utilities,37.82,2/17/2022
City Of Harvey Water Department,Utilities,37.3,3/14/2022
City Of Harvey Water Department,Utilities,55.11,3/14/2022
City Of Harvey Water Department,Utilities,37.29,4/19/2022
City Of Harvey Water Department,Utilities,50.07,4/19/2022
City Of Harvey Water Department,Utilities,51.6,5/11/2022
City Of Harvey Water Department,Utilities,33.93,5/11/2022
City Of Harvey Water Department,Utilities,34.07,6/8/2022
City Of Harvey Water Department,Utilities,37.25,6/30/2022
City Of Harvey Water Department,Utilities,35.19,7/7/2022
City Of Harvey Water Department,Utilities,34.95,7/12/2022
City Of Harvey Water Department,Utilities,47.98,8/12/2022
City Of Harvey Water Department,Utilities,34.95,8/12/2022
City Of Harvey Water Department,Utilities,31.38,9/8/2022
City Of Harvey Water Department,Utilities,37.34,9/8/2022
City Of Harvey Water Department,Utilities,38.65,10/19/2022
City Of Harvey Water Department,Utilities,38.51,10/19/2022
City Of Harvey Water Department,Utilities,442.36,11/8/2022
City Of Harvey Water Department,Utilities,35.08,11/8/2022
City Of Harvey Water Department,Utilities,718.53,12/12/2022
City Of Highland Park,Utilities,30.58,1/13/2022
City Of Highland Park,Utilities,25.02,3/17/2022
City Of Highland Park,Utilities,27.8,6/15/2022
City Of Highland Park,Utilities,27.8,9/15/2022
City Of Highland Park,Utilities,27.8,12/20/2022
City Of Joliet,Utilities,44.24,1/13/2022
City Of Joliet,Utilities,17.12,2/18/2022
City Of Joliet,Utilities,21.32,3/24/2022
City Of Joliet,Utilities,20.02,4/26/2022
City Of Joliet,Utilities,21.26,5/24/2022
City Of Joliet,Utilities,20.85,6/23/2022
City of North Chicago,Services,353948,1/12/2022
City Of Oak Forest Ill.,Utilities,38.98,1/19/2022
City Of Oak Forest Ill.,Utilities,62.96,4/19/2022
City Of Oak Forest Ill.,Utilities,49.65,7/14/2022
City Of Oak Forest Ill.,Utilities,67.35,10/17/2022
CJ's Towing & Recovery LLC,Services,3292.35,5/24/2022
CJ's Towing & Recovery LLC,Services,786.5,6/2/2022
CJ's Towing & Recovery LLC,Services,271,6/2/2022
CJ's Towing & Recovery LLC,Services,802,6/3/2022
CJ's Towing & Recovery LLC,Services,3311.4,6/28/2022
CJ's Towing & Recovery LLC,Services,274,6/29/2022
CJ's Towing & Recovery LLC,Services,1799.1,7/28/2022
CJ's Towing & Recovery LLC,Services,242.5,8/23/2022
CJ's Towing & Recovery LLC,Services,351.5,8/26/2022
CJ's Towing & Recovery LLC,Services,3454.75,8/29/2022
CJ's Towing & Recovery LLC,Services,212.05,8/30/2022
CJ's Towing & Recovery LLC,Services,1321.1,8/31/2022
CJ's Towing & Recovery LLC,Services,3888.7,9/1/2022
CJ's Towing & Recovery LLC,Services,1403.6,9/13/2022
CJ's Towing & Recovery LLC,Services,1197.25,9/14/2022
CJ's Towing & Recovery LLC,Services,69.95,9/14/2022
CJ's Towing & Recovery LLC,Services,105.5,9/15/2022
CJ's Towing & Recovery LLC,Services,2775.1,9/21/2022
CJ's Towing & Recovery LLC,Services,703.1,10/12/2022
CJ's Towing & Recovery LLC,Services,2761.8,10/12/2022
CJ's Towing & Recovery LLC,Services,321,10/28/2022
CJ's Towing & Recovery LLC,Services,1274.45,10/28/2022
CJ's Towing & Recovery LLC,Services,1467.05,10/31/2022
CJ's Towing & Recovery LLC,Services,272.35,11/4/2022
CJ's Towing & Recovery LLC,Services,1330.5,11/22/2022
CJ's Towing & Recovery LLC,Services,1420.9,12/1/2022
CJ's Towing & Recovery LLC,Services,364.15,12/1/2022
CJ's Towing & Recovery LLC,Services,759,12/16/2022
CJ's Towing & Recovery LLC,Services,168.85,12/16/2022
CJ's Towing & Recovery LLC,Services,329.6,12/16/2022
Claeven  Ltd.,Services,1771.25,1/4/2022
Claeven  Ltd.,Services,1204.45,1/4/2022
Claeven  Ltd.,Services,595.14,1/4/2022
Claeven  Ltd.,Services,495.95,1/4/2022
Claeven  Ltd.,Services,7617.35,1/4/2022
Claeven  Ltd.,Services,495.8,1/13/2022
Claeven  Ltd.,Services,495.95,1/19/2022
Claeven  Ltd.,Services,779.35,1/26/2022
Claeven  Ltd.,Services,779.2,1/28/2022
Claeven  Ltd.,Services,1629.55,2/28/2022
Claeven  Ltd.,Services,1133.6,2/28/2022
Claeven  Ltd.,Services,991.9,3/1/2022
Claeven  Ltd.,Services,495.95,3/1/2022
Claeven  Ltd.,Services,2479.75,3/2/2022
Claeven  Ltd.,Services,2201.65,3/2/2022
Claeven  Ltd.,Services,4023.19,3/4/2022
Claeven  Ltd.,Services,495.95,3/4/2022
Claeven  Ltd.,Services,1204.45,3/4/2022
Claeven  Ltd.,Services,114.45,3/4/2022
Claeven  Ltd.,Services,495.95,3/8/2022
Claeven  Ltd.,Services,495.95,3/11/2022
Claeven  Ltd.,Services,779.35,3/11/2022
Claeven  Ltd.,Services,1912.95,3/24/2022
Claeven  Ltd.,Services,779.35,3/24/2022
Claeven  Ltd.,Services,1133.6,3/25/2022
Claeven  Ltd.,Services,779.35,3/31/2022
Claeven  Ltd.,Services,495.95,4/14/2022
Claeven  Ltd.,Services,2692.3,4/18/2022
Claeven  Ltd.,Services,746.65,4/18/2022
Claeven  Ltd.,Services,2904.85,4/19/2022
Claeven  Ltd.,Services,1204.45,4/21/2022
Claeven  Ltd.,Services,495.95,4/21/2022
Claeven  Ltd.,Services,354.25,4/21/2022
Claeven  Ltd.,Services,779.35,4/21/2022
Claeven  Ltd.,Services,991.9,4/21/2022
Claeven  Ltd.,Services,354.25,4/21/2022
Claeven  Ltd.,Services,921.05,4/22/2022
Claeven  Ltd.,Services,1275.3,4/27/2022
Claeven  Ltd.,Services,604.25,5/2/2022
Claeven  Ltd.,Services,2408.9,5/17/2022
Claeven  Ltd.,Services,2763.15,5/17/2022
Claeven  Ltd.,Services,2125.5,5/17/2022
Claeven  Ltd.,Services,3329.95,5/17/2022
Claeven  Ltd.,Services,495.95,5/19/2022
Claeven  Ltd.,Services,568.83,5/27/2022
Claeven  Ltd.,Services,2508.09,6/6/2022
Claeven  Ltd.,Services,1001.71,6/6/2022
Claeven  Ltd.,Services,495.95,6/7/2022
Claeven  Ltd.,Services,991.9,6/7/2022
Claeven  Ltd.,Services,495.95,6/13/2022
Claeven  Ltd.,Services,495.95,6/13/2022
Claeven  Ltd.,Services,495.95,6/15/2022
Claeven  Ltd.,Services,779.35,6/24/2022
Claeven  Ltd.,Services,1487.85,6/24/2022
Claeven  Ltd.,Services,779.35,7/5/2022
Claeven  Ltd.,Services,708.5,7/6/2022
Claeven  Ltd.,Services,354.25,7/6/2022
Claeven  Ltd.,Services,212.55,7/6/2022
Claeven  Ltd.,Services,1062.75,7/6/2022
Claeven  Ltd.,Services,921.05,7/6/2022
Claeven  Ltd.,Services,495.95,7/6/2022
Claeven  Ltd.,Services,779.35,7/15/2022
Claeven  Ltd.,Services,779.35,7/18/2022
Claeven  Ltd.,Services,354.25,7/18/2022
Claeven  Ltd.,Services,1346.15,7/28/2022
Claeven  Ltd.,Services,991.9,7/28/2022
Claeven  Ltd.,Services,255.06,8/3/2022
Claeven  Ltd.,Services,779.35,8/12/2022
Claeven  Ltd.,Services,779.35,8/15/2022
Claeven  Ltd.,Services,1133.6,8/15/2022
Claeven  Ltd.,Services,495.95,8/17/2022
Claeven  Ltd.,Services,991.9,8/30/2022
Claeven  Ltd.,Services,921.05,9/1/2022
Claeven  Ltd.,Services,779.35,9/1/2022
Claeven  Ltd.,Services,495.95,9/1/2022
Claeven  Ltd.,Services,921.05,9/1/2022
Claeven  Ltd.,Services,495.95,9/1/2022
Claeven  Ltd.,Services,991.9,9/6/2022
Claeven  Ltd.,Services,850.2,9/7/2022
Claeven  Ltd.,Services,354.25,9/8/2022
Claeven  Ltd.,Services,779.35,9/12/2022
Claeven  Ltd.,Services,779.35,9/12/2022
Claeven  Ltd.,Services,850.2,9/22/2022
Claeven  Ltd.,Services,850.2,9/27/2022
Claeven  Ltd.,Services,495.95,9/28/2022
Claeven  Ltd.,Services,1062.75,9/28/2022
Claeven  Ltd.,Services,495.95,10/5/2022
Claeven  Ltd.,Services,2054.65,10/10/2022
Claeven  Ltd.,Services,354.25,10/10/2022
Claeven  Ltd.,Services,495.95,10/12/2022
Claeven  Ltd.,Services,779.35,10/13/2022
Claeven  Ltd.,Services,495.95,10/14/2022
Claeven  Ltd.,Services,595.14,10/21/2022
Claeven  Ltd.,Services,354.25,10/21/2022
Claeven  Ltd.,Services,495.95,10/26/2022
Claeven  Ltd.,Services,1062.75,10/26/2022
Claeven  Ltd.,Services,354.25,10/27/2022
Claeven  Ltd.,Services,1493.3,10/27/2022
Claeven  Ltd.,Services,495.95,10/27/2022
Claeven  Ltd.,Services,1912.95,10/28/2022
Claeven  Ltd.,Services,779.35,10/28/2022
Claeven  Ltd.,Services,495.95,11/1/2022
Claeven  Ltd.,Services,495.95,11/1/2022
Claeven  Ltd.,Services,1417,11/4/2022
Claeven  Ltd.,Services,1912.95,11/4/2022
Claeven  Ltd.,Services,354.25,11/8/2022
Claeven  Ltd.,Services,850.2,11/15/2022
Claeven  Ltd.,Services,779.35,11/15/2022
Claeven  Ltd.,Services,495.95,11/15/2022
Claeven  Ltd.,Services,779.35,11/22/2022
Claeven  Ltd.,Services,495.95,11/29/2022
Claeven  Ltd.,Services,1700.4,12/1/2022
Claeven  Ltd.,Services,817.5,12/1/2022
Claeven  Ltd.,Services,708.5,12/1/2022
Claeven  Ltd.,Services,245.25,12/1/2022
Claeven  Ltd.,Services,255.06,12/5/2022
Claeven  Ltd.,Services,921.05,12/6/2022
Claeven  Ltd.,Services,2196.35,12/8/2022
Claeven  Ltd.,Services,495.95,12/8/2022
Claeven  Ltd.,Services,779.35,12/9/2022
Clarity Partners  Llc,Services,8542.5,1/12/2022
Clarity Partners  Llc,Services,1570.34,1/12/2022
Clarity Partners  Llc,Services,23050,1/24/2022
Clarity Partners  Llc,Services,3140.68,1/24/2022
Clarity Partners  Llc,Services,6880,2/24/2022
Clarity Partners  Llc,Services,1570.34,2/24/2022
Clarity Partners  Llc,Services,6756.25,3/28/2022
Clarity Partners  Llc,Services,1795.34,3/28/2022
Clarity Partners  Llc,Services,3780,5/9/2022
Clarity Partners  Llc,Services,1570.34,5/9/2022
Clarity Partners  Llc,Services,1571.34,5/11/2022
Clarity Partners  Llc,Services,9632.5,5/11/2022
Clarity Partners  Llc,Services,1571.34,5/24/2022
Clarity Partners  Llc,Services,5793.75,5/24/2022
Clarity Partners  Llc,Services,7343.75,7/7/2022
Clarity Partners  Llc,Services,1627.34,7/7/2022
Clarity Partners  Llc,Services,11472.5,7/13/2022
Clarity Partners  Llc,Services,1571.34,7/13/2022
Clarity Partners  Llc,Services,1571.34,9/6/2022
Clarity Partners  Llc,Services,5181.25,9/6/2022
Clarity Partners  Llc,Services,5161.25,10/5/2022
Clarity Partners  Llc,Services,2467.34,10/5/2022
Clarity Partners  Llc,Services,1571.34,11/4/2022
Clarity Partners  Llc,Services,9937.5,11/4/2022
Clarity Partners  Llc,Services,11196.25,12/1/2022
Clarity Partners  Llc,Services,1571.34,12/1/2022
Clark Catering Inc,Services,1582.5,5/11/2022
Clark Catering Inc,Services,1070.5,8/16/2022
Clark Catering Inc,Services,17999.43,9/9/2022
Clark Catering Inc,Services,528.5,9/9/2022
Clark Catering Inc,Services,17999.43,10/4/2022
Clark Catering Inc,Services,15312,10/7/2022
Clark Catering Inc,Services,3475,10/7/2022
Clark Catering Inc,Services,4700,11/15/2022
Clark Catering Inc,Services,5818,12/16/2022
Claybourne Miller,Services,514.69,1/24/2022
Claybourne Miller,Services,320.58,2/9/2022
Claybourne Miller,Services,197.73,2/18/2022
Claybourne Miller,Services,245.7,3/7/2022
Claybourne Miller,Services,283.14,3/21/2022
Claybourne Miller,Services,331.6,4/6/2022
Claybourne Miller,Services,245.7,5/2/2022
Claybourne Miller,Services,245.7,5/9/2022
Claybourne Miller,Services,272.61,5/18/2022
Claybourne Miller,Services,283.14,6/13/2022
Claybourne Miller,Services,245.7,6/20/2022
Claybourne Miller,Services,262.85,7/25/2022
Claybourne Miller,Services,294.16,7/26/2022
Claybourne Miller,Services,474.28,8/16/2022
Claybourne Miller,Services,211.43,9/1/2022
Claybourne Miller,Services,314.28,9/22/2022
Claybourne Miller,Services,262.85,10/10/2022
Claybourne Miller,Services,474.28,10/27/2022
Cle L Shaw,Services,200,11/22/2022
Cle Shaw,Services,200,11/22/2022
Cleaning Specialist  Inc.,Services,5814,1/3/2022
Cleaning Specialist  Inc.,Capital Purchases,4550,1/4/2022
Cleaning Specialist  Inc.,Services,2462,1/4/2022
Cleaning Specialist  Inc.,Capital Purchases,5950,1/5/2022
Cleaning Specialist  Inc.,Services,1981,1/13/2022
Cleaning Specialist  Inc.,Services,578,1/19/2022
Cleaning Specialist  Inc.,Services,1156,1/19/2022
Cleaning Specialist  Inc.,Services,851,2/15/2022
Cleaning Specialist  Inc.,Services,2377,2/15/2022
Cleaning Specialist  Inc.,Services,7779,2/24/2022
Cleaning Specialist  Inc.,Services,3012,3/4/2022
Cleaning Specialist  Inc.,Services,1933,3/16/2022
Cleaning Specialist  Inc.,Services,452,4/6/2022
Cleaning Specialist  Inc.,Services,2902,4/21/2022
Cleaning Specialist  Inc.,Capital Purchases,3850,4/27/2022
Cleaning Specialist  Inc.,Services,430,5/10/2022
Cleaning Specialist  Inc.,Services,6039,6/1/2022
Cleaning Specialist  Inc.,Services,2207,6/7/2022
Cleaning Specialist  Inc.,Services,10734.5,6/15/2022
Cleaning Specialist  Inc.,Capital Purchases,3500,7/12/2022
Cleaning Specialist  Inc.,Services,1853.2,8/12/2022
Cleaning Specialist  Inc.,Services,2953.2,8/22/2022
Cleaning Specialist  Inc.,Services,838.6,9/27/2022
Cleaning Specialist  Inc.,Services,2071.6,10/1/2022
Cleaning Specialist  Inc.,Capital Purchases,2100,11/7/2022
Cleaning Specialist  Inc.,Services,3467.5,11/15/2022
Cleaning Specialist  Inc.,Services,4226.75,12/2/2022
Clever Devices Ltd.,Capital Purchases,950616.75,1/12/2022
Clever Devices Ltd.,Capital Purchases,785843.18,2/15/2022
Clever Devices Ltd.,Capital Purchases,1711110.15,2/24/2022
Clever Devices Ltd.,Capital Purchases,99000,3/23/2022
Clever Devices Ltd.,Capital Purchases,59546.11,3/31/2022
Clever Devices Ltd.,Capital Purchases,99000,4/27/2022
Clever Devices Ltd.,Capital Purchases,2256130.42,5/13/2022
Clever Devices Ltd.,Capital Purchases,128726.7,6/6/2022
Clever Devices Ltd.,Services,185298.91,6/6/2022
Clever Devices Ltd.,Capital Purchases,1901233.5,6/13/2022
Clever Devices Ltd.,Capital Purchases,110925,9/1/2022
Clever Devices Ltd.,Capital Purchases,39487.95,10/28/2022
Clever Devices Ltd.,Capital Purchases,193380.64,10/28/2022
Clever Devices Ltd.,Capital Purchases,182454.68,12/14/2022
Clever Devices Ltd.,Capital Purchases,184745.81,12/14/2022
CLINE AVENUE BRIDGE,Services,5.5,11/15/2022
Cloudinary Inc,Services,41400,10/28/2022
"CMPIC, LLC",Services,3781,1/25/2022
"CMPIC, LLC",Services,1230.25,2/15/2022
"Cogan and Power, P. C.",Claims & Insurance,230526.75,2/22/2022
Cohnreznick Llp,Services,5500,1/31/2022
Cohnreznick Llp,Services,7500,7/5/2022
Cohnreznick Llp,Services,5500,7/18/2022
Cohnreznick Llp,Services,12466.5,11/3/2022
Colleen Rockafellow,Claims & Insurance,20,8/3/2022
College of Dupage,Services,275,12/14/2022
Collin Uyttebroeck,Services,301.25,6/6/2022
Collin Uyttebroeck,Services,289,7/14/2022
Collin Uyttebroeck,Services,154.61,8/17/2022
Collin Uyttebroeck,Services,259.61,10/13/2022
Collin Uyttebroeck,Services,63,11/14/2022
Collins Engineers  Inc.,Capital Purchases,31162.73,9/1/2022
Com Ed-Real Estate Dept.  4Th Fl.,Rental Expense,1203.84,1/3/2022
Com Ed-Real Estate Dept.  4Th Fl.,Rental Expense,30.1,1/31/2022
Com Ed-Real Estate Dept.  4Th Fl.,Rental Expense,19673.46,3/17/2022
Com Ed-Real Estate Dept.  4Th Fl.,Rental Expense,740.65,4/22/2022
Com Ed-Real Estate Dept.  4Th Fl.,Rental Expense,1809.12,7/19/2022
Com Ed-Real Estate Dept.  4Th Fl.,Rental Expense,58.73,9/15/2022
Com Ed-Real Estate Dept.  4Th Fl.,Rental Expense,742.44,10/19/2022
Com Ed-Real Estate Dept.  4Th Fl.,Rental Expense,10340.24,10/27/2022
Comcast,Utilities,1278.51,2/7/2022
Comcast,Utilities,4532.9,2/7/2022
Comcast,Utilities,4785.66,3/16/2022
Comcast,Utilities,1349.8,3/16/2022
Comcast,Utilities,4785.1,3/17/2022
Comcast,Utilities,1349.64,3/17/2022
Comcast,Utilities,4880.04,4/25/2022
Comcast,Utilities,1376.42,4/25/2022
Comcast,Utilities,1400.87,5/18/2022
Comcast,Utilities,4966.7,5/18/2022
Comcast,Utilities,1438.79,6/20/2022
Comcast,Utilities,5101.15,6/20/2022
Comcast,Utilities,875.54,7/13/2022
Comcast,Utilities,3104.19,7/13/2022
Comcast,Utilities,860.06,8/11/2022
Comcast,Utilities,3049.31,8/11/2022
Comcast,Utilities,1423.34,9/27/2022
Comcast,Utilities,5046.39,9/27/2022
Comcast,Utilities,1424.22,10/21/2022
Comcast,Utilities,5049.52,10/21/2022
Comcast,Utilities,5047.72,11/28/2022
Comcast,Utilities,1423.72,11/28/2022
Comcast Business,Utilities,49527.05,2/7/2022
Comcast Business,Utilities,74290.59,2/7/2022
Comcast Business,Utilities,37262.2,2/28/2022
Comcast Business,Utilities,24841.47,2/28/2022
Comcast Business,Utilities,121615.11,4/25/2022
Comcast Business,Utilities,62500.14,4/25/2022
Comcast Business,Utilities,40596.2,5/27/2022
Comcast Business,Utilities,27064.13,5/27/2022
Comcast Business,Utilities,38300.09,6/20/2022
Comcast Business,Utilities,25533.39,6/20/2022
Comcast Business,Utilities,38641.23,7/14/2022
Comcast Business,Utilities,25760.82,7/14/2022
Comcast Business,Utilities,38658.88,8/22/2022
Comcast Business,Utilities,25772.59,8/22/2022
Comcast Business,Utilities,38658.88,9/27/2022
Comcast Business,Utilities,25772.59,9/27/2022
Comcast Business,Utilities,38545.63,10/21/2022
Comcast Business,Utilities,25697.08,10/21/2022
Comcast Business,Utilities,25697.08,11/28/2022
Comcast Business,Utilities,38545.63,11/28/2022
Commercial Group Lifting Products,Services,321.1,1/13/2022
Commercial Group Lifting Products,Services,432.4,6/7/2022
Commonwealth Edison,Utilities,364.39,1/3/2022
Commonwealth Edison,Utilities,205.76,1/3/2022
Commonwealth Edison,Utilities,69599.04,1/3/2022
Commonwealth Edison,Utilities,303.18,1/3/2022
Commonwealth Edison,Utilities,59.91,1/3/2022
Commonwealth Edison,Utilities,938.64,1/7/2022
Commonwealth Edison,Utilities,97.31,1/7/2022
Commonwealth Edison,Utilities,258.8,1/7/2022
Commonwealth Edison,Utilities,664.73,1/7/2022
Commonwealth Edison,Utilities,280.02,1/7/2022
Commonwealth Edison,Utilities,3305.29,1/7/2022
Commonwealth Edison,Utilities,24.38,1/7/2022
Commonwealth Edison,Utilities,199970.39,1/13/2022
Commonwealth Edison,Utilities,505.8,2/1/2022
Commonwealth Edison,Utilities,71.66,2/1/2022
Commonwealth Edison,Utilities,461.83,2/8/2022
Commonwealth Edison,Utilities,202.1,2/8/2022
Commonwealth Edison,Utilities,131.28,2/8/2022
Commonwealth Edison,Utilities,239.27,2/8/2022
Commonwealth Edison,Utilities,332.5,2/8/2022
Commonwealth Edison,Utilities,13.84,2/9/2022
Commonwealth Edison,Utilities,23.38,2/18/2022
Commonwealth Edison,Utilities,46.51,2/18/2022
Commonwealth Edison,Utilities,50.23,2/18/2022
Commonwealth Edison,Utilities,325.39,2/18/2022
Commonwealth Edison,Utilities,750.06,2/23/2022
Commonwealth Edison,Utilities,126.72,2/23/2022
Commonwealth Edison,Utilities,322.1,2/23/2022
Commonwealth Edison,Utilities,52.91,2/23/2022
Commonwealth Edison,Utilities,198371.04,2/24/2022
Commonwealth Edison,Utilities,576.02,2/24/2022
Commonwealth Edison,Utilities,44.86,2/24/2022
Commonwealth Edison,Utilities,116.9,2/24/2022
Commonwealth Edison,Utilities,1205.3,2/24/2022
Commonwealth Edison,Utilities,233.73,2/24/2022
Commonwealth Edison,Utilities,56.27,2/24/2022
Commonwealth Edison,Utilities,330.2,2/24/2022
Commonwealth Edison,Utilities,348.88,2/24/2022
Commonwealth Edison,Utilities,1772.12,2/28/2022
Commonwealth Edison,Utilities,121.65,2/28/2022
Commonwealth Edison,Utilities,327.31,3/1/2022
Commonwealth Edison,Utilities,23.07,3/1/2022
Commonwealth Edison,Utilities,28.56,3/1/2022
Commonwealth Edison,Utilities,710.34,3/10/2022
Commonwealth Edison,Utilities,366,3/10/2022
Commonwealth Edison,Utilities,3389.38,3/10/2022
Commonwealth Edison,Utilities,280.37,3/10/2022
Commonwealth Edison,Utilities,23.38,3/10/2022
Commonwealth Edison,Utilities,218.7,3/10/2022
Commonwealth Edison,Utilities,3400.26,3/10/2022
Commonwealth Edison,Utilities,43.68,3/10/2022
Commonwealth Edison,Utilities,369.01,3/10/2022
Commonwealth Edison,Utilities,2447.92,3/10/2022
Commonwealth Edison,Utilities,287.07,3/15/2022
Commonwealth Edison,Utilities,60.44,3/15/2022
Commonwealth Edison,Utilities,226.98,3/15/2022
Commonwealth Edison,Utilities,77.67,3/15/2022
Commonwealth Edison,Utilities,57.85,3/18/2022
Commonwealth Edison,Utilities,1368.68,3/18/2022
Commonwealth Edison,Utilities,518.26,3/18/2022
Commonwealth Edison,Utilities,357.06,3/18/2022
Commonwealth Edison,Utilities,142.74,3/21/2022
Commonwealth Edison,Utilities,660.15,3/21/2022
Commonwealth Edison,Utilities,305674.06,3/23/2022
Commonwealth Edison,Utilities,268.68,3/24/2022
Commonwealth Edison,Utilities,73.76,3/24/2022
Commonwealth Edison,Utilities,173.27,3/24/2022
Commonwealth Edison,Utilities,201.29,3/24/2022
Commonwealth Edison,Utilities,4348.09,3/24/2022
Commonwealth Edison,Utilities,44.35,3/24/2022
Commonwealth Edison,Utilities,165.2,3/24/2022
Commonwealth Edison,Utilities,358.78,3/24/2022
Commonwealth Edison,Utilities,587.82,3/24/2022
Commonwealth Edison,Utilities,554.48,4/4/2022
Commonwealth Edison,Utilities,408.94,4/4/2022
Commonwealth Edison,Utilities,252.44,4/4/2022
Commonwealth Edison,Utilities,23.07,4/4/2022
Commonwealth Edison,Utilities,23.38,4/4/2022
Commonwealth Edison,Utilities,61.3,4/4/2022
Commonwealth Edison,Utilities,75.35,4/4/2022
Commonwealth Edison,Utilities,1986.04,4/4/2022
Commonwealth Edison,Utilities,236.04,4/4/2022
Commonwealth Edison,Utilities,57.35,4/4/2022
Commonwealth Edison,Utilities,143.6,4/5/2022
Commonwealth Edison,Utilities,68.98,4/5/2022
Commonwealth Edison,Utilities,190.43,4/5/2022
Commonwealth Edison,Utilities,237.94,4/5/2022
Commonwealth Edison,Utilities,4471.33,4/5/2022
Commonwealth Edison,Utilities,138.94,4/6/2022
Commonwealth Edison,Utilities,268994.7,4/14/2022
Commonwealth Edison,Utilities,205.61,4/14/2022
Commonwealth Edison,Utilities,703.04,4/14/2022
Commonwealth Edison,Utilities,107.64,4/14/2022
Commonwealth Edison,Utilities,2153.81,4/14/2022
Commonwealth Edison,Utilities,941.51,4/18/2022
Commonwealth Edison,Utilities,31.71,4/18/2022
Commonwealth Edison,Utilities,371.53,4/18/2022
Commonwealth Edison,Utilities,83.68,4/18/2022
Commonwealth Edison,Utilities,602.18,4/18/2022
Commonwealth Edison,Utilities,498946.58,4/25/2022
Commonwealth Edison,Utilities,386.28,4/26/2022
Commonwealth Edison,Utilities,23.38,4/26/2022
Commonwealth Edison,Utilities,195.24,4/26/2022
Commonwealth Edison,Utilities,129.77,4/26/2022
Commonwealth Edison,Utilities,646.42,4/26/2022
Commonwealth Edison,Utilities,44.39,4/26/2022
Commonwealth Edison,Utilities,45.49,4/26/2022
Commonwealth Edison,Utilities,98.42,4/26/2022
Commonwealth Edison,Utilities,124.12,4/26/2022
Commonwealth Edison,Utilities,947.33,5/2/2022
Commonwealth Edison,Utilities,62.22,5/2/2022
Commonwealth Edison,Utilities,383.94,5/2/2022
Commonwealth Edison,Utilities,322.95,5/2/2022
Commonwealth Edison,Utilities,82.35,5/2/2022
Commonwealth Edison,Utilities,229.38,5/2/2022
Commonwealth Edison,Utilities,599465.49,5/9/2022
Commonwealth Edison,Utilities,406585.17,5/9/2022
Commonwealth Edison,Utilities,339.8,5/13/2022
Commonwealth Edison,Utilities,108.97,5/13/2022
Commonwealth Edison,Utilities,48.13,5/13/2022
Commonwealth Edison,Utilities,57.11,5/13/2022
Commonwealth Edison,Utilities,153.96,5/18/2022
Commonwealth Edison,Utilities,665.74,5/18/2022
Commonwealth Edison,Utilities,192.39,5/18/2022
Commonwealth Edison,Utilities,4276.25,5/18/2022
Commonwealth Edison,Utilities,23.58,5/18/2022
Commonwealth Edison,Utilities,224.05,5/18/2022
Commonwealth Edison,Utilities,650.81,5/18/2022
Commonwealth Edison,Utilities,338.71,5/24/2022
Commonwealth Edison,Utilities,238987.95,5/24/2022
Commonwealth Edison,Utilities,118.59,5/24/2022
Commonwealth Edison,Utilities,37.85,5/24/2022
Commonwealth Edison,Utilities,97.77,5/24/2022
Commonwealth Edison,Utilities,82.17,5/24/2022
Commonwealth Edison,Utilities,84.05,5/24/2022
Commonwealth Edison,Utilities,43.48,5/24/2022
Commonwealth Edison,Utilities,46.76,5/24/2022
Commonwealth Edison,Utilities,155083.71,5/27/2022
Commonwealth Edison,Utilities,78.55,6/1/2022
Commonwealth Edison,Utilities,386.35,6/1/2022
Commonwealth Edison,Utilities,65.55,6/1/2022
Commonwealth Edison,Utilities,139.57,6/1/2022
Commonwealth Edison,Utilities,57.09,6/1/2022
Commonwealth Edison,Utilities,129568.95,6/6/2022
Commonwealth Edison,Utilities,206.24,6/6/2022
Commonwealth Edison,Utilities,181.25,6/6/2022
Commonwealth Edison,Utilities,59.13,6/6/2022
Commonwealth Edison,Utilities,242.74,6/6/2022
Commonwealth Edison,Utilities,566.13,6/6/2022
Commonwealth Edison,Utilities,5626.26,6/10/2022
Commonwealth Edison,Utilities,23.07,6/10/2022
Commonwealth Edison,Utilities,587.42,6/10/2022
Commonwealth Edison,Utilities,206.94,6/10/2022
Commonwealth Edison,Utilities,371.62,6/10/2022
Commonwealth Edison,Utilities,84.52,6/20/2022
Commonwealth Edison,Utilities,66.74,6/20/2022
Commonwealth Edison,Utilities,10.32,6/20/2022
Commonwealth Edison,Utilities,37.38,6/20/2022
Commonwealth Edison,Utilities,177.33,6/20/2022
Commonwealth Edison,Utilities,37.89,6/20/2022
Commonwealth Edison,Utilities,88.96,6/22/2022
Commonwealth Edison,Utilities,19.35,6/22/2022
Commonwealth Edison,Utilities,97.14,6/22/2022
Commonwealth Edison,Utilities,22.3,6/22/2022
Commonwealth Edison,Utilities,136.97,6/22/2022
Commonwealth Edison,Utilities,45.87,6/22/2022
Commonwealth Edison,Utilities,159.66,6/22/2022
Commonwealth Edison,Utilities,43.95,6/22/2022
Commonwealth Edison,Utilities,20.63,6/22/2022
Commonwealth Edison,Utilities,193823.69,6/23/2022
Commonwealth Edison,Utilities,58.53,7/6/2022
Commonwealth Edison,Utilities,503.27,7/6/2022
Commonwealth Edison,Utilities,141.37,7/6/2022
Commonwealth Edison,Utilities,67.6,7/6/2022
Commonwealth Edison,Utilities,152409.78,7/21/2022
Commonwealth Edison,Utilities,147.66,7/26/2022
Commonwealth Edison,Utilities,42.67,7/26/2022
Commonwealth Edison,Utilities,4178.45,7/26/2022
Commonwealth Edison,Utilities,22.91,7/26/2022
Commonwealth Edison,Utilities,465.75,7/26/2022
Commonwealth Edison,Utilities,135534.44,7/26/2022
Commonwealth Edison,Utilities,321.93,7/26/2022
Commonwealth Edison,Utilities,18.11,7/26/2022
Commonwealth Edison,Utilities,76.07,7/27/2022
Commonwealth Edison,Utilities,123.24,7/27/2022
Commonwealth Edison,Utilities,19.54,7/27/2022
Commonwealth Edison,Utilities,28.3,7/27/2022
Commonwealth Edison,Utilities,27.42,7/27/2022
Commonwealth Edison,Utilities,44.7,7/27/2022
Commonwealth Edison,Utilities,42.52,7/27/2022
Commonwealth Edison,Utilities,78.83,7/27/2022
Commonwealth Edison,Utilities,542.42,7/27/2022
Commonwealth Edison,Utilities,58.42,7/27/2022
Commonwealth Edison,Utilities,22.96,7/29/2022
Commonwealth Edison,Utilities,589.11,7/29/2022
Commonwealth Edison,Utilities,206.06,7/29/2022
Commonwealth Edison,Utilities,90.03,8/1/2022
Commonwealth Edison,Utilities,41.74,8/1/2022
Commonwealth Edison,Utilities,22.91,8/1/2022
Commonwealth Edison,Utilities,15.92,8/1/2022
Commonwealth Edison,Utilities,66.68,8/1/2022
Commonwealth Edison,Utilities,26.22,8/8/2022
Commonwealth Edison,Utilities,19.91,8/17/2022
Commonwealth Edison,Utilities,59.36,8/17/2022
Commonwealth Edison,Utilities,3922.4,8/17/2022
Commonwealth Edison,Utilities,28.59,8/31/2022
Commonwealth Edison,Utilities,9.86,9/1/2022
Commonwealth Edison,Utilities,30.67,9/1/2022
Commonwealth Edison,Utilities,43.41,9/1/2022
Commonwealth Edison,Utilities,63.11,9/1/2022
Commonwealth Edison,Utilities,24.96,9/1/2022
Commonwealth Edison,Utilities,69.09,9/1/2022
Commonwealth Edison,Utilities,565.44,9/8/2022
Commonwealth Edison,Utilities,43.83,9/8/2022
Commonwealth Edison,Utilities,41.85,9/8/2022
Commonwealth Edison,Utilities,112.89,9/8/2022
Commonwealth Edison,Utilities,111.1,9/8/2022
Commonwealth Edison,Utilities,13.02,9/8/2022
Commonwealth Edison,Utilities,485.89,9/14/2022
Commonwealth Edison,Utilities,155.56,9/14/2022
Commonwealth Edison,Utilities,195.63,9/14/2022
Commonwealth Edison,Utilities,37.34,9/14/2022
Commonwealth Edison,Utilities,50.37,9/14/2022
Commonwealth Edison,Utilities,177.21,9/14/2022
Commonwealth Edison,Utilities,19.82,9/14/2022
Commonwealth Edison,Utilities,64.53,9/15/2022
Commonwealth Edison,Utilities,50.37,9/22/2022
Commonwealth Edison,Utilities,149.13,9/22/2022
Commonwealth Edison,Utilities,166.17,9/22/2022
Commonwealth Edison,Utilities,210.41,9/22/2022
Commonwealth Edison,Utilities,3156.92,9/22/2022
Commonwealth Edison,Utilities,22.91,9/22/2022
Commonwealth Edison,Utilities,42.05,9/22/2022
Commonwealth Edison,Utilities,61,9/22/2022
Commonwealth Edison,Utilities,53.37,9/29/2022
Commonwealth Edison,Utilities,23.71,9/29/2022
Commonwealth Edison,Utilities,15.82,9/29/2022
Commonwealth Edison,Utilities,43,9/29/2022
Commonwealth Edison,Utilities,542.25,9/29/2022
Commonwealth Edison,Utilities,258.83,9/29/2022
Commonwealth Edison,Utilities,7.42,9/29/2022
Commonwealth Edison,Utilities,24.7,9/29/2022
Commonwealth Edison,Utilities,23.22,10/1/2022
Commonwealth Edison,Utilities,18.56,10/1/2022
Commonwealth Edison,Utilities,66.18,10/12/2022
Commonwealth Edison,Utilities,63.85,10/12/2022
Commonwealth Edison,Utilities,66.19,10/12/2022
Commonwealth Edison,Utilities,541.82,10/12/2022
Commonwealth Edison,Utilities,16.88,10/24/2022
Commonwealth Edison,Utilities,40.53,10/24/2022
Commonwealth Edison,Utilities,22.91,10/24/2022
Commonwealth Edison,Utilities,53.55,10/24/2022
Commonwealth Edison,Utilities,270.9,10/24/2022
Commonwealth Edison,Utilities,2558.63,10/27/2022
Commonwealth Edison,Utilities,132647.7,10/27/2022
Commonwealth Edison,Utilities,38.37,10/27/2022
Commonwealth Edison,Utilities,177.38,10/27/2022
Commonwealth Edison,Utilities,50.76,10/27/2022
Commonwealth Edison,Utilities,23.22,11/2/2022
Commonwealth Edison,Utilities,21.62,11/2/2022
Commonwealth Edison,Utilities,60.78,11/2/2022
Commonwealth Edison,Utilities,49.4,11/2/2022
Commonwealth Edison,Utilities,49.06,11/2/2022
Commonwealth Edison,Utilities,27.46,11/2/2022
Commonwealth Edison,Utilities,57.85,11/2/2022
Commonwealth Edison,Utilities,6468.44,11/2/2022
Commonwealth Edison,Utilities,18.14,11/2/2022
Commonwealth Edison,Utilities,41.48,11/2/2022
Commonwealth Edison,Utilities,43158.59,11/3/2022
Commonwealth Edison,Utilities,95.97,11/8/2022
Commonwealth Edison,Utilities,19.78,11/8/2022
Commonwealth Edison,Utilities,14.73,11/8/2022
Commonwealth Edison,Utilities,116.31,11/8/2022
Commonwealth Edison,Utilities,47.06,11/8/2022
Commonwealth Edison,Utilities,503.35,11/8/2022
Commonwealth Edison,Utilities,25.21,11/8/2022
Commonwealth Edison,Utilities,234.64,11/8/2022
Commonwealth Edison,Utilities,29.46,11/8/2022
Commonwealth Edison,Utilities,13256.59,11/21/2022
Commonwealth Edison,Utilities,179.22,11/22/2022
Commonwealth Edison,Utilities,494.86,11/22/2022
Commonwealth Edison,Utilities,421.31,11/22/2022
Commonwealth Edison,Utilities,58.53,11/28/2022
Commonwealth Edison,Utilities,20.94,11/28/2022
Commonwealth Edison,Utilities,1857.9,11/28/2022
Commonwealth Edison,Utilities,41.63,11/28/2022
Commonwealth Edison,Utilities,13877.82,12/8/2022
Commonwealth Edison,Utilities,57.36,12/9/2022
Commonwealth Edison,Utilities,539.56,12/9/2022
Commonwealth Edison,Utilities,43.88,12/9/2022
Commonwealth Edison,Utilities,228.27,12/9/2022
Commonwealth Edison,Utilities,24.33,12/9/2022
Commonwealth Edison,Utilities,23.22,12/9/2022
Commonwealth Edison,Utilities,25.63,12/9/2022
Commonwealth Edison,Utilities,22.02,12/9/2022
Commonwealth Edison,Utilities,48.98,12/9/2022
Commonwealth Edison,Utilities,113.31,12/9/2022
Commonwealth Edison,Utilities,19426.51,12/20/2022
Commonwealth Edison Co.,Capital Purchases,68006.01,4/13/2022
Commonwealth Edison Co.,Rental Expense,1500,7/14/2022
Commuter Rail Coalition,Services,30000,4/5/2022
Commuter Rail Construction Team Llc,Capital Purchases,61442.28,1/5/2022
Commuter Rail Construction Team Llc,Capital Purchases,1567.83,1/5/2022
Commuter Rail Construction Team Llc,Capital Purchases,59736.8,2/1/2022
Commuter Rail Construction Team Llc,Capital Purchases,7900.35,2/18/2022
Commuter Rail Construction Team Llc,Capital Purchases,56352.36,3/4/2022
Commuter Rail Construction Team Llc,Capital Purchases,53049.41,3/29/2022
Commuter Rail Construction Team Llc,Capital Purchases,23659.48,4/5/2022
Commuter Rail Construction Team Llc,Capital Purchases,17993.78,6/1/2022
Commuter Rail Construction Team Llc,Capital Purchases,30411.62,7/13/2022
Commuter Rail Construction Team Llc,Capital Purchases,91718.57,8/5/2022
Commuter Rail Construction Team Llc,Capital Purchases,18628.96,8/19/2022
Commuter Rail Construction Team Llc,Capital Purchases,30726.5,8/29/2022
Commuter Rail Construction Team Llc,Capital Purchases,37.46,9/20/2022
Commuter Rail Construction Team Llc,Capital Purchases,15106.5,9/20/2022
Commuter Rail Construction Team Llc,Capital Purchases,7517.59,10/1/2022
Commuter Rail Construction Team Llc,Capital Purchases,23518.98,10/1/2022
Commuter Rail Construction Team Llc,Capital Purchases,2016.27,11/3/2022
Commuter Rail Construction Team Llc,Capital Purchases,8094.66,11/4/2022
Commuter Rail Construction Team Llc,Capital Purchases,12058.05,11/15/2022
Compass Minerals America Inc.,Materials,1764.41,1/13/2022
Compass Minerals America Inc.,Materials,1655.42,1/25/2022
Compass Minerals America Inc.,Materials,1482.45,2/15/2022
Compass Minerals America Inc.,Materials,5059.46,2/28/2022
Compass Minerals America Inc.,Materials,3391.4,2/28/2022
Compass Minerals America Inc.,Materials,3864.23,3/3/2022
Compass Minerals America Inc.,Materials,5257.7,3/3/2022
Compass Minerals America Inc.,Materials,1692.62,3/4/2022
Compass Minerals America Inc.,Materials,5214.26,3/10/2022
Compass Minerals America Inc.,Materials,1593.82,3/14/2022
Compass Minerals America Inc.,Materials,1602.33,3/14/2022
Compass Minerals America Inc.,Materials,3474.78,3/23/2022
Compass Minerals America Inc.,Materials,1587.79,3/29/2022
Compass Minerals America Inc.,Materials,1825.77,5/10/2022
Compass Minerals America Inc.,Materials,1656.21,8/5/2022
"Complete Fence, Inc.",Materials,28867.54,11/7/2022
Component Distributors,Services,11,3/17/2022
Component Distributors,Materials,1995,3/17/2022
Computer Aid  Inc.,Capital Purchases,63000,1/5/2022
Computer Aid  Inc.,Services,25155.2,1/13/2022
Computer Aid  Inc.,Services,206539.2,1/13/2022
Computer Aid  Inc.,Services,48267.2,2/7/2022
Computer Aid  Inc.,Capital Purchases,192500,2/28/2022
Computer Aid  Inc.,Services,233019.2,3/1/2022
Computer Aid  Inc.,Services,26480,3/3/2022
Computer Aid  Inc.,Services,206539.2,3/4/2022
Computer Aid  Inc.,Capital Purchases,15000,4/7/2022
Computer Aid  Inc.,Capital Purchases,25000,4/11/2022
Computer Aid  Inc.,Services,26480,4/13/2022
Computer Aid  Inc.,Services,210454.4,4/21/2022
Computer Aid  Inc.,Services,236934.4,5/10/2022
Computer Aid  Inc.,Services,236934.4,6/7/2022
Computer Aid  Inc.,Services,23667.2,7/5/2022
Computer Aid  Inc.,Capital Purchases,99850,7/5/2022
Computer Aid  Inc.,Services,186787.2,7/5/2022
Computer Aid  Inc.,Services,26480,7/6/2022
Computer Aid  Inc.,Services,236934.4,8/2/2022
Computer Aid  Inc.,Services,224787.2,9/1/2022
Computer Aid  Inc.,Services,1068.12,10/1/2022
Computer Aid  Inc.,Services,217225.6,10/10/2022
Computer Aid  Inc.,Services,43559.18,10/28/2022
Computer Aid  Inc.,Services,217225.6,11/1/2022
Computer Aid  Inc.,Services,31370.89,11/22/2022
Computer Aid  Inc.,Services,217225.6,12/1/2022
Computer Sciences Corp,Capital Purchases,7681.25,8/23/2022
"Conceal, Inc",Claims & Insurance,5280,9/26/2022
Conklin & Conklin LLC,Claims & Insurance,8190,1/5/2022
Conklin & Conklin LLC,Services,11805,1/5/2022
Conklin & Conklin LLC,Services,1592.5,1/5/2022
Conklin & Conklin LLC,Claims & Insurance,12370,2/22/2022
Conklin & Conklin LLC,Services,11702.08,2/22/2022
Conklin & Conklin LLC,Claims & Insurance,4885,2/22/2022
Conklin & Conklin LLC,Services,2205,2/22/2022
Conklin & Conklin LLC,Claims & Insurance,4950,3/11/2022
Conklin & Conklin LLC,Claims & Insurance,8130,3/11/2022
Conklin & Conklin LLC,Services,4765,3/11/2022
Conklin & Conklin LLC,Claims & Insurance,21290,3/29/2022
Conklin & Conklin LLC,Services,2430,3/29/2022
Conklin & Conklin LLC,Claims & Insurance,11475,3/29/2022
Conklin & Conklin LLC,Services,5085,6/15/2022
Conklin & Conklin LLC,Claims & Insurance,2860,6/15/2022
Conklin & Conklin LLC,Claims & Insurance,6945,6/15/2022
Conklin & Conklin LLC,Claims & Insurance,8545,6/30/2022
Conklin & Conklin LLC,Services,3502,6/30/2022
Conklin & Conklin LLC,Claims & Insurance,3820,6/30/2022
Conklin & Conklin LLC,Services,50524,6/30/2022
Conklin & Conklin LLC,Claims & Insurance,19330,6/30/2022
Conklin & Conklin LLC,Services,225,6/30/2022
Conklin & Conklin LLC,Claims & Insurance,15235,6/30/2022
Conklin & Conklin LLC,Services,11535,6/30/2022
Conklin & Conklin LLC,Claims & Insurance,1005,9/21/2022
Conklin & Conklin LLC,Claims & Insurance,25280,9/21/2022
Conklin & Conklin LLC,Services,13755,9/21/2022
Conklin & Conklin LLC,Claims & Insurance,890,10/7/2022
Conklin & Conklin LLC,Services,2445,10/7/2022
Conklin & Conklin LLC,Claims & Insurance,18880,10/7/2022
Conklin & Conklin LLC,Claims & Insurance,22590,12/1/2022
Conklin & Conklin LLC,Claims & Insurance,5110,12/1/2022
Conklin & Conklin LLC,Claims & Insurance,1070,12/1/2022
Conklin & Conklin LLC,Claims & Insurance,13690,12/1/2022
Conklin & Conklin LLC,Claims & Insurance,18275,12/16/2022
Constance Valkan,Services,2362.5,2/10/2022
Constance Valkan,Services,750,2/10/2022
Constance Valkan,Services,2940,2/28/2022
Constance Valkan,Services,1443.75,3/17/2022
Constance Valkan,Services,2782.5,4/21/2022
Constance Valkan,Services,375,5/11/2022
Constance Valkan,Services,10106.25,7/13/2022
Constance Valkan,Services,32.5,7/13/2022
Constance Valkan,Services,3193.5,9/6/2022
Constance Valkan,Services,450,9/6/2022
Constance Valkan,Services,225,9/21/2022
Constance Valkan,Services,112.5,9/22/2022
Constance Valkan,Services,3328.5,10/5/2022
Constance Valkan,Services,1050,10/10/2022
Constance Valkan,Services,1627.5,10/10/2022
Constance Valkan,Services,2751,11/4/2022
Constance Valkan,Services,1512,11/22/2022
ContiTech Luftfedersysteme GmbH,Capital Purchases,18309,4/11/2022
Convergint Technologies  Llc,Services,492,1/11/2022
Cook County Assessors Office,Services,50,5/10/2022
Cook County Clerk,Services,10,2/8/2022
Cook County Clerk,Services,5,3/10/2022
Cook County Sheriffs Police Finance Dept. Rm 106,Services,494095.5,1/5/2022
Cook County Sheriffs Police Finance Dept. Rm 106,Services,247047.75,2/9/2022
Cook County Sheriffs Police Finance Dept. Rm 106,Services,717.64,2/22/2022
Cook County Sheriffs Police Finance Dept. Rm 106,Services,251074.98,3/22/2022
Cook County Sheriffs Police Finance Dept. Rm 106,Services,251074.98,7/7/2022
Cook County Sheriffs Police Finance Dept. Rm 106,Services,4243.23,9/7/2022
Cook County Sheriffs Police Finance Dept. Rm 106,Services,251074.98,10/20/2022
Cook County Treasurer,Services,12323.98,6/28/2022
Cook County Treasurer,Services,734.33,8/15/2022
COREY M. WILLIAMS,Claims & Insurance,20,9/1/2022
Cornell D. Smith,Services,9402,5/20/2022
Cornell D. Smith,Services,1098,12/21/2022
Corys Inc.,Services,7375,1/5/2022
Corys Inc.,Services,7375,1/20/2022
Corys Inc.,Services,14750,3/1/2022
Corys Inc.,Services,7375,4/12/2022
Corys Inc.,Services,7375,5/11/2022
Corys Inc.,Services,7130,6/15/2022
Corys Inc.,Services,7130,7/13/2022
Corys Inc.,Services,7130,8/5/2022
Corys Inc.,Services,7130,9/1/2022
Corys Inc.,Services,7130,10/13/2022
Corys Inc.,Services,19091,11/4/2022
Corys Inc.,Services,7130,12/7/2022
Courtney Aubrecht,Services,111.13,12/6/2022
Courtney Aubrecht,Services,52.13,12/6/2022
COVERT MEDIA CONSULTING LLC,Services,1300,7/14/2022
COVERT MEDIA CONSULTING LLC,Services,650,9/6/2022
"Cprime, Inc.",Services,1595,4/20/2022
"CPS Chicago Parking , LLC",Services,137290.88,2/17/2022
"CPS Chicago Parking , LLC",Services,34570.46,4/12/2022
"CPS Chicago Parking , LLC",Services,3101.49,4/22/2022
"CPS Chicago Parking , LLC",Services,501045.84,5/11/2022
"CPS Chicago Parking , LLC",Services,2865.57,5/18/2022
"CPS Chicago Parking , LLC",Services,1120.41,10/17/2022
"CPS Chicago Parking , LLC",Services,7294.37,11/3/2022
"CPS Chicago Parking , LLC",Services,1456.1,11/14/2022
"CPS Chicago Parking , LLC",Services,4467.51,12/14/2022
"CR Quality Services, Inc.",Services,629.71,4/27/2022
"CR Quality Services, Inc.",Services,1297.94,8/3/2022
"CR Quality Services, Inc.",Services,2534.05,8/29/2022
"CR Quality Services, Inc.",Services,1090.32,9/12/2022
"CR Quality Services, Inc.",Services,1847.5,10/5/2022
"CR Quality Services, Inc.",Services,4942.61,12/15/2022
Craig D Gavril,Services,780.18,7/25/2022
Craig D Gavril,Services,197.5,7/25/2022
Craig D Gavril,Services,67.7,7/25/2022
Craig D Gavril,Services,19.5,7/25/2022
Craig D. Gavril,Services,67.7,7/25/2022
Craig D. Gavril,Services,197.5,7/25/2022
Craig D. Gavril,Services,19.5,7/25/2022
Craig D. Gavril,Services,780.18,7/25/2022
Crains Chicago Business,Services,169,6/27/2022
Cranemasters Inc.,Services,13811.62,2/3/2022
Cranemasters Inc.,Rental Expense,51233.34,7/28/2022
Cranemasters Inc.,Services,31697.46,10/20/2022
Cranemasters Inc.,Services,5127.82,10/31/2022
Cranemasters Inc.,Services,9441.8,10/31/2022
Cranemasters Inc.,Services,8500.24,11/22/2022
Cranemasters Inc.,Services,4241.79,11/22/2022
Cranemasters Inc.,Services,24697.31,12/5/2022
Cranemasters Inc.,Services,7596.24,12/5/2022
Cranemasters Inc.,Services,6371.06,12/6/2022
"Crime Analyst of Illinois Association, NFP",Services,200,6/23/2022
"CRISIS CONSULTANT GROUP, LLC",Services,23080,10/5/2022
"CRISIS CONSULTANT GROUP, LLC",Services,14250,12/1/2022
Critical Reach,Services,1228,1/26/2022
Crowe LLP,Services,16577.85,1/5/2022
Crowe LLP,Capital Purchases,117000,1/5/2022
Crowe LLP,Capital Purchases,48000,1/5/2022
Crowe LLP,Capital Purchases,18000,2/22/2022
Crowe LLP,Capital Purchases,91000,3/8/2022
Crowe LLP,Services,60375,3/8/2022
Crowe LLP,Capital Purchases,91000,3/8/2022
Crowe LLP,Capital Purchases,422000,3/8/2022
Crowe LLP,Capital Purchases,645557.5,5/9/2022
Crowe LLP,Capital Purchases,1860,5/17/2022
Crowe LLP,Capital Purchases,13440,7/1/2022
Crowe LLP,Capital Purchases,18295,7/27/2022
Crowe LLP,Capital Purchases,20746,8/23/2022
Crowe LLP,Capital Purchases,61176.25,9/28/2022
Crowe LLP,Capital Purchases,71386.25,10/28/2022
Crowe LLP,Capital Purchases,69690,11/18/2022
Crown Battery Mfg. Co.,Materials,980,1/5/2022
Crown Battery Mfg. Co.,Materials,2220,1/13/2022
Crown Battery Mfg. Co.,Materials,999,1/20/2022
Crown Battery Mfg. Co.,Materials,4900,3/3/2022
Crown Battery Mfg. Co.,Materials,490,3/24/2022
Crown Battery Mfg. Co.,Materials,133250,3/29/2022
Crown Battery Mfg. Co.,Materials,246656,7/11/2022
Crown Lift Trucks,Services,205.6,5/26/2022
Crown Lift Trucks,Materials,3802,5/26/2022
Csx Transportation Inc.,Rental Expense,8616.72,6/1/2022
Cubic-Transportation Systems  Inc.,Services,145600.53,1/5/2022
Cubic-Transportation Systems  Inc.,Services,87729.53,1/5/2022
Cubic-Transportation Systems  Inc.,Services,135742.04,1/26/2022
Cubic-Transportation Systems  Inc.,Services,73818.18,1/26/2022
Cubic-Transportation Systems  Inc.,Services,136661.4,2/15/2022
Cubic-Transportation Systems  Inc.,Services,81144.28,2/15/2022
Cubic-Transportation Systems  Inc.,Services,92029.43,3/1/2022
Cubic-Transportation Systems  Inc.,Services,74675.45,3/1/2022
Cubic-Transportation Systems  Inc.,Services,120255.31,3/25/2022
Cubic-Transportation Systems  Inc.,Services,93247.5,3/25/2022
"Cult Power, Inc",Claims & Insurance,1849.99,1/6/2022
CultureFit Technology Staffing,Services,16800,12/1/2022
CultureFit Technology Staffing,Services,4080,12/13/2022
Cummins Npower  Llc,Materials,520.6,6/9/2022
Cummins Npower  Llc,Services,59.4,6/9/2022
Cummins Npower  Llc,Materials,469.45,6/16/2022
"Custom Glass Solutions Trumbauersville, LLC",Materials,370.5,1/3/2022
"Custom Glass Solutions Trumbauersville, LLC",Materials,3013.1,1/5/2022
"Custom Glass Solutions Trumbauersville, LLC",Materials,3013.1,1/20/2022
"Custom Glass Solutions Trumbauersville, LLC",Materials,195,3/22/2022
"Custom Glass Solutions Trumbauersville, LLC",Materials,7532.75,5/11/2022
"Custom Glass Solutions Trumbauersville, LLC",Materials,5296.98,5/20/2022
"Custom Glass Solutions Trumbauersville, LLC",Materials,240,5/23/2022
"Custom Glass Solutions Trumbauersville, LLC",Capital Purchases,9861.75,7/18/2022
"Custom Glass Solutions Trumbauersville, LLC",Capital Purchases,9861.75,8/1/2022
"Custom Glass Solutions Trumbauersville, LLC",Materials,9039.3,8/30/2022
"Custom Glass Solutions Trumbauersville, LLC",Materials,931.5,9/1/2022
"Custom Glass Solutions Trumbauersville, LLC",Materials,8000,12/1/2022
"Cynthia A. Pavesich & Associates, Inc.",Claims & Insurance,616,8/15/2022
Cynthia Leonard,Services,107.52,2/2/2022
Cynthia Leonard,Services,53.82,3/4/2022
Cynthia Leonard,Services,7.02,3/4/2022
Cynthia Leonard,Services,67.86,6/15/2022
Cynthia Leonard,Services,37.5,10/10/2022
Dacra Adjudication Systems LLC dba Dacra Tech LLC,Services,1750,1/18/2022
Dacra Adjudication Systems LLC dba Dacra Tech LLC,Services,1750,2/17/2022
Dacra Adjudication Systems LLC dba Dacra Tech LLC,Services,1750,3/30/2022
Dacra Adjudication Systems LLC dba Dacra Tech LLC,Services,1750,5/2/2022
Dacra Adjudication Systems LLC dba Dacra Tech LLC,Services,1750,6/1/2022
Dacra Adjudication Systems LLC dba Dacra Tech LLC,Services,2000,7/5/2022
Dacra Adjudication Systems LLC dba Dacra Tech LLC,Services,2000,7/8/2022
Dacra Adjudication Systems LLC dba Dacra Tech LLC,Services,2000,8/23/2022
Dacra Adjudication Systems LLC dba Dacra Tech LLC,Services,2000,9/6/2022
Dacra Adjudication Systems LLC dba Dacra Tech LLC,Services,2000,10/13/2022
Dacra Adjudication Systems LLC dba Dacra Tech LLC,Services,2000,11/16/2022
Dacra Adjudication Systems LLC dba Dacra Tech LLC,Services,2000,12/12/2022
D'ANDRA STEPHENSON,Services,37.5,12/22/2022
